Organisation Name,Organisation Code,Unique Ref No,Effective Date,Directorate where expenditure incurred, Supplier Name ,Payment Date,Net Amount,Purpose of Spend,"Procurement Classification
(Higher Level)",Procurement Classification (Lower Level),CAPITAL / REVENUE,,,,
Walsall Council,http://opendatacommunities.org/id/metropolitan-district-council/walsall ,WC135-1,28.02.2022,"ECONOMY, ENVIRONMENT & COMMUNITIES",11KBW,25/02/2022,790.00,6440-School Only Payments - Catering,THIRD PARTY PAYMENTS,INDEPENDENT UNIT WITHIN COUNCIL,REVENUE
Walsall Council,http://opendatacommunities.org/id/metropolitan-district-council/walsall ,WC135-2,28.02.2022,CHILDRENS,247 CARS (WILLENHALL) LIMITED,01/02/2022,"1,115.10",6241-Hire of Vehicle with Driver,TRANSPORT,DIRECT TRANSPORT COSTS,REVENUE
Walsall Council,http://opendatacommunities.org/id/metropolitan-district-council/walsall ,WC135-3,28.02.2022,CHILDRENS,247 CARS (WILLENHALL) LIMITED,01/02/2022,740.00,6241-Hire of Vehicle with Driver,TRANSPORT,DIRECT TRANSPORT COSTS,REVENUE
Walsall Council,http://opendatacommunities.org/id/metropolitan-district-council/walsall ,WC135-4,28.02.2022,CHILDRENS,247 CARS (WILLENHALL) LIMITED,01/02/2022,-803.88,6241-Hire of Vehicle with Driver,TRANSPORT,DIRECT TRANSPORT COSTS,REVENUE
Walsall Council,http://opendatacommunities.org/id/metropolitan-district-council/walsall ,WC135-5,28.02.2022,CHILDRENS,247 CARS (WILLENHALL) LIMITED,01/02/2022,"1,461.60",6241-Hire of Vehicle with Driver,TRANSPORT,DIRECT TRANSPORT COSTS,REVENUE
Walsall Council,http://opendatacommunities.org/id/metropolitan-district-council/walsall ,WC135-6,28.02.2022,CHILDRENS,247 CARS (WILLENHALL) LIMITED,01/02/2022,588.00,6241-Hire of Vehicle with Driver,TRANSPORT,DIRECT TRANSPORT COSTS,REVENUE
Walsall Council,http://opendatacommunities.org/id/metropolitan-district-council/walsall ,WC135-7,28.02.2022,CHILDRENS,247 CARS (WILLENHALL) LIMITED,01/02/2022,598.50,6241-Hire of Vehicle with Driver,TRANSPORT,DIRECT TRANSPORT COSTS,REVENUE
Walsall Council,http://opendatacommunities.org/id/metropolitan-district-council/walsall ,WC135-8,28.02.2022,CHILDRENS,247 CARS (WILLENHALL) LIMITED,01/02/2022,598.50,6241-Hire of Vehicle with Driver,TRANSPORT,DIRECT TRANSPORT COSTS,REVENUE
Walsall Council,http://opendatacommunities.org/id/metropolitan-district-council/walsall ,WC135-9,28.02.2022,CHILDRENS,247 CARS (WILLENHALL) LIMITED,01/02/2022,"1,196.73",6241-Hire of Vehicle with Driver,TRANSPORT,DIRECT TRANSPORT COSTS,REVENUE
Walsall Council,http://opendatacommunities.org/id/metropolitan-district-council/walsall ,WC135-10,28.02.2022,CHILDRENS,247 CARS (WILLENHALL) LIMITED,01/02/2022,621.00,6241-Hire of Vehicle with Driver,TRANSPORT,DIRECT TRANSPORT COSTS,REVENUE
Walsall Council,http://opendatacommunities.org/id/metropolitan-district-council/walsall ,WC135-11,28.02.2022,CHILDRENS,247 CARS (WILLENHALL) LIMITED,01/02/2022,577.60,6241-Hire of Vehicle with Driver,TRANSPORT,DIRECT TRANSPORT COSTS,REVENUE
Walsall Council,http://opendatacommunities.org/id/metropolitan-district-council/walsall ,WC135-12,28.02.2022,CHILDRENS,247 CARS (WILLENHALL) LIMITED,01/02/2022,740.00,6241-Hire of Vehicle with Driver,TRANSPORT,DIRECT TRANSPORT COSTS,REVENUE
Walsall Council,http://opendatacommunities.org/id/metropolitan-district-council/walsall ,WC135-13,28.02.2022,CHILDRENS,247 CARS (WILLENHALL) LIMITED,01/02/2022,740.00,6241-Hire of Vehicle with Driver,TRANSPORT,DIRECT TRANSPORT COSTS,REVENUE
Walsall Council,http://opendatacommunities.org/id/metropolitan-district-council/walsall ,WC135-14,28.02.2022,CHILDRENS,247 CARS (WILLENHALL) LIMITED,01/02/2022,740.00,6241-Hire of Vehicle with Driver,TRANSPORT,DIRECT TRANSPORT COSTS,REVENUE
Walsall Council,http://opendatacommunities.org/id/metropolitan-district-council/walsall ,WC135-15,28.02.2022,CHILDRENS,247 CARS (WILLENHALL) LIMITED,01/02/2022,740.00,6241-Hire of Vehicle with Driver,TRANSPORT,DIRECT TRANSPORT COSTS,REVENUE
Walsall Council,http://opendatacommunities.org/id/metropolitan-district-council/walsall ,WC135-16,28.02.2022,RESOURCES AND TRANSFORMATION,4 SIGHT EYECARE CENTRE 002,16/02/2022,-750.00,6625-Eye Tests,DIRECT EMPLOYEES,EMPLOYEE ALLOWANCES & EXPENSES,REVENUE
Walsall Council,http://opendatacommunities.org/id/metropolitan-district-council/walsall ,WC135-17,28.02.2022,RESOURCES AND TRANSFORMATION,4 SIGHT EYECARE CENTRE 002,16/02/2022,-250.00,6625-Eye Tests,DIRECT EMPLOYEES,EMPLOYEE ALLOWANCES & EXPENSES,REVENUE
Walsall Council,http://opendatacommunities.org/id/metropolitan-district-council/walsall ,WC135-18,28.02.2022,RESOURCES AND TRANSFORMATION,4 SIGHT EYECARE CENTRE 002,16/02/2022,250.00,6625-Eye Tests,DIRECT EMPLOYEES,EMPLOYEE ALLOWANCES & EXPENSES,REVENUE
Walsall Council,http://opendatacommunities.org/id/metropolitan-district-council/walsall ,WC135-19,28.02.2022,RESOURCES AND TRANSFORMATION,4 SIGHT EYECARE CENTRE 002,16/02/2022,750.00,6625-Eye Tests,DIRECT EMPLOYEES,EMPLOYEE ALLOWANCES & EXPENSES,REVENUE
Walsall Council,http://opendatacommunities.org/id/metropolitan-district-council/walsall ,WC135-20,28.02.2022,ADULT SOCIAL CARE,5 CARE SERVICES LTD,01/02/2022,268.68,6541-Domiciliary Care,THIRD PARTY PAYMENTS,PRIVATE CONTRACTOR,REVENUE
Walsall Council,http://opendatacommunities.org/id/metropolitan-district-council/walsall ,WC135-21,28.02.2022,ADULT SOCIAL CARE,5 CARE SERVICES LTD,01/02/2022,490.49,6541-Domiciliary Care,THIRD PARTY PAYMENTS,PRIVATE CONTRACTOR,REVENUE
Walsall Council,http://opendatacommunities.org/id/metropolitan-district-council/walsall ,WC135-22,28.02.2022,ADULT SOCIAL CARE,5 CARE SERVICES LTD,01/02/2022,591.66,6541-Domiciliary Care,THIRD PARTY PAYMENTS,PRIVATE CONTRACTOR,REVENUE
Walsall Council,http://opendatacommunities.org/id/metropolitan-district-council/walsall ,WC135-23,28.02.2022,ADULT SOCIAL CARE,5 CARE SERVICES LTD,01/02/2022,724.06,6541-Domiciliary Care,THIRD PARTY PAYMENTS,PRIVATE CONTRACTOR,REVENUE
Walsall Council,http://opendatacommunities.org/id/metropolitan-district-council/walsall ,WC135-24,28.02.2022,ADULT SOCIAL CARE,5 CARE SERVICES LTD,01/02/2022,"1,121.04",6541-Domiciliary Care,THIRD PARTY PAYMENTS,PRIVATE CONTRACTOR,REVENUE
Walsall Council,http://opendatacommunities.org/id/metropolitan-district-council/walsall ,WC135-25,28.02.2022,ADULT SOCIAL CARE,5 CARE SERVICES LTD,01/02/2022,490.49,6541-Domiciliary Care,THIRD PARTY PAYMENTS,PRIVATE CONTRACTOR,REVENUE
Walsall Council,http://opendatacommunities.org/id/metropolitan-district-council/walsall ,WC135-26,28.02.2022,ADULT SOCIAL CARE,5 CARE SERVICES LTD,01/02/2022,311.40,6541-Domiciliary Care,THIRD PARTY PAYMENTS,PRIVATE CONTRACTOR,REVENUE
Walsall Council,http://opendatacommunities.org/id/metropolitan-district-council/walsall ,WC135-27,28.02.2022,ADULT SOCIAL CARE,5 CARE SERVICES LTD,01/02/2022,326.97,6541-Domiciliary Care,THIRD PARTY PAYMENTS,PRIVATE CONTRACTOR,REVENUE
Walsall Council,http://opendatacommunities.org/id/metropolitan-district-council/walsall ,WC135-28,28.02.2022,ADULT SOCIAL CARE,5 CARE SERVICES LTD,01/02/2022,490.49,6541-Domiciliary Care,THIRD PARTY PAYMENTS,PRIVATE CONTRACTOR,REVENUE
Walsall Council,http://opendatacommunities.org/id/metropolitan-district-council/walsall ,WC135-29,28.02.2022,ADULT SOCIAL CARE,5 CARE SERVICES LTD,01/02/2022,327.04,6541-Domiciliary Care,THIRD PARTY PAYMENTS,PRIVATE CONTRACTOR,REVENUE
Walsall Council,http://opendatacommunities.org/id/metropolitan-district-council/walsall ,WC135-30,28.02.2022,ADULT SOCIAL CARE,5 CARE SERVICES LTD,01/02/2022,"1,619.28",6541-Domiciliary Care,THIRD PARTY PAYMENTS,PRIVATE CONTRACTOR,REVENUE
Walsall Council,http://opendatacommunities.org/id/metropolitan-district-council/walsall ,WC135-31,28.02.2022,ADULT SOCIAL CARE,5 CARE SERVICES LTD,01/02/2022,654.01,6541-Domiciliary Care,THIRD PARTY PAYMENTS,PRIVATE CONTRACTOR,REVENUE
Walsall Council,http://opendatacommunities.org/id/metropolitan-district-council/walsall ,WC135-32,28.02.2022,ADULT SOCIAL CARE,5 CARE SERVICES LTD,01/02/2022,326.97,6541-Domiciliary Care,THIRD PARTY PAYMENTS,PRIVATE CONTRACTOR,REVENUE
Walsall Council,http://opendatacommunities.org/id/metropolitan-district-council/walsall ,WC135-33,28.02.2022,ADULT SOCIAL CARE,5 CARE SERVICES LTD,01/02/2022,599.48,6541-Domiciliary Care,THIRD PARTY PAYMENTS,PRIVATE CONTRACTOR,REVENUE
Walsall Council,http://opendatacommunities.org/id/metropolitan-district-council/walsall ,WC135-34,28.02.2022,ADULT SOCIAL CARE,5 CARE SERVICES LTD,01/02/2022,"1,198.89",6541-Domiciliary Care,THIRD PARTY PAYMENTS,PRIVATE CONTRACTOR,REVENUE
Walsall Council,http://opendatacommunities.org/id/metropolitan-district-council/walsall ,WC135-35,28.02.2022,ADULT SOCIAL CARE,5 CARE SERVICES LTD,01/02/2022,"1,276.83",6541-Domiciliary Care,THIRD PARTY PAYMENTS,PRIVATE CONTRACTOR,REVENUE
Walsall Council,http://opendatacommunities.org/id/metropolitan-district-council/walsall ,WC135-36,28.02.2022,ADULT SOCIAL CARE,5 CARE SERVICES LTD,01/02/2022,560.52,6541-Domiciliary Care,THIRD PARTY PAYMENTS,PRIVATE CONTRACTOR,REVENUE
Walsall Council,http://opendatacommunities.org/id/metropolitan-district-council/walsall ,WC135-37,28.02.2022,ADULT SOCIAL CARE,5 CARE SERVICES LTD,01/02/2022,705.84,6541-Domiciliary Care,THIRD PARTY PAYMENTS,PRIVATE CONTRACTOR,REVENUE
Walsall Council,http://opendatacommunities.org/id/metropolitan-district-council/walsall ,WC135-38,28.02.2022,ADULT SOCIAL CARE,5 CARE SERVICES LTD,01/02/2022,724.06,6541-Domiciliary Care,THIRD PARTY PAYMENTS,PRIVATE CONTRACTOR,REVENUE
Walsall Council,http://opendatacommunities.org/id/metropolitan-district-council/walsall ,WC135-39,28.02.2022,ADULT SOCIAL CARE,5 CARE SERVICES LTD,01/02/2022,268.68,6541-Domiciliary Care,THIRD PARTY PAYMENTS,PRIVATE CONTRACTOR,REVENUE
Walsall Council,http://opendatacommunities.org/id/metropolitan-district-council/walsall ,WC135-40,28.02.2022,ADULT SOCIAL CARE,5 CARE SERVICES LTD,01/02/2022,"1,198.89",6541-Domiciliary Care,THIRD PARTY PAYMENTS,PRIVATE CONTRACTOR,REVENUE
Walsall Council,http://opendatacommunities.org/id/metropolitan-district-council/walsall ,WC135-41,28.02.2022,ADULT SOCIAL CARE,5 CARE SERVICES LTD,01/02/2022,490.49,6541-Domiciliary Care,THIRD PARTY PAYMENTS,PRIVATE CONTRACTOR,REVENUE
Walsall Council,http://opendatacommunities.org/id/metropolitan-district-council/walsall ,WC135-42,28.02.2022,ADULT SOCIAL CARE,5 CARE SERVICES LTD,01/02/2022,591.66,6541-Domiciliary Care,THIRD PARTY PAYMENTS,PRIVATE CONTRACTOR,REVENUE
Walsall Council,http://opendatacommunities.org/id/metropolitan-district-council/walsall ,WC135-43,28.02.2022,ADULT SOCIAL CARE,5 CARE SERVICES LTD,01/02/2022,654.01,6541-Domiciliary Care,THIRD PARTY PAYMENTS,PRIVATE CONTRACTOR,REVENUE
Walsall Council,http://opendatacommunities.org/id/metropolitan-district-council/walsall ,WC135-44,28.02.2022,ADULT SOCIAL CARE,5 CARE SERVICES LTD,01/02/2022,326.97,6541-Domiciliary Care,THIRD PARTY PAYMENTS,PRIVATE CONTRACTOR,REVENUE
Walsall Council,http://opendatacommunities.org/id/metropolitan-district-council/walsall ,WC135-45,28.02.2022,ADULT SOCIAL CARE,5 CARE SERVICES LTD,01/02/2022,599.48,6541-Domiciliary Care,THIRD PARTY PAYMENTS,PRIVATE CONTRACTOR,REVENUE
Walsall Council,http://opendatacommunities.org/id/metropolitan-district-council/walsall ,WC135-46,28.02.2022,ADULT SOCIAL CARE,5 CARE SERVICES LTD,01/02/2022,734.39,6541-Domiciliary Care,THIRD PARTY PAYMENTS,PRIVATE CONTRACTOR,REVENUE
Walsall Council,http://opendatacommunities.org/id/metropolitan-district-council/walsall ,WC135-47,28.02.2022,ADULT SOCIAL CARE,5 CARE SERVICES LTD,01/02/2022,490.49,6541-Domiciliary Care,THIRD PARTY PAYMENTS,PRIVATE CONTRACTOR,REVENUE
Walsall Council,http://opendatacommunities.org/id/metropolitan-district-council/walsall ,WC135-48,28.02.2022,ADULT SOCIAL CARE,5 CARE SERVICES LTD,01/02/2022,560.52,6541-Domiciliary Care,THIRD PARTY PAYMENTS,PRIVATE CONTRACTOR,REVENUE
Walsall Council,http://opendatacommunities.org/id/metropolitan-district-council/walsall ,WC135-49,28.02.2022,ADULT SOCIAL CARE,5 CARE SERVICES LTD,01/02/2022,871.92,6541-Domiciliary Care,THIRD PARTY PAYMENTS,PRIVATE CONTRACTOR,REVENUE
Walsall Council,http://opendatacommunities.org/id/metropolitan-district-council/walsall ,WC135-50,28.02.2022,ADULT SOCIAL CARE,5 CARE SERVICES LTD,01/02/2022,747.36,6541-Domiciliary Care,THIRD PARTY PAYMENTS,PRIVATE CONTRACTOR,REVENUE
Walsall Council,http://opendatacommunities.org/id/metropolitan-district-council/walsall ,WC135-51,28.02.2022,ADULT SOCIAL CARE,5 CARE SERVICES LTD,01/02/2022,327.04,6541-Domiciliary Care,THIRD PARTY PAYMENTS,PRIVATE CONTRACTOR,REVENUE
Walsall Council,http://opendatacommunities.org/id/metropolitan-district-council/walsall ,WC135-52,28.02.2022,ADULT SOCIAL CARE,5 CARE SERVICES LTD,01/02/2022,490.49,6541-Domiciliary Care,THIRD PARTY PAYMENTS,PRIVATE CONTRACTOR,REVENUE
Walsall Council,http://opendatacommunities.org/id/metropolitan-district-council/walsall ,WC135-53,28.02.2022,ADULT SOCIAL CARE,5 CARE SERVICES LTD,01/02/2022,280.26,6541-Domiciliary Care,THIRD PARTY PAYMENTS,PRIVATE CONTRACTOR,REVENUE
Walsall Council,http://opendatacommunities.org/id/metropolitan-district-council/walsall ,WC135-54,28.02.2022,ADULT SOCIAL CARE,5 CARE SERVICES LTD,01/02/2022,311.40,6541-Domiciliary Care,THIRD PARTY PAYMENTS,PRIVATE CONTRACTOR,REVENUE
Walsall Council,http://opendatacommunities.org/id/metropolitan-district-council/walsall ,WC135-55,28.02.2022,ADULT SOCIAL CARE,5 CARE SERVICES LTD,01/02/2022,326.97,6541-Domiciliary Care,THIRD PARTY PAYMENTS,PRIVATE CONTRACTOR,REVENUE
Walsall Council,http://opendatacommunities.org/id/metropolitan-district-council/walsall ,WC135-56,28.02.2022,ADULT SOCIAL CARE,5 CARE SERVICES LTD,01/02/2022,490.49,6541-Domiciliary Care,THIRD PARTY PAYMENTS,PRIVATE CONTRACTOR,REVENUE
Walsall Council,http://opendatacommunities.org/id/metropolitan-district-council/walsall ,WC135-57,28.02.2022,ADULT SOCIAL CARE,5 CARE SERVICES LTD,10/02/2022,840.78,6541-Domiciliary Care,THIRD PARTY PAYMENTS,PRIVATE CONTRACTOR,REVENUE
Walsall Council,http://opendatacommunities.org/id/metropolitan-district-council/walsall ,WC135-58,28.02.2022,ADULT SOCIAL CARE,5 CARE SERVICES LTD,10/02/2022,"1,051.05",6541-Domiciliary Care,THIRD PARTY PAYMENTS,PRIVATE CONTRACTOR,REVENUE
Walsall Council,http://opendatacommunities.org/id/metropolitan-district-council/walsall ,WC135-59,28.02.2022,ADULT SOCIAL CARE,5 CARE SERVICES LTD,15/02/2022,490.49,6541-Domiciliary Care,THIRD PARTY PAYMENTS,PRIVATE CONTRACTOR,REVENUE
Walsall Council,http://opendatacommunities.org/id/metropolitan-district-council/walsall ,WC135-60,28.02.2022,ADULT SOCIAL CARE,5 CARE SERVICES LTD,15/02/2022,591.66,6541-Domiciliary Care,THIRD PARTY PAYMENTS,PRIVATE CONTRACTOR,REVENUE
Walsall Council,http://opendatacommunities.org/id/metropolitan-district-council/walsall ,WC135-61,28.02.2022,ADULT SOCIAL CARE,5 CARE SERVICES LTD,15/02/2022,654.01,6541-Domiciliary Care,THIRD PARTY PAYMENTS,PRIVATE CONTRACTOR,REVENUE
Walsall Council,http://opendatacommunities.org/id/metropolitan-district-council/walsall ,WC135-62,28.02.2022,ADULT SOCIAL CARE,5 CARE SERVICES LTD,15/02/2022,326.97,6541-Domiciliary Care,THIRD PARTY PAYMENTS,PRIVATE CONTRACTOR,REVENUE
Walsall Council,http://opendatacommunities.org/id/metropolitan-district-council/walsall ,WC135-63,28.02.2022,ADULT SOCIAL CARE,5 CARE SERVICES LTD,15/02/2022,599.48,6541-Domiciliary Care,THIRD PARTY PAYMENTS,PRIVATE CONTRACTOR,REVENUE
Walsall Council,http://opendatacommunities.org/id/metropolitan-district-council/walsall ,WC135-64,28.02.2022,ADULT SOCIAL CARE,5 CARE SERVICES LTD,15/02/2022,705.84,6541-Domiciliary Care,THIRD PARTY PAYMENTS,PRIVATE CONTRACTOR,REVENUE
Walsall Council,http://opendatacommunities.org/id/metropolitan-district-council/walsall ,WC135-65,28.02.2022,ADULT SOCIAL CARE,5 CARE SERVICES LTD,15/02/2022,871.92,6541-Domiciliary Care,THIRD PARTY PAYMENTS,PRIVATE CONTRACTOR,REVENUE
Walsall Council,http://opendatacommunities.org/id/metropolitan-district-council/walsall ,WC135-66,28.02.2022,ADULT SOCIAL CARE,5 CARE SERVICES LTD,15/02/2022,420.39,6541-Domiciliary Care,THIRD PARTY PAYMENTS,PRIVATE CONTRACTOR,REVENUE
Walsall Council,http://opendatacommunities.org/id/metropolitan-district-council/walsall ,WC135-67,28.02.2022,ADULT SOCIAL CARE,5 CARE SERVICES LTD,15/02/2022,747.36,6541-Domiciliary Care,THIRD PARTY PAYMENTS,PRIVATE CONTRACTOR,REVENUE
Walsall Council,http://opendatacommunities.org/id/metropolitan-district-council/walsall ,WC135-68,28.02.2022,ADULT SOCIAL CARE,5 CARE SERVICES LTD,15/02/2022,327.04,6541-Domiciliary Care,THIRD PARTY PAYMENTS,PRIVATE CONTRACTOR,REVENUE
Walsall Council,http://opendatacommunities.org/id/metropolitan-district-council/walsall ,WC135-69,28.02.2022,ADULT SOCIAL CARE,5 CARE SERVICES LTD,15/02/2022,724.06,6541-Domiciliary Care,THIRD PARTY PAYMENTS,PRIVATE CONTRACTOR,REVENUE
Walsall Council,http://opendatacommunities.org/id/metropolitan-district-council/walsall ,WC135-70,28.02.2022,ADULT SOCIAL CARE,5 CARE SERVICES LTD,15/02/2022,490.49,6541-Domiciliary Care,THIRD PARTY PAYMENTS,PRIVATE CONTRACTOR,REVENUE
Walsall Council,http://opendatacommunities.org/id/metropolitan-district-council/walsall ,WC135-71,28.02.2022,ADULT SOCIAL CARE,5 CARE SERVICES LTD,15/02/2022,"1,198.89",6541-Domiciliary Care,THIRD PARTY PAYMENTS,PRIVATE CONTRACTOR,REVENUE
Walsall Council,http://opendatacommunities.org/id/metropolitan-district-council/walsall ,WC135-72,28.02.2022,ADULT SOCIAL CARE,5 CARE SERVICES LTD,15/02/2022,490.49,6541-Domiciliary Care,THIRD PARTY PAYMENTS,PRIVATE CONTRACTOR,REVENUE
Walsall Council,http://opendatacommunities.org/id/metropolitan-district-council/walsall ,WC135-73,28.02.2022,ADULT SOCIAL CARE,5 CARE SERVICES LTD,15/02/2022,311.40,6541-Domiciliary Care,THIRD PARTY PAYMENTS,PRIVATE CONTRACTOR,REVENUE
Walsall Council,http://opendatacommunities.org/id/metropolitan-district-council/walsall ,WC135-74,28.02.2022,ADULT SOCIAL CARE,5 CARE SERVICES LTD,15/02/2022,326.97,6541-Domiciliary Care,THIRD PARTY PAYMENTS,PRIVATE CONTRACTOR,REVENUE
Walsall Council,http://opendatacommunities.org/id/metropolitan-district-council/walsall ,WC135-75,28.02.2022,ADULT SOCIAL CARE,5 CARE SERVICES LTD,15/02/2022,490.49,6541-Domiciliary Care,THIRD PARTY PAYMENTS,PRIVATE CONTRACTOR,REVENUE
Walsall Council,http://opendatacommunities.org/id/metropolitan-district-council/walsall ,WC135-76,28.02.2022,ADULT SOCIAL CARE,5 CARE SERVICES LTD,15/02/2022,560.52,6541-Domiciliary Care,THIRD PARTY PAYMENTS,PRIVATE CONTRACTOR,REVENUE
Walsall Council,http://opendatacommunities.org/id/metropolitan-district-council/walsall ,WC135-77,28.02.2022,ADULT SOCIAL CARE,5 CARE SERVICES LTD,15/02/2022,"1,198.89",6541-Domiciliary Care,THIRD PARTY PAYMENTS,PRIVATE CONTRACTOR,REVENUE
Walsall Council,http://opendatacommunities.org/id/metropolitan-district-council/walsall ,WC135-78,28.02.2022,ADULT SOCIAL CARE,5 CARE SERVICES LTD,15/02/2022,490.49,6541-Domiciliary Care,THIRD PARTY PAYMENTS,PRIVATE CONTRACTOR,REVENUE
Walsall Council,http://opendatacommunities.org/id/metropolitan-district-council/walsall ,WC135-79,28.02.2022,ADULT SOCIAL CARE,5 CARE SERVICES LTD,15/02/2022,591.66,6541-Domiciliary Care,THIRD PARTY PAYMENTS,PRIVATE CONTRACTOR,REVENUE
Walsall Council,http://opendatacommunities.org/id/metropolitan-district-council/walsall ,WC135-80,28.02.2022,ADULT SOCIAL CARE,5 CARE SERVICES LTD,15/02/2022,724.06,6541-Domiciliary Care,THIRD PARTY PAYMENTS,PRIVATE CONTRACTOR,REVENUE
Walsall Council,http://opendatacommunities.org/id/metropolitan-district-council/walsall ,WC135-81,28.02.2022,ADULT SOCIAL CARE,5 CARE SERVICES LTD,15/02/2022,560.52,6541-Domiciliary Care,THIRD PARTY PAYMENTS,PRIVATE CONTRACTOR,REVENUE
Walsall Council,http://opendatacommunities.org/id/metropolitan-district-council/walsall ,WC135-82,28.02.2022,ADULT SOCIAL CARE,5 CARE SERVICES LTD,15/02/2022,871.92,6541-Domiciliary Care,THIRD PARTY PAYMENTS,PRIVATE CONTRACTOR,REVENUE
Walsall Council,http://opendatacommunities.org/id/metropolitan-district-council/walsall ,WC135-83,28.02.2022,ADULT SOCIAL CARE,5 CARE SERVICES LTD,15/02/2022,490.49,6541-Domiciliary Care,THIRD PARTY PAYMENTS,PRIVATE CONTRACTOR,REVENUE
Walsall Council,http://opendatacommunities.org/id/metropolitan-district-council/walsall ,WC135-84,28.02.2022,ADULT SOCIAL CARE,5 CARE SERVICES LTD,15/02/2022,490.49,6541-Domiciliary Care,THIRD PARTY PAYMENTS,PRIVATE CONTRACTOR,REVENUE
Walsall Council,http://opendatacommunities.org/id/metropolitan-district-council/walsall ,WC135-85,28.02.2022,ADULT SOCIAL CARE,5 CARE SERVICES LTD,15/02/2022,654.01,6541-Domiciliary Care,THIRD PARTY PAYMENTS,PRIVATE CONTRACTOR,REVENUE
Walsall Council,http://opendatacommunities.org/id/metropolitan-district-council/walsall ,WC135-86,28.02.2022,ADULT SOCIAL CARE,5 CARE SERVICES LTD,15/02/2022,326.97,6541-Domiciliary Care,THIRD PARTY PAYMENTS,PRIVATE CONTRACTOR,REVENUE
Walsall Council,http://opendatacommunities.org/id/metropolitan-district-council/walsall ,WC135-87,28.02.2022,ADULT SOCIAL CARE,5 CARE SERVICES LTD,15/02/2022,599.48,6541-Domiciliary Care,THIRD PARTY PAYMENTS,PRIVATE CONTRACTOR,REVENUE
Walsall Council,http://opendatacommunities.org/id/metropolitan-district-council/walsall ,WC135-88,28.02.2022,ADULT SOCIAL CARE,5 CARE SERVICES LTD,15/02/2022,705.84,6541-Domiciliary Care,THIRD PARTY PAYMENTS,PRIVATE CONTRACTOR,REVENUE
Walsall Council,http://opendatacommunities.org/id/metropolitan-district-council/walsall ,WC135-89,28.02.2022,ADULT SOCIAL CARE,5 CARE SERVICES LTD,15/02/2022,"1,121.04",6541-Domiciliary Care,THIRD PARTY PAYMENTS,PRIVATE CONTRACTOR,REVENUE
Walsall Council,http://opendatacommunities.org/id/metropolitan-district-council/walsall ,WC135-90,28.02.2022,ADULT SOCIAL CARE,5 CARE SERVICES LTD,15/02/2022,327.04,6541-Domiciliary Care,THIRD PARTY PAYMENTS,PRIVATE CONTRACTOR,REVENUE
Walsall Council,http://opendatacommunities.org/id/metropolitan-district-council/walsall ,WC135-91,28.02.2022,ADULT SOCIAL CARE,5 CARE SERVICES LTD,15/02/2022,420.39,6541-Domiciliary Care,THIRD PARTY PAYMENTS,PRIVATE CONTRACTOR,REVENUE
Walsall Council,http://opendatacommunities.org/id/metropolitan-district-council/walsall ,WC135-92,28.02.2022,ADULT SOCIAL CARE,5 CARE SERVICES LTD,15/02/2022,311.40,6541-Domiciliary Care,THIRD PARTY PAYMENTS,PRIVATE CONTRACTOR,REVENUE
Walsall Council,http://opendatacommunities.org/id/metropolitan-district-council/walsall ,WC135-93,28.02.2022,ADULT SOCIAL CARE,5 CARE SERVICES LTD,15/02/2022,326.97,6541-Domiciliary Care,THIRD PARTY PAYMENTS,PRIVATE CONTRACTOR,REVENUE
Walsall Council,http://opendatacommunities.org/id/metropolitan-district-council/walsall ,WC135-94,28.02.2022,ADULT SOCIAL CARE,5 CARE SERVICES LTD,15/02/2022,490.49,6541-Domiciliary Care,THIRD PARTY PAYMENTS,PRIVATE CONTRACTOR,REVENUE
Walsall Council,http://opendatacommunities.org/id/metropolitan-district-council/walsall ,WC135-95,28.02.2022,CHILDRENS,5 CARE SERVICES LTD,18/02/2022,255.20,6220-Professional Fees & Services,SUPPLIES & SERVICES,SERVICES,REVENUE
Walsall Council,http://opendatacommunities.org/id/metropolitan-district-council/walsall ,WC135-96,28.02.2022,CHILDRENS,5 CARE SERVICES LTD,25/02/2022,255.20,6220-Professional Fees & Services,SUPPLIES & SERVICES,SERVICES,REVENUE
Walsall Council,http://opendatacommunities.org/id/metropolitan-district-council/walsall ,WC135-97,28.02.2022,ADULT SOCIAL CARE,5 CARE SERVICES LTD,10/02/2022,"21,488.59",6540-Professional Services-Priv Contractor & Other Agencies,THIRD PARTY PAYMENTS,PRIVATE CONTRACTOR,REVENUE
Walsall Council,http://opendatacommunities.org/id/metropolitan-district-council/walsall ,WC135-98,28.02.2022,"ECONOMY, ENVIRONMENT & COMMUNITIES",58TH WALSALL (AL HUDA) SCOUT GROUP,14/02/2022,"1,565.33",6430-Professional Services-Priv Contractor & Other Agencies,THIRD PARTY PAYMENTS,PRIVATE CONTRACTOR,REVENUE
Walsall Council,http://opendatacommunities.org/id/metropolitan-district-council/walsall ,WC135-99,28.02.2022,RESOURCES AND TRANSFORMATION,A D T FIRE AND SECURITY PLC,16/02/2022,364.27,6310-Repair & Maintenance of Furniture & Equipment,SUPPLIES & SERVICES,EQUIPMENT FURNITURE & MATERIALS,REVENUE
Walsall Council,http://opendatacommunities.org/id/metropolitan-district-council/walsall ,WC135-100,28.02.2022,RESOURCES AND TRANSFORMATION,A D T FIRE AND SECURITY PLC,16/02/2022,"1,420.17",6310-Repair & Maintenance of Furniture & Equipment,SUPPLIES & SERVICES,EQUIPMENT FURNITURE & MATERIALS,REVENUE
Walsall Council,http://opendatacommunities.org/id/metropolitan-district-council/walsall ,WC135-101,28.02.2022,"ECONOMY, ENVIRONMENT & COMMUNITIES",A F BLAKEMORE & SON LTD,22/02/2022,333.81,6413-Food & Drink Supplies,SUPPLIES & SERVICES,CATERING,REVENUE
Walsall Council,http://opendatacommunities.org/id/metropolitan-district-council/walsall ,WC135-102,28.02.2022,"ECONOMY, ENVIRONMENT & COMMUNITIES",AAINA COMMUNITY HUB,14/02/2022,"1,496.34",6430-Professional Services-Priv Contractor & Other Agencies,THIRD PARTY PAYMENTS,PRIVATE CONTRACTOR,REVENUE
Walsall Council,http://opendatacommunities.org/id/metropolitan-district-council/walsall ,WC135-103,28.02.2022,"ECONOMY, ENVIRONMENT & COMMUNITIES",AAINA COMMUNITY HUB,15/02/2022,"1,496.34",6430-Professional Services-Priv Contractor & Other Agencies,THIRD PARTY PAYMENTS,PRIVATE CONTRACTOR,REVENUE
Walsall Council,http://opendatacommunities.org/id/metropolitan-district-council/walsall ,WC135-104,28.02.2022,"ECONOMY, ENVIRONMENT & COMMUNITIES",AAINA COMMUNITY HUB,07/02/2022,944.97,6313-Grants to Other Orgs,SUPPLIES & SERVICES,GRANTS (EXP) & SUBSCRIPTIONS,REVENUE
Walsall Council,http://opendatacommunities.org/id/metropolitan-district-council/walsall ,WC135-105,28.02.2022,"ECONOMY, ENVIRONMENT & COMMUNITIES",AAINA COMMUNITY HUB,11/02/2022,944.97,6313-Grants to Other Orgs,SUPPLIES & SERVICES,GRANTS (EXP) & SUBSCRIPTIONS,REVENUE
Walsall Council,http://opendatacommunities.org/id/metropolitan-district-council/walsall ,WC135-106,28.02.2022,ADULT SOCIAL CARE,ABBEY COURT NURSING & RESIDEN,15/02/2022,"2,331.08",6541-Residential EMI,THIRD PARTY PAYMENTS,PRIVATE CONTRACTOR,REVENUE
Walsall Council,http://opendatacommunities.org/id/metropolitan-district-council/walsall ,WC135-107,28.02.2022,ADULT SOCIAL CARE,ABBEY COURT NURSING & RESIDEN,15/02/2022,"2,571.08",6541-Residential EMI,THIRD PARTY PAYMENTS,PRIVATE CONTRACTOR,REVENUE
Walsall Council,http://opendatacommunities.org/id/metropolitan-district-council/walsall ,WC135-108,28.02.2022,ADULT SOCIAL CARE,ABBEY COURT NURSING & RESIDEN,15/02/2022,"2,064.44",6541-Residential,THIRD PARTY PAYMENTS,PRIVATE CONTRACTOR,REVENUE
Walsall Council,http://opendatacommunities.org/id/metropolitan-district-council/walsall ,WC135-109,28.02.2022,ADULT SOCIAL CARE,ABBEY HEALTHCARE HOMES LTD,15/02/2022,"3,133.76",6541-Residential,THIRD PARTY PAYMENTS,PRIVATE CONTRACTOR,REVENUE
Walsall Council,http://opendatacommunities.org/id/metropolitan-district-council/walsall ,WC135-110,28.02.2022,ADULT SOCIAL CARE,ABBEY HEALTHCARE HOMES LTD,15/02/2022,"3,133.76",6541-Residential,THIRD PARTY PAYMENTS,PRIVATE CONTRACTOR,REVENUE
Walsall Council,http://opendatacommunities.org/id/metropolitan-district-council/walsall ,WC135-111,28.02.2022,ADULT SOCIAL CARE,ABBEY HEALTHCARE HOMES LTD,15/02/2022,"3,551.56",6541-Residential,THIRD PARTY PAYMENTS,PRIVATE CONTRACTOR,REVENUE
Walsall Council,http://opendatacommunities.org/id/metropolitan-district-council/walsall ,WC135-112,28.02.2022,ADULT SOCIAL CARE,ABBEY HEALTHCARE HOMES LTD,15/02/2022,"2,396.36",6541-Residential,THIRD PARTY PAYMENTS,PRIVATE CONTRACTOR,REVENUE
Walsall Council,http://opendatacommunities.org/id/metropolitan-district-council/walsall ,WC135-113,28.02.2022,CHILDRENS,ABC DAY NURSERY (WILLENHALL) LIMITED,14/02/2022,"4,232.25",1184-Other-Grants to Other Orgs,SUPPLIES & SERVICES,GRANTS (EXP) & SUBSCRIPTIONS,REVENUE
Walsall Council,http://opendatacommunities.org/id/metropolitan-district-council/walsall ,WC135-114,28.02.2022,CHILDRENS,ABC DAY NURSERY (WILLENHALL) LIMITED,14/02/2022,"1,265.40",1184-Other-Grants to Other Orgs,SUPPLIES & SERVICES,GRANTS (EXP) & SUBSCRIPTIONS,REVENUE
Walsall Council,http://opendatacommunities.org/id/metropolitan-district-council/walsall ,WC135-115,28.02.2022,ADULT SOCIAL CARE,REDACTED,02/02/2022,"2,132.48",6541-Direct Payment,THIRD PARTY PAYMENTS,PRIVATE CONTRACTOR,REVENUE
Walsall Council,http://opendatacommunities.org/id/metropolitan-district-council/walsall ,WC135-116,28.02.2022,CHILDRENS,ABLEWELL CARS,01/02/2022,595.62,6241-Hire of Vehicle with Driver,TRANSPORT,DIRECT TRANSPORT COSTS,REVENUE
Walsall Council,http://opendatacommunities.org/id/metropolitan-district-council/walsall ,WC135-117,28.02.2022,CHILDRENS,ABLEWELL CARS,01/02/2022,"1,168.00",6241-Hire of Vehicle with Driver,TRANSPORT,DIRECT TRANSPORT COSTS,REVENUE
Walsall Council,http://opendatacommunities.org/id/metropolitan-district-council/walsall ,WC135-118,28.02.2022,CHILDRENS,ABLEWELL CARS,01/02/2022,889.20,6241-Hire of Vehicle with Driver,TRANSPORT,DIRECT TRANSPORT COSTS,REVENUE
Walsall Council,http://opendatacommunities.org/id/metropolitan-district-council/walsall ,WC135-119,28.02.2022,CHILDRENS,ABLEWELL CARS,01/02/2022,360.00,6241-Hire of Vehicle with Driver,TRANSPORT,DIRECT TRANSPORT COSTS,REVENUE
Walsall Council,http://opendatacommunities.org/id/metropolitan-district-council/walsall ,WC135-120,28.02.2022,CHILDRENS,ABLEWELL CARS,01/02/2022,748.80,6241-Hire of Vehicle with Driver,TRANSPORT,DIRECT TRANSPORT COSTS,REVENUE
Walsall Council,http://opendatacommunities.org/id/metropolitan-district-council/walsall ,WC135-121,28.02.2022,CHILDRENS,ABLEWELL CARS,01/02/2022,457.92,6241-Hire of Vehicle with Driver,TRANSPORT,DIRECT TRANSPORT COSTS,REVENUE
Walsall Council,http://opendatacommunities.org/id/metropolitan-district-council/walsall ,WC135-122,28.02.2022,CHILDRENS,ABS TAXIS (ALDRIDGE),01/02/2022,888.30,6241-Hire of Vehicle with Driver,TRANSPORT,DIRECT TRANSPORT COSTS,REVENUE
Walsall Council,http://opendatacommunities.org/id/metropolitan-district-council/walsall ,WC135-123,28.02.2022,CHILDRENS,ABS TAXIS (ALDRIDGE),01/02/2022,725.60,6241-Hire of Vehicle with Driver,TRANSPORT,DIRECT TRANSPORT COSTS,REVENUE
Walsall Council,http://opendatacommunities.org/id/metropolitan-district-council/walsall ,WC135-124,28.02.2022,CHILDRENS,ABS TAXIS (ALDRIDGE),01/02/2022,754.20,6241-Hire of Vehicle with Driver,TRANSPORT,DIRECT TRANSPORT COSTS,REVENUE
Walsall Council,http://opendatacommunities.org/id/metropolitan-district-council/walsall ,WC135-125,28.02.2022,CHILDRENS,ABU BAKR NURSERY,14/02/2022,"4,961.25",1184-Other-Grants to Other Orgs,SUPPLIES & SERVICES,GRANTS (EXP) & SUBSCRIPTIONS,REVENUE
Walsall Council,http://opendatacommunities.org/id/metropolitan-district-council/walsall ,WC135-126,28.02.2022,CHILDRENS,ABU BAKR NURSERY,14/02/2022,"20,844.90",1184-Other-Grants to Other Orgs,SUPPLIES & SERVICES,GRANTS (EXP) & SUBSCRIPTIONS,REVENUE
Walsall Council,http://opendatacommunities.org/id/metropolitan-district-council/walsall ,WC135-127,28.02.2022,"ECONOMY, ENVIRONMENT & COMMUNITIES",AC OPTICS LTD,01/02/2022,635.11,6313-Grants to Other Orgs,SUPPLIES & SERVICES,GRANTS (EXP) & SUBSCRIPTIONS,REVENUE
Walsall Council,http://opendatacommunities.org/id/metropolitan-district-council/walsall ,WC135-128,28.02.2022,"ECONOMY, ENVIRONMENT & COMMUNITIES",AC OPTICS LTD,08/02/2022,710.64,6313-Grants to Other Orgs,SUPPLIES & SERVICES,GRANTS (EXP) & SUBSCRIPTIONS,REVENUE
Walsall Council,http://opendatacommunities.org/id/metropolitan-district-council/walsall ,WC135-129,28.02.2022,"ECONOMY, ENVIRONMENT & COMMUNITIES",AC OPTICS LTD,01/02/2022,472.32,6313-Grants to Other Orgs,SUPPLIES & SERVICES,GRANTS (EXP) & SUBSCRIPTIONS,REVENUE
Walsall Council,http://opendatacommunities.org/id/metropolitan-district-council/walsall ,WC135-130,28.02.2022,CHILDRENS,ACCALIA CARE SERVICES LTD,22/02/2022,"20,000.00",6223-External Residential Care-Oth Agency Provision,THIRD PARTY PAYMENTS,PRIVATE CONTRACTOR,REVENUE
Walsall Council,http://opendatacommunities.org/id/metropolitan-district-council/walsall ,WC135-131,28.02.2022,ADULT SOCIAL CARE,ACCESS UK LTD ,15/02/2022,"18,315.00",6551-Repair & Maintenance of Furniture & Equipment,SUPPLIES & SERVICES,EQUIPMENT FURNITURE & MATERIALS,REVENUE
Walsall Council,http://opendatacommunities.org/id/metropolitan-district-council/walsall ,WC135-132,28.02.2022,ADULT SOCIAL CARE,ACCESS UK LTD ,22/02/2022,"18,315.00",6551-Repair & Maintenance of Furniture & Equipment,SUPPLIES & SERVICES,EQUIPMENT FURNITURE & MATERIALS,REVENUE
Walsall Council,http://opendatacommunities.org/id/metropolitan-district-council/walsall ,WC135-133,28.02.2022,CHILDRENS,ACCOMPANIED CARE,23/02/2022,"3,602.47",6223-Accommodation and Related Costs-Assistance to S/S Clients,TRANSFER PAYMENTS,ADULT SOCIAL SERVICES CLIENT,REVENUE
Walsall Council,http://opendatacommunities.org/id/metropolitan-district-council/walsall ,WC135-134,28.02.2022,ADULT SOCIAL CARE,ACCOMPLISH GROUP LTD,15/02/2022,"7,881.48",6541-Residential,THIRD PARTY PAYMENTS,PRIVATE CONTRACTOR,REVENUE
Walsall Council,http://opendatacommunities.org/id/metropolitan-district-council/walsall ,WC135-135,28.02.2022,ADULT SOCIAL CARE,ACCORD HOUSING ASSOCIATION LIMITED - HOBS MEADOW,15/02/2022,"4,706.24",6541-Residential,THIRD PARTY PAYMENTS,PRIVATE CONTRACTOR,REVENUE
Walsall Council,http://opendatacommunities.org/id/metropolitan-district-council/walsall ,WC135-136,28.02.2022,ADULT SOCIAL CARE,ACCORD HOUSING ASSOCIATION LIMITED - HOBS MEADOW,15/02/2022,"4,706.24",6541-Residential,THIRD PARTY PAYMENTS,PRIVATE CONTRACTOR,REVENUE
Walsall Council,http://opendatacommunities.org/id/metropolitan-district-council/walsall ,WC135-137,28.02.2022,ADULT SOCIAL CARE,ACCORD HOUSING ASSOCIATION LIMITED - HOBS MEADOW,15/02/2022,"4,706.24",6541-Residential,THIRD PARTY PAYMENTS,PRIVATE CONTRACTOR,REVENUE
Walsall Council,http://opendatacommunities.org/id/metropolitan-district-council/walsall ,WC135-138,28.02.2022,ADULT SOCIAL CARE,ACCORD HOUSING ASSOCIATION LIMITED - HOBS MEADOW,15/02/2022,"4,706.24",6541-Residential,THIRD PARTY PAYMENTS,PRIVATE CONTRACTOR,REVENUE
Walsall Council,http://opendatacommunities.org/id/metropolitan-district-council/walsall ,WC135-139,28.02.2022,ADULT SOCIAL CARE,ACE CARE AGENCY,10/02/2022,"1,834.39",6540-Professional Services-Priv Contractor & Other Agencies,THIRD PARTY PAYMENTS,PRIVATE CONTRACTOR,REVENUE
Walsall Council,http://opendatacommunities.org/id/metropolitan-district-council/walsall ,WC135-140,28.02.2022,CHILDRENS,ACE CARS & MINIBUSES LTD,01/02/2022,856.00,6241-Hire of Vehicle with Driver,TRANSPORT,DIRECT TRANSPORT COSTS,REVENUE
Walsall Council,http://opendatacommunities.org/id/metropolitan-district-council/walsall ,WC135-141,28.02.2022,CHILDRENS,ACE CARS & MINIBUSES LTD,01/02/2022,856.00,6241-Hire of Vehicle with Driver,TRANSPORT,DIRECT TRANSPORT COSTS,REVENUE
Walsall Council,http://opendatacommunities.org/id/metropolitan-district-council/walsall ,WC135-142,28.02.2022,CHILDRENS,ACE CARS & MINIBUSES LTD,01/02/2022,"1,075.50",6241-Hire of Vehicle with Driver,TRANSPORT,DIRECT TRANSPORT COSTS,REVENUE
Walsall Council,http://opendatacommunities.org/id/metropolitan-district-council/walsall ,WC135-143,28.02.2022,CHILDRENS,ACE CARS & MINIBUSES LTD,01/02/2022,"1,075.50",6241-Hire of Vehicle with Driver,TRANSPORT,DIRECT TRANSPORT COSTS,REVENUE
Walsall Council,http://opendatacommunities.org/id/metropolitan-district-council/walsall ,WC135-144,28.02.2022,CHILDRENS,ACE CARS & MINIBUSES LTD,01/02/2022,"1,075.50",6241-Hire of Vehicle with Driver,TRANSPORT,DIRECT TRANSPORT COSTS,REVENUE
Walsall Council,http://opendatacommunities.org/id/metropolitan-district-council/walsall ,WC135-145,28.02.2022,CHILDRENS,ACE CARS & MINIBUSES LTD,01/02/2022,"1,224.90",6241-Hire of Vehicle with Driver,TRANSPORT,DIRECT TRANSPORT COSTS,REVENUE
Walsall Council,http://opendatacommunities.org/id/metropolitan-district-council/walsall ,WC135-146,28.02.2022,CHILDRENS,ACE CARS & MINIBUSES LTD,01/02/2022,"1,224.90",6241-Hire of Vehicle with Driver,TRANSPORT,DIRECT TRANSPORT COSTS,REVENUE
Walsall Council,http://opendatacommunities.org/id/metropolitan-district-council/walsall ,WC135-147,28.02.2022,CHILDRENS,ACE CARS & MINIBUSES LTD,01/02/2022,"2,106.00",6241-Hire of Vehicle with Driver,TRANSPORT,DIRECT TRANSPORT COSTS,REVENUE
Walsall Council,http://opendatacommunities.org/id/metropolitan-district-council/walsall ,WC135-148,28.02.2022,CHILDRENS,ACE CARS & MINIBUSES LTD,01/02/2022,856.00,6241-Hire of Vehicle with Driver,TRANSPORT,DIRECT TRANSPORT COSTS,REVENUE
Walsall Council,http://opendatacommunities.org/id/metropolitan-district-council/walsall ,WC135-149,28.02.2022,CHILDRENS,ACE CARS & MINIBUSES LTD,01/02/2022,"1,699.20",6241-Hire of Vehicle with Driver,TRANSPORT,DIRECT TRANSPORT COSTS,REVENUE
Walsall Council,http://opendatacommunities.org/id/metropolitan-district-council/walsall ,WC135-150,28.02.2022,CHILDRENS,ACE CARS & MINIBUSES LTD,01/02/2022,856.00,6241-Hire of Vehicle with Driver,TRANSPORT,DIRECT TRANSPORT COSTS,REVENUE
Walsall Council,http://opendatacommunities.org/id/metropolitan-district-council/walsall ,WC135-151,28.02.2022,CHILDRENS,ACE CARS & MINIBUSES LTD,01/02/2022,"1,224.90",6241-Hire of Vehicle with Driver,TRANSPORT,DIRECT TRANSPORT COSTS,REVENUE
Walsall Council,http://opendatacommunities.org/id/metropolitan-district-council/walsall ,WC135-152,28.02.2022,CHILDRENS,ACE CARS & MINIBUSES LTD,01/02/2022,856.00,6241-Hire of Vehicle with Driver,TRANSPORT,DIRECT TRANSPORT COSTS,REVENUE
Walsall Council,http://opendatacommunities.org/id/metropolitan-district-council/walsall ,WC135-153,28.02.2022,CHILDRENS,ACE CARS & MINIBUSES LTD,01/02/2022,856.00,6241-Hire of Vehicle with Driver,TRANSPORT,DIRECT TRANSPORT COSTS,REVENUE
Walsall Council,http://opendatacommunities.org/id/metropolitan-district-council/walsall ,WC135-154,28.02.2022,CHILDRENS,ACE CARS & MINIBUSES LTD,01/02/2022,"1,026.00",6241-Hire of Vehicle with Driver,TRANSPORT,DIRECT TRANSPORT COSTS,REVENUE
Walsall Council,http://opendatacommunities.org/id/metropolitan-district-council/walsall ,WC135-155,28.02.2022,CHILDRENS,ACE CARS & MINIBUSES LTD,01/02/2022,"1,075.50",6241-Hire of Vehicle with Driver,TRANSPORT,DIRECT TRANSPORT COSTS,REVENUE
Walsall Council,http://opendatacommunities.org/id/metropolitan-district-council/walsall ,WC135-156,28.02.2022,CHILDRENS,ACE CARS & MINIBUSES LTD,01/02/2022,"1,026.00",6241-Hire of Vehicle with Driver,TRANSPORT,DIRECT TRANSPORT COSTS,REVENUE
Walsall Council,http://opendatacommunities.org/id/metropolitan-district-council/walsall ,WC135-157,28.02.2022,CHILDRENS,ACE CARS & MINIBUSES LTD,01/02/2022,856.00,6241-Hire of Vehicle with Driver,TRANSPORT,DIRECT TRANSPORT COSTS,REVENUE
Walsall Council,http://opendatacommunities.org/id/metropolitan-district-council/walsall ,WC135-158,28.02.2022,CHILDRENS,ACE CARS & MINIBUSES LTD,01/02/2022,944.00,6241-Hire of Vehicle with Driver,TRANSPORT,DIRECT TRANSPORT COSTS,REVENUE
Walsall Council,http://opendatacommunities.org/id/metropolitan-district-council/walsall ,WC135-159,28.02.2022,CHILDRENS,ACE CARS & MINIBUSES LTD,01/02/2022,856.00,6241-Hire of Vehicle with Driver,TRANSPORT,DIRECT TRANSPORT COSTS,REVENUE
Walsall Council,http://opendatacommunities.org/id/metropolitan-district-council/walsall ,WC135-160,28.02.2022,CHILDRENS,ACE CARS & MINIBUSES LTD,01/02/2022,856.00,6241-Hire of Vehicle with Driver,TRANSPORT,DIRECT TRANSPORT COSTS,REVENUE
Walsall Council,http://opendatacommunities.org/id/metropolitan-district-council/walsall ,WC135-161,28.02.2022,CHILDRENS,ACE CARS & MINIBUSES LTD,01/02/2022,944.00,6241-Hire of Vehicle with Driver,TRANSPORT,DIRECT TRANSPORT COSTS,REVENUE
Walsall Council,http://opendatacommunities.org/id/metropolitan-district-council/walsall ,WC135-162,28.02.2022,CHILDRENS,ACE CARS & MINIBUSES LTD,01/02/2022,"1,075.50",6241-Hire of Vehicle with Driver,TRANSPORT,DIRECT TRANSPORT COSTS,REVENUE
Walsall Council,http://opendatacommunities.org/id/metropolitan-district-council/walsall ,WC135-163,28.02.2022,CHILDRENS,ACE CARS & MINIBUSES LTD,01/02/2022,"1,224.90",6241-Hire of Vehicle with Driver,TRANSPORT,DIRECT TRANSPORT COSTS,REVENUE
Walsall Council,http://opendatacommunities.org/id/metropolitan-district-council/walsall ,WC135-164,28.02.2022,CHILDRENS,ACE CARS & MINIBUSES LTD,01/02/2022,"1,224.90",6241-Hire of Vehicle with Driver,TRANSPORT,DIRECT TRANSPORT COSTS,REVENUE
Walsall Council,http://opendatacommunities.org/id/metropolitan-district-council/walsall ,WC135-165,28.02.2022,CHILDRENS,ACE CARS & MINIBUSES LTD,01/02/2022,944.00,6241-Hire of Vehicle with Driver,TRANSPORT,DIRECT TRANSPORT COSTS,REVENUE
Walsall Council,http://opendatacommunities.org/id/metropolitan-district-council/walsall ,WC135-166,28.02.2022,CHILDRENS,ACE CARS & MINIBUSES LTD,01/02/2022,"1,026.00",6241-Hire of Vehicle with Driver,TRANSPORT,DIRECT TRANSPORT COSTS,REVENUE
Walsall Council,http://opendatacommunities.org/id/metropolitan-district-council/walsall ,WC135-167,28.02.2022,CHILDRENS,ACE CARS & MINIBUSES LTD,01/02/2022,"1,224.90",6241-Hire of Vehicle with Driver,TRANSPORT,DIRECT TRANSPORT COSTS,REVENUE
Walsall Council,http://opendatacommunities.org/id/metropolitan-district-council/walsall ,WC135-168,28.02.2022,CHILDRENS,ACE CARS & MINIBUSES LTD,01/02/2022,"1,224.90",6241-Hire of Vehicle with Driver,TRANSPORT,DIRECT TRANSPORT COSTS,REVENUE
Walsall Council,http://opendatacommunities.org/id/metropolitan-district-council/walsall ,WC135-169,28.02.2022,CHILDRENS,ACE CARS & MINIBUSES LTD,01/02/2022,"1,224.90",6241-Hire of Vehicle with Driver,TRANSPORT,DIRECT TRANSPORT COSTS,REVENUE
Walsall Council,http://opendatacommunities.org/id/metropolitan-district-council/walsall ,WC135-170,28.02.2022,CHILDRENS,ACE CARS & MINIBUSES LTD,01/02/2022,944.00,6241-Hire of Vehicle with Driver,TRANSPORT,DIRECT TRANSPORT COSTS,REVENUE
Walsall Council,http://opendatacommunities.org/id/metropolitan-district-council/walsall ,WC135-171,28.02.2022,CHILDRENS,ACE CARS & MINIBUSES LTD,01/02/2022,"1,076.16",6241-Hire of Vehicle with Driver,TRANSPORT,DIRECT TRANSPORT COSTS,REVENUE
Walsall Council,http://opendatacommunities.org/id/metropolitan-district-council/walsall ,WC135-172,28.02.2022,CHILDRENS,ACE CARS & MINIBUSES LTD,01/02/2022,"1,000.64",6241-Hire of Vehicle with Driver,TRANSPORT,DIRECT TRANSPORT COSTS,REVENUE
Walsall Council,http://opendatacommunities.org/id/metropolitan-district-council/walsall ,WC135-173,28.02.2022,CHILDRENS,ACE CARS & MINIBUSES LTD,01/02/2022,944.00,6241-Hire of Vehicle with Driver,TRANSPORT,DIRECT TRANSPORT COSTS,REVENUE
Walsall Council,http://opendatacommunities.org/id/metropolitan-district-council/walsall ,WC135-174,28.02.2022,CHILDRENS,ACE CARS & MINIBUSES LTD,01/02/2022,"1,026.00",6241-Hire of Vehicle with Driver,TRANSPORT,DIRECT TRANSPORT COSTS,REVENUE
Walsall Council,http://opendatacommunities.org/id/metropolitan-district-council/walsall ,WC135-175,28.02.2022,CHILDRENS,ACE CARS & MINIBUSES LTD,01/02/2022,"1,075.50",6241-Hire of Vehicle with Driver,TRANSPORT,DIRECT TRANSPORT COSTS,REVENUE
Walsall Council,http://opendatacommunities.org/id/metropolitan-district-council/walsall ,WC135-176,28.02.2022,ADULT SOCIAL CARE,ACEPAY LTD (COTTAGE NUR HOME),15/02/2022,"2,419.96",6541-Nursing,THIRD PARTY PAYMENTS,PRIVATE CONTRACTOR,REVENUE
Walsall Council,http://opendatacommunities.org/id/metropolitan-district-council/walsall ,WC135-177,28.02.2022,ADULT SOCIAL CARE,ACEPAY LTD (COTTAGE NUR HOME),15/02/2022,"2,419.96",6541-Nursing,THIRD PARTY PAYMENTS,PRIVATE CONTRACTOR,REVENUE
Walsall Council,http://opendatacommunities.org/id/metropolitan-district-council/walsall ,WC135-178,28.02.2022,ADULT SOCIAL CARE,ACEPAY LTD (COTTAGE NUR HOME),15/02/2022,"2,419.96",6541-Nursing,THIRD PARTY PAYMENTS,PRIVATE CONTRACTOR,REVENUE
Walsall Council,http://opendatacommunities.org/id/metropolitan-district-council/walsall ,WC135-179,28.02.2022,ADULT SOCIAL CARE,ACEPAY LTD (COTTAGE NUR HOME),15/02/2022,"2,419.96",6541-Nursing,THIRD PARTY PAYMENTS,PRIVATE CONTRACTOR,REVENUE
Walsall Council,http://opendatacommunities.org/id/metropolitan-district-council/walsall ,WC135-180,28.02.2022,ADULT SOCIAL CARE,ACEPAY LTD (COTTAGE NUR HOME),15/02/2022,"2,419.96",6541-Nursing,THIRD PARTY PAYMENTS,PRIVATE CONTRACTOR,REVENUE
Walsall Council,http://opendatacommunities.org/id/metropolitan-district-council/walsall ,WC135-181,28.02.2022,ADULT SOCIAL CARE,ACEPAY LTD (COTTAGE NUR HOME),15/02/2022,"2,419.96",6541-Nursing,THIRD PARTY PAYMENTS,PRIVATE CONTRACTOR,REVENUE
Walsall Council,http://opendatacommunities.org/id/metropolitan-district-council/walsall ,WC135-182,28.02.2022,ADULT SOCIAL CARE,ACEPAY LTD (COTTAGE NUR HOME),15/02/2022,"2,619.96",6541-Nursing,THIRD PARTY PAYMENTS,PRIVATE CONTRACTOR,REVENUE
Walsall Council,http://opendatacommunities.org/id/metropolitan-district-council/walsall ,WC135-183,28.02.2022,ADULT SOCIAL CARE,ACEPAY LTD (COTTAGE NUR HOME),15/02/2022,"2,331.08",6541-Residential EMI,THIRD PARTY PAYMENTS,PRIVATE CONTRACTOR,REVENUE
Walsall Council,http://opendatacommunities.org/id/metropolitan-district-council/walsall ,WC135-184,28.02.2022,ADULT SOCIAL CARE,ACEPAY LTD (COTTAGE NUR HOME),15/02/2022,"1,987.82",6541-Nursing,THIRD PARTY PAYMENTS,PRIVATE CONTRACTOR,REVENUE
Walsall Council,http://opendatacommunities.org/id/metropolitan-district-council/walsall ,WC135-185,28.02.2022,ADULT SOCIAL CARE,ACEPAY LTD (COTTAGE NUR HOME),15/02/2022,"2,722.96",6541-Nursing EMI,THIRD PARTY PAYMENTS,PRIVATE CONTRACTOR,REVENUE
Walsall Council,http://opendatacommunities.org/id/metropolitan-district-council/walsall ,WC135-186,28.02.2022,ADULT SOCIAL CARE,ACEPAY LTD (COTTAGE NUR HOME),15/02/2022,"2,722.96",6541-Nursing EMI,THIRD PARTY PAYMENTS,PRIVATE CONTRACTOR,REVENUE
Walsall Council,http://opendatacommunities.org/id/metropolitan-district-council/walsall ,WC135-187,28.02.2022,ADULT SOCIAL CARE,ACEPAY LTD (COTTAGE NUR HOME),15/02/2022,"2,419.96",6541-Nursing,THIRD PARTY PAYMENTS,PRIVATE CONTRACTOR,REVENUE
Walsall Council,http://opendatacommunities.org/id/metropolitan-district-council/walsall ,WC135-188,28.02.2022,ADULT SOCIAL CARE,ACEPAY LTD (COTTAGE NUR HOME),15/02/2022,"3,284.23",6541-Nursing,THIRD PARTY PAYMENTS,PRIVATE CONTRACTOR,REVENUE
Walsall Council,http://opendatacommunities.org/id/metropolitan-district-council/walsall ,WC135-189,28.02.2022,ADULT SOCIAL CARE,ACEPAY LTD (COTTAGE NUR HOME),15/02/2022,"2,419.96",6541-Nursing,THIRD PARTY PAYMENTS,PRIVATE CONTRACTOR,REVENUE
Walsall Council,http://opendatacommunities.org/id/metropolitan-district-council/walsall ,WC135-190,28.02.2022,ADULT SOCIAL CARE,ACEPAY LTD (COTTAGE NUR HOME),15/02/2022,"2,331.08",6541-Residential EMI,THIRD PARTY PAYMENTS,PRIVATE CONTRACTOR,REVENUE
Walsall Council,http://opendatacommunities.org/id/metropolitan-district-council/walsall ,WC135-191,28.02.2022,ADULT SOCIAL CARE,ACEPAY LTD (COTTAGE NUR HOME),15/02/2022,"3,209.20",6541-Nursing EMI,THIRD PARTY PAYMENTS,PRIVATE CONTRACTOR,REVENUE
Walsall Council,http://opendatacommunities.org/id/metropolitan-district-council/walsall ,WC135-192,28.02.2022,CHILDRENS,ACIRE CARE LTD,04/02/2022,"8,233.60",6223-Accommodation and Related Costs-Assistance to S/S Clients,TRANSFER PAYMENTS,ADULT SOCIAL SERVICES CLIENT,REVENUE
Walsall Council,http://opendatacommunities.org/id/metropolitan-district-council/walsall ,WC135-193,28.02.2022,CHILDRENS,ACORN CARE & EDUCATION LTD (SALES),22/02/2022,"14,000.00",6223-External Residential Care-Oth Agency Provision,THIRD PARTY PAYMENTS,PRIVATE CONTRACTOR,REVENUE
Walsall Council,http://opendatacommunities.org/id/metropolitan-district-council/walsall ,WC135-194,28.02.2022,CHILDRENS,ACORN CARE & EDUCATION LTD (SALES),23/02/2022,"6,306.18",1220-Professional Fees & Services,SUPPLIES & SERVICES,SERVICES,REVENUE
Walsall Council,http://opendatacommunities.org/id/metropolitan-district-council/walsall ,WC135-195,28.02.2022,CHILDRENS,ACORNS CHILDRENS HOSPICE TRUST,17/02/2022,"1,700.00",6220-Professional Fees & Services,SUPPLIES & SERVICES,SERVICES,REVENUE
Walsall Council,http://opendatacommunities.org/id/metropolitan-district-council/walsall ,WC135-196,28.02.2022,CHILDRENS,ACPAS LIMITED,25/02/2022,842.40,6222-Professional Fees & Services,SUPPLIES & SERVICES,SERVICES,REVENUE
Walsall Council,http://opendatacommunities.org/id/metropolitan-district-council/walsall ,WC135-197,28.02.2022,CHILDRENS,ACPAS LIMITED,17/02/2022,273.07,6220-School Only Payments - Catering,THIRD PARTY PAYMENTS,INDEPENDENT UNIT WITHIN COUNCIL,REVENUE
Walsall Council,http://opendatacommunities.org/id/metropolitan-district-council/walsall ,WC135-198,28.02.2022,ADULT SOCIAL CARE,REDACTED,02/02/2022,734.39,6541-Direct Payment,THIRD PARTY PAYMENTS,PRIVATE CONTRACTOR,REVENUE
Walsall Council,http://opendatacommunities.org/id/metropolitan-district-council/walsall ,WC135-199,28.02.2022,"ECONOMY, ENVIRONMENT & COMMUNITIES",ADEPT,23/02/2022,"1,290.00",6315-Subscriptions,SUPPLIES & SERVICES,GRANTS (EXP) & SUBSCRIPTIONS,REVENUE
Walsall Council,http://opendatacommunities.org/id/metropolitan-district-council/walsall ,WC135-200,28.02.2022,CHILDRENS,REDACTED,10/02/2022,363.24,6223-Residents Orders,TRANSFER PAYMENTS,CHILDREN SOCIAL SERVICES CLIENT,REVENUE
Walsall Council,http://opendatacommunities.org/id/metropolitan-district-council/walsall ,WC135-201,28.02.2022,ADULT SOCIAL CARE,REDACTED,02/02/2022,"2,083.20",6541-Direct Payment,THIRD PARTY PAYMENTS,PRIVATE CONTRACTOR,REVENUE
Walsall Council,http://opendatacommunities.org/id/metropolitan-district-council/walsall ,WC135-202,28.02.2022,ADULT SOCIAL CARE,ADVANCE HEALTH CARE (UK) LTD,03/02/2022,"1,028.18",6541-Domiciliary Care,THIRD PARTY PAYMENTS,PRIVATE CONTRACTOR,REVENUE
Walsall Council,http://opendatacommunities.org/id/metropolitan-district-council/walsall ,WC135-203,28.02.2022,ADULT SOCIAL CARE,ADVANCE HEALTH CARE (UK) LTD,03/02/2022,763.00,6541-Domiciliary Care,THIRD PARTY PAYMENTS,PRIVATE CONTRACTOR,REVENUE
Walsall Council,http://opendatacommunities.org/id/metropolitan-district-council/walsall ,WC135-204,28.02.2022,ADULT SOCIAL CARE,ADVANCE HEALTH CARE (UK) LTD,03/02/2022,"1,744.12",6541-Domiciliary Care,THIRD PARTY PAYMENTS,PRIVATE CONTRACTOR,REVENUE
Walsall Council,http://opendatacommunities.org/id/metropolitan-district-council/walsall ,WC135-205,28.02.2022,ADULT SOCIAL CARE,ADVANCE HEALTH CARE (UK) LTD,10/02/2022,"2,107.84",6541-Domiciliary Care,THIRD PARTY PAYMENTS,PRIVATE CONTRACTOR,REVENUE
Walsall Council,http://opendatacommunities.org/id/metropolitan-district-council/walsall ,WC135-206,28.02.2022,ADULT SOCIAL CARE,ADVANCE HEALTH CARE (UK) LTD,10/02/2022,"2,268.78",6541-Domiciliary Care,THIRD PARTY PAYMENTS,PRIVATE CONTRACTOR,REVENUE
Walsall Council,http://opendatacommunities.org/id/metropolitan-district-council/walsall ,WC135-207,28.02.2022,ADULT SOCIAL CARE,ADVANCE HEALTH CARE (UK) LTD,10/02/2022,"1,028.20",6541-Domiciliary Care,THIRD PARTY PAYMENTS,PRIVATE CONTRACTOR,REVENUE
Walsall Council,http://opendatacommunities.org/id/metropolitan-district-council/walsall ,WC135-208,28.02.2022,ADULT SOCIAL CARE,ADVANCE HEALTH CARE (UK) LTD,10/02/2022,"1,012.56",6541-Domiciliary Care,THIRD PARTY PAYMENTS,PRIVATE CONTRACTOR,REVENUE
Walsall Council,http://opendatacommunities.org/id/metropolitan-district-council/walsall ,WC135-209,28.02.2022,ADULT SOCIAL CARE,ADVANCE HEALTH CARE (UK) LTD,10/02/2022,763.00,6541-Domiciliary Care,THIRD PARTY PAYMENTS,PRIVATE CONTRACTOR,REVENUE
Walsall Council,http://opendatacommunities.org/id/metropolitan-district-council/walsall ,WC135-210,28.02.2022,ADULT SOCIAL CARE,ADVANCE HEALTH CARE (UK) LTD,10/02/2022,695.59,6541-Domiciliary Care,THIRD PARTY PAYMENTS,PRIVATE CONTRACTOR,REVENUE
Walsall Council,http://opendatacommunities.org/id/metropolitan-district-council/walsall ,WC135-211,28.02.2022,ADULT SOCIAL CARE,ADVANCE HEALTH CARE (UK) LTD,10/02/2022,726.88,6541-Domiciliary Care,THIRD PARTY PAYMENTS,PRIVATE CONTRACTOR,REVENUE
Walsall Council,http://opendatacommunities.org/id/metropolitan-district-council/walsall ,WC135-212,28.02.2022,ADULT SOCIAL CARE,ADVANCE HEALTH CARE (UK) LTD,10/02/2022,861.96,6541-Domiciliary Care,THIRD PARTY PAYMENTS,PRIVATE CONTRACTOR,REVENUE
Walsall Council,http://opendatacommunities.org/id/metropolitan-district-council/walsall ,WC135-213,28.02.2022,ADULT SOCIAL CARE,ADVANCE HEALTH CARE (UK) LTD,10/02/2022,"1,744.12",6541-Domiciliary Care,THIRD PARTY PAYMENTS,PRIVATE CONTRACTOR,REVENUE
Walsall Council,http://opendatacommunities.org/id/metropolitan-district-council/walsall ,WC135-214,28.02.2022,ADULT SOCIAL CARE,ADVANCE HEALTH CARE (UK) LTD,10/02/2022,825.28,6541-Domiciliary Care,THIRD PARTY PAYMENTS,PRIVATE CONTRACTOR,REVENUE
Walsall Council,http://opendatacommunities.org/id/metropolitan-district-council/walsall ,WC135-215,28.02.2022,ADULT SOCIAL CARE,ADVANCE HEALTH CARE (UK) LTD,10/02/2022,472.36,6541-Domiciliary Care,THIRD PARTY PAYMENTS,PRIVATE CONTRACTOR,REVENUE
Walsall Council,http://opendatacommunities.org/id/metropolitan-district-council/walsall ,WC135-216,28.02.2022,ADULT SOCIAL CARE,ADVANCE HEALTH CARE (UK) LTD,10/02/2022,825.28,6541-Domiciliary Care,THIRD PARTY PAYMENTS,PRIVATE CONTRACTOR,REVENUE
Walsall Council,http://opendatacommunities.org/id/metropolitan-district-council/walsall ,WC135-217,28.02.2022,ADULT SOCIAL CARE,ADVANCE HEALTH CARE (UK) LTD,01/02/2022,435.96,6541-Domiciliary Care,THIRD PARTY PAYMENTS,PRIVATE CONTRACTOR,REVENUE
Walsall Council,http://opendatacommunities.org/id/metropolitan-district-council/walsall ,WC135-218,28.02.2022,ADULT SOCIAL CARE,ADVANCE HEALTH CARE (UK) LTD,01/02/2022,490.49,6541-Domiciliary Care,THIRD PARTY PAYMENTS,PRIVATE CONTRACTOR,REVENUE
Walsall Council,http://opendatacommunities.org/id/metropolitan-district-council/walsall ,WC135-219,28.02.2022,ADULT SOCIAL CARE,ADVANCE HEALTH CARE (UK) LTD,01/02/2022,490.49,6541-Domiciliary Care,THIRD PARTY PAYMENTS,PRIVATE CONTRACTOR,REVENUE
Walsall Council,http://opendatacommunities.org/id/metropolitan-district-council/walsall ,WC135-220,28.02.2022,ADULT SOCIAL CARE,ADVANCE HEALTH CARE (UK) LTD,01/02/2022,635.81,6541-Domiciliary Care,THIRD PARTY PAYMENTS,PRIVATE CONTRACTOR,REVENUE
Walsall Council,http://opendatacommunities.org/id/metropolitan-district-council/walsall ,WC135-221,28.02.2022,ADULT SOCIAL CARE,ADVANCE HEALTH CARE (UK) LTD,01/02/2022,537.20,6541-Domiciliary Care,THIRD PARTY PAYMENTS,PRIVATE CONTRACTOR,REVENUE
Walsall Council,http://opendatacommunities.org/id/metropolitan-district-council/walsall ,WC135-222,28.02.2022,ADULT SOCIAL CARE,ADVANCE HEALTH CARE (UK) LTD,01/02/2022,490.49,6541-Domiciliary Care,THIRD PARTY PAYMENTS,PRIVATE CONTRACTOR,REVENUE
Walsall Council,http://opendatacommunities.org/id/metropolitan-district-council/walsall ,WC135-223,28.02.2022,ADULT SOCIAL CARE,ADVANCE HEALTH CARE (UK) LTD,01/02/2022,833.03,6541-Domiciliary Care,THIRD PARTY PAYMENTS,PRIVATE CONTRACTOR,REVENUE
Walsall Council,http://opendatacommunities.org/id/metropolitan-district-council/walsall ,WC135-224,28.02.2022,ADULT SOCIAL CARE,ADVANCE HEALTH CARE (UK) LTD,01/02/2022,490.49,6541-Domiciliary Care,THIRD PARTY PAYMENTS,PRIVATE CONTRACTOR,REVENUE
Walsall Council,http://opendatacommunities.org/id/metropolitan-district-council/walsall ,WC135-225,28.02.2022,ADULT SOCIAL CARE,ADVANCE HEALTH CARE (UK) LTD,01/02/2022,490.49,6541-Domiciliary Care,THIRD PARTY PAYMENTS,PRIVATE CONTRACTOR,REVENUE
Walsall Council,http://opendatacommunities.org/id/metropolitan-district-council/walsall ,WC135-226,28.02.2022,ADULT SOCIAL CARE,ADVANCE HEALTH CARE (UK) LTD,01/02/2022,490.49,6541-Domiciliary Care,THIRD PARTY PAYMENTS,PRIVATE CONTRACTOR,REVENUE
Walsall Council,http://opendatacommunities.org/id/metropolitan-district-council/walsall ,WC135-227,28.02.2022,ADULT SOCIAL CARE,ADVANCE HEALTH CARE (UK) LTD,01/02/2022,435.96,6541-Domiciliary Care,THIRD PARTY PAYMENTS,PRIVATE CONTRACTOR,REVENUE
Walsall Council,http://opendatacommunities.org/id/metropolitan-district-council/walsall ,WC135-228,28.02.2022,ADULT SOCIAL CARE,ADVANCE HEALTH CARE (UK) LTD,01/02/2022,490.49,6541-Domiciliary Care,THIRD PARTY PAYMENTS,PRIVATE CONTRACTOR,REVENUE
Walsall Council,http://opendatacommunities.org/id/metropolitan-district-council/walsall ,WC135-229,28.02.2022,ADULT SOCIAL CARE,ADVANCE HEALTH CARE (UK) LTD,01/02/2022,871.92,6541-Domiciliary Care,THIRD PARTY PAYMENTS,PRIVATE CONTRACTOR,REVENUE
Walsall Council,http://opendatacommunities.org/id/metropolitan-district-council/walsall ,WC135-230,28.02.2022,ADULT SOCIAL CARE,ADVANCE HEALTH CARE (UK) LTD,01/02/2022,381.50,6541-Domiciliary Care,THIRD PARTY PAYMENTS,PRIVATE CONTRACTOR,REVENUE
Walsall Council,http://opendatacommunities.org/id/metropolitan-district-council/walsall ,WC135-231,28.02.2022,ADULT SOCIAL CARE,ADVANCE HEALTH CARE (UK) LTD,01/02/2022,326.97,6541-Domiciliary Care,THIRD PARTY PAYMENTS,PRIVATE CONTRACTOR,REVENUE
Walsall Council,http://opendatacommunities.org/id/metropolitan-district-council/walsall ,WC135-232,28.02.2022,ADULT SOCIAL CARE,ADVANCE HEALTH CARE (UK) LTD,01/02/2022,454.16,6541-Domiciliary Care,THIRD PARTY PAYMENTS,PRIVATE CONTRACTOR,REVENUE
Walsall Council,http://opendatacommunities.org/id/metropolitan-district-council/walsall ,WC135-233,28.02.2022,ADULT SOCIAL CARE,ADVANCE HEALTH CARE (UK) LTD,01/02/2022,338.86,6541-Domiciliary Care,THIRD PARTY PAYMENTS,PRIVATE CONTRACTOR,REVENUE
Walsall Council,http://opendatacommunities.org/id/metropolitan-district-council/walsall ,WC135-234,28.02.2022,ADULT SOCIAL CARE,ADVANCE HEALTH CARE (UK) LTD,01/02/2022,490.49,6541-Domiciliary Care,THIRD PARTY PAYMENTS,PRIVATE CONTRACTOR,REVENUE
Walsall Council,http://opendatacommunities.org/id/metropolitan-district-council/walsall ,WC135-235,28.02.2022,ADULT SOCIAL CARE,ADVANCE HEALTH CARE (UK) LTD,01/02/2022,490.49,6541-Domiciliary Care,THIRD PARTY PAYMENTS,PRIVATE CONTRACTOR,REVENUE
Walsall Council,http://opendatacommunities.org/id/metropolitan-district-council/walsall ,WC135-236,28.02.2022,ADULT SOCIAL CARE,ADVANCE HEALTH CARE (UK) LTD,01/02/2022,435.96,6541-Domiciliary Care,THIRD PARTY PAYMENTS,PRIVATE CONTRACTOR,REVENUE
Walsall Council,http://opendatacommunities.org/id/metropolitan-district-council/walsall ,WC135-237,28.02.2022,ADULT SOCIAL CARE,ADVANCE HEALTH CARE (UK) LTD,01/02/2022,435.96,6541-Domiciliary Care,THIRD PARTY PAYMENTS,PRIVATE CONTRACTOR,REVENUE
Walsall Council,http://opendatacommunities.org/id/metropolitan-district-council/walsall ,WC135-238,28.02.2022,ADULT SOCIAL CARE,ADVANCE HEALTH CARE (UK) LTD,01/02/2022,490.49,6541-Domiciliary Care,THIRD PARTY PAYMENTS,PRIVATE CONTRACTOR,REVENUE
Walsall Council,http://opendatacommunities.org/id/metropolitan-district-council/walsall ,WC135-239,28.02.2022,ADULT SOCIAL CARE,ADVANCE HEALTH CARE (UK) LTD,01/02/2022,363.30,6541-Domiciliary Care,THIRD PARTY PAYMENTS,PRIVATE CONTRACTOR,REVENUE
Walsall Council,http://opendatacommunities.org/id/metropolitan-district-council/walsall ,WC135-240,28.02.2022,ADULT SOCIAL CARE,ADVANCE HEALTH CARE (UK) LTD,01/02/2022,490.49,6541-Domiciliary Care,THIRD PARTY PAYMENTS,PRIVATE CONTRACTOR,REVENUE
Walsall Council,http://opendatacommunities.org/id/metropolitan-district-council/walsall ,WC135-241,28.02.2022,ADULT SOCIAL CARE,ADVANCE HEALTH CARE (UK) LTD,01/02/2022,490.49,6541-Domiciliary Care,THIRD PARTY PAYMENTS,PRIVATE CONTRACTOR,REVENUE
Walsall Council,http://opendatacommunities.org/id/metropolitan-district-council/walsall ,WC135-242,28.02.2022,ADULT SOCIAL CARE,ADVANCE HEALTH CARE (UK) LTD,01/02/2022,-342.54,6541-Domiciliary Care,THIRD PARTY PAYMENTS,PRIVATE CONTRACTOR,REVENUE
Walsall Council,http://opendatacommunities.org/id/metropolitan-district-council/walsall ,WC135-243,28.02.2022,ADULT SOCIAL CARE,ADVANCE HEALTH CARE (UK) LTD,01/02/2022,311.40,6541-Domiciliary Care,THIRD PARTY PAYMENTS,PRIVATE CONTRACTOR,REVENUE
Walsall Council,http://opendatacommunities.org/id/metropolitan-district-council/walsall ,WC135-244,28.02.2022,ADULT SOCIAL CARE,ADVANCE HEALTH CARE (UK) LTD,01/02/2022,435.96,6541-Domiciliary Care,THIRD PARTY PAYMENTS,PRIVATE CONTRACTOR,REVENUE
Walsall Council,http://opendatacommunities.org/id/metropolitan-district-council/walsall ,WC135-245,28.02.2022,ADULT SOCIAL CARE,ADVANCE HEALTH CARE (UK) LTD,01/02/2022,490.49,6541-Domiciliary Care,THIRD PARTY PAYMENTS,PRIVATE CONTRACTOR,REVENUE
Walsall Council,http://opendatacommunities.org/id/metropolitan-district-council/walsall ,WC135-246,28.02.2022,ADULT SOCIAL CARE,ADVANCE HEALTH CARE (UK) LTD,01/02/2022,490.49,6541-Domiciliary Care,THIRD PARTY PAYMENTS,PRIVATE CONTRACTOR,REVENUE
Walsall Council,http://opendatacommunities.org/id/metropolitan-district-council/walsall ,WC135-247,28.02.2022,ADULT SOCIAL CARE,ADVANCE HEALTH CARE (UK) LTD,01/02/2022,490.49,6541-Domiciliary Care,THIRD PARTY PAYMENTS,PRIVATE CONTRACTOR,REVENUE
Walsall Council,http://opendatacommunities.org/id/metropolitan-district-council/walsall ,WC135-248,28.02.2022,ADULT SOCIAL CARE,ADVANCE HEALTH CARE (UK) LTD,01/02/2022,544.95,6541-Domiciliary Care,THIRD PARTY PAYMENTS,PRIVATE CONTRACTOR,REVENUE
Walsall Council,http://opendatacommunities.org/id/metropolitan-district-council/walsall ,WC135-249,28.02.2022,ADULT SOCIAL CARE,ADVANCE HEALTH CARE (UK) LTD,01/02/2022,490.49,6541-Domiciliary Care,THIRD PARTY PAYMENTS,PRIVATE CONTRACTOR,REVENUE
Walsall Council,http://opendatacommunities.org/id/metropolitan-district-council/walsall ,WC135-250,28.02.2022,ADULT SOCIAL CARE,ADVANCE HEALTH CARE (UK) LTD,01/02/2022,381.50,6541-Domiciliary Care,THIRD PARTY PAYMENTS,PRIVATE CONTRACTOR,REVENUE
Walsall Council,http://opendatacommunities.org/id/metropolitan-district-council/walsall ,WC135-251,28.02.2022,ADULT SOCIAL CARE,ADVANCE HEALTH CARE (UK) LTD,01/02/2022,490.49,6541-Domiciliary Care,THIRD PARTY PAYMENTS,PRIVATE CONTRACTOR,REVENUE
Walsall Council,http://opendatacommunities.org/id/metropolitan-district-council/walsall ,WC135-252,28.02.2022,ADULT SOCIAL CARE,ADVANCE HEALTH CARE (UK) LTD,01/02/2022,454.16,6541-Domiciliary Care,THIRD PARTY PAYMENTS,PRIVATE CONTRACTOR,REVENUE
Walsall Council,http://opendatacommunities.org/id/metropolitan-district-council/walsall ,WC135-253,28.02.2022,ADULT SOCIAL CARE,ADVANCE HEALTH CARE (UK) LTD,01/02/2022,399.63,6541-Domiciliary Care,THIRD PARTY PAYMENTS,PRIVATE CONTRACTOR,REVENUE
Walsall Council,http://opendatacommunities.org/id/metropolitan-district-council/walsall ,WC135-254,28.02.2022,ADULT SOCIAL CARE,ADVANCE HEALTH CARE (UK) LTD,01/02/2022,490.49,6541-Domiciliary Care,THIRD PARTY PAYMENTS,PRIVATE CONTRACTOR,REVENUE
Walsall Council,http://opendatacommunities.org/id/metropolitan-district-council/walsall ,WC135-255,28.02.2022,ADULT SOCIAL CARE,ADVANCE HEALTH CARE (UK) LTD,01/02/2022,-420.42,6541-Domiciliary Care,THIRD PARTY PAYMENTS,PRIVATE CONTRACTOR,REVENUE
Walsall Council,http://opendatacommunities.org/id/metropolitan-district-council/walsall ,WC135-256,28.02.2022,ADULT SOCIAL CARE,ADVANCE HEALTH CARE (UK) LTD,01/02/2022,435.96,6541-Domiciliary Care,THIRD PARTY PAYMENTS,PRIVATE CONTRACTOR,REVENUE
Walsall Council,http://opendatacommunities.org/id/metropolitan-district-council/walsall ,WC135-257,28.02.2022,ADULT SOCIAL CARE,ADVANCE HEALTH CARE (UK) LTD,01/02/2022,428.20,6541-Domiciliary Care,THIRD PARTY PAYMENTS,PRIVATE CONTRACTOR,REVENUE
Walsall Council,http://opendatacommunities.org/id/metropolitan-district-council/walsall ,WC135-258,28.02.2022,ADULT SOCIAL CARE,ADVANCE HEALTH CARE (UK) LTD,01/02/2022,435.96,6541-Domiciliary Care,THIRD PARTY PAYMENTS,PRIVATE CONTRACTOR,REVENUE
Walsall Council,http://opendatacommunities.org/id/metropolitan-district-council/walsall ,WC135-259,28.02.2022,ADULT SOCIAL CARE,ADVANCE HEALTH CARE (UK) LTD,01/02/2022,934.72,6541-Domiciliary Care,THIRD PARTY PAYMENTS,PRIVATE CONTRACTOR,REVENUE
Walsall Council,http://opendatacommunities.org/id/metropolitan-district-council/walsall ,WC135-260,28.02.2022,ADULT SOCIAL CARE,ADVANCE HEALTH CARE (UK) LTD,01/02/2022,490.49,6541-Domiciliary Care,THIRD PARTY PAYMENTS,PRIVATE CONTRACTOR,REVENUE
Walsall Council,http://opendatacommunities.org/id/metropolitan-district-council/walsall ,WC135-261,28.02.2022,ADULT SOCIAL CARE,ADVANCE HEALTH CARE (UK) LTD,01/02/2022,326.97,6541-Domiciliary Care,THIRD PARTY PAYMENTS,PRIVATE CONTRACTOR,REVENUE
Walsall Council,http://opendatacommunities.org/id/metropolitan-district-council/walsall ,WC135-262,28.02.2022,ADULT SOCIAL CARE,ADVANCE HEALTH CARE (UK) LTD,01/02/2022,490.49,6541-Domiciliary Care,THIRD PARTY PAYMENTS,PRIVATE CONTRACTOR,REVENUE
Walsall Council,http://opendatacommunities.org/id/metropolitan-district-council/walsall ,WC135-263,28.02.2022,ADULT SOCIAL CARE,ADVANCE HEALTH CARE (UK) LTD,01/02/2022,435.96,6541-Domiciliary Care,THIRD PARTY PAYMENTS,PRIVATE CONTRACTOR,REVENUE
Walsall Council,http://opendatacommunities.org/id/metropolitan-district-council/walsall ,WC135-264,28.02.2022,ADULT SOCIAL CARE,ADVANCE HEALTH CARE (UK) LTD,01/02/2022,490.49,6541-Domiciliary Care,THIRD PARTY PAYMENTS,PRIVATE CONTRACTOR,REVENUE
Walsall Council,http://opendatacommunities.org/id/metropolitan-district-council/walsall ,WC135-265,28.02.2022,ADULT SOCIAL CARE,ADVANCE HEALTH CARE (UK) LTD,01/02/2022,833.03,6541-Domiciliary Care,THIRD PARTY PAYMENTS,PRIVATE CONTRACTOR,REVENUE
Walsall Council,http://opendatacommunities.org/id/metropolitan-district-council/walsall ,WC135-266,28.02.2022,ADULT SOCIAL CARE,ADVANCE HEALTH CARE (UK) LTD,01/02/2022,490.49,6541-Domiciliary Care,THIRD PARTY PAYMENTS,PRIVATE CONTRACTOR,REVENUE
Walsall Council,http://opendatacommunities.org/id/metropolitan-district-council/walsall ,WC135-267,28.02.2022,ADULT SOCIAL CARE,ADVANCE HEALTH CARE (UK) LTD,01/02/2022,490.49,6541-Domiciliary Care,THIRD PARTY PAYMENTS,PRIVATE CONTRACTOR,REVENUE
Walsall Council,http://opendatacommunities.org/id/metropolitan-district-council/walsall ,WC135-268,28.02.2022,ADULT SOCIAL CARE,ADVANCE HEALTH CARE (UK) LTD,01/02/2022,490.49,6541-Domiciliary Care,THIRD PARTY PAYMENTS,PRIVATE CONTRACTOR,REVENUE
Walsall Council,http://opendatacommunities.org/id/metropolitan-district-council/walsall ,WC135-269,28.02.2022,ADULT SOCIAL CARE,ADVANCE HEALTH CARE (UK) LTD,01/02/2022,435.96,6541-Domiciliary Care,THIRD PARTY PAYMENTS,PRIVATE CONTRACTOR,REVENUE
Walsall Council,http://opendatacommunities.org/id/metropolitan-district-council/walsall ,WC135-270,28.02.2022,ADULT SOCIAL CARE,ADVANCE HEALTH CARE (UK) LTD,01/02/2022,435.96,6541-Domiciliary Care,THIRD PARTY PAYMENTS,PRIVATE CONTRACTOR,REVENUE
Walsall Council,http://opendatacommunities.org/id/metropolitan-district-council/walsall ,WC135-271,28.02.2022,ADULT SOCIAL CARE,ADVANCE HEALTH CARE (UK) LTD,01/02/2022,490.49,6541-Domiciliary Care,THIRD PARTY PAYMENTS,PRIVATE CONTRACTOR,REVENUE
Walsall Council,http://opendatacommunities.org/id/metropolitan-district-council/walsall ,WC135-272,28.02.2022,ADULT SOCIAL CARE,ADVANCE HEALTH CARE (UK) LTD,01/02/2022,635.81,6541-Domiciliary Care,THIRD PARTY PAYMENTS,PRIVATE CONTRACTOR,REVENUE
Walsall Council,http://opendatacommunities.org/id/metropolitan-district-council/walsall ,WC135-273,28.02.2022,ADULT SOCIAL CARE,ADVANCE HEALTH CARE (UK) LTD,01/02/2022,537.20,6541-Domiciliary Care,THIRD PARTY PAYMENTS,PRIVATE CONTRACTOR,REVENUE
Walsall Council,http://opendatacommunities.org/id/metropolitan-district-council/walsall ,WC135-274,28.02.2022,ADULT SOCIAL CARE,ADVANCE HEALTH CARE (UK) LTD,01/02/2022,490.49,6541-Domiciliary Care,THIRD PARTY PAYMENTS,PRIVATE CONTRACTOR,REVENUE
Walsall Council,http://opendatacommunities.org/id/metropolitan-district-council/walsall ,WC135-275,28.02.2022,ADULT SOCIAL CARE,ADVANCE HEALTH CARE (UK) LTD,01/02/2022,490.49,6541-Domiciliary Care,THIRD PARTY PAYMENTS,PRIVATE CONTRACTOR,REVENUE
Walsall Council,http://opendatacommunities.org/id/metropolitan-district-council/walsall ,WC135-276,28.02.2022,ADULT SOCIAL CARE,ADVANCE HEALTH CARE (UK) LTD,01/02/2022,326.97,6541-Domiciliary Care,THIRD PARTY PAYMENTS,PRIVATE CONTRACTOR,REVENUE
Walsall Council,http://opendatacommunities.org/id/metropolitan-district-council/walsall ,WC135-277,28.02.2022,ADULT SOCIAL CARE,ADVANCE HEALTH CARE (UK) LTD,01/02/2022,454.16,6541-Domiciliary Care,THIRD PARTY PAYMENTS,PRIVATE CONTRACTOR,REVENUE
Walsall Council,http://opendatacommunities.org/id/metropolitan-district-council/walsall ,WC135-278,28.02.2022,ADULT SOCIAL CARE,ADVANCE HEALTH CARE (UK) LTD,01/02/2022,490.49,6541-Domiciliary Care,THIRD PARTY PAYMENTS,PRIVATE CONTRACTOR,REVENUE
Walsall Council,http://opendatacommunities.org/id/metropolitan-district-council/walsall ,WC135-279,28.02.2022,ADULT SOCIAL CARE,ADVANCE HEALTH CARE (UK) LTD,01/02/2022,490.49,6541-Domiciliary Care,THIRD PARTY PAYMENTS,PRIVATE CONTRACTOR,REVENUE
Walsall Council,http://opendatacommunities.org/id/metropolitan-district-council/walsall ,WC135-280,28.02.2022,ADULT SOCIAL CARE,ADVANCE HEALTH CARE (UK) LTD,01/02/2022,980.98,6541-Domiciliary Care,THIRD PARTY PAYMENTS,PRIVATE CONTRACTOR,REVENUE
Walsall Council,http://opendatacommunities.org/id/metropolitan-district-council/walsall ,WC135-281,28.02.2022,ADULT SOCIAL CARE,ADVANCE HEALTH CARE (UK) LTD,01/02/2022,490.49,6541-Domiciliary Care,THIRD PARTY PAYMENTS,PRIVATE CONTRACTOR,REVENUE
Walsall Council,http://opendatacommunities.org/id/metropolitan-district-council/walsall ,WC135-282,28.02.2022,ADULT SOCIAL CARE,ADVANCE HEALTH CARE (UK) LTD,01/02/2022,363.30,6541-Domiciliary Care,THIRD PARTY PAYMENTS,PRIVATE CONTRACTOR,REVENUE
Walsall Council,http://opendatacommunities.org/id/metropolitan-district-council/walsall ,WC135-283,28.02.2022,ADULT SOCIAL CARE,ADVANCE HEALTH CARE (UK) LTD,01/02/2022,490.49,6541-Domiciliary Care,THIRD PARTY PAYMENTS,PRIVATE CONTRACTOR,REVENUE
Walsall Council,http://opendatacommunities.org/id/metropolitan-district-council/walsall ,WC135-284,28.02.2022,ADULT SOCIAL CARE,ADVANCE HEALTH CARE (UK) LTD,01/02/2022,871.92,6541-Domiciliary Care,THIRD PARTY PAYMENTS,PRIVATE CONTRACTOR,REVENUE
Walsall Council,http://opendatacommunities.org/id/metropolitan-district-council/walsall ,WC135-285,28.02.2022,ADULT SOCIAL CARE,ADVANCE HEALTH CARE (UK) LTD,01/02/2022,381.50,6541-Domiciliary Care,THIRD PARTY PAYMENTS,PRIVATE CONTRACTOR,REVENUE
Walsall Council,http://opendatacommunities.org/id/metropolitan-district-council/walsall ,WC135-286,28.02.2022,ADULT SOCIAL CARE,ADVANCE HEALTH CARE (UK) LTD,01/02/2022,490.49,6541-Domiciliary Care,THIRD PARTY PAYMENTS,PRIVATE CONTRACTOR,REVENUE
Walsall Council,http://opendatacommunities.org/id/metropolitan-district-council/walsall ,WC135-287,28.02.2022,ADULT SOCIAL CARE,ADVANCE HEALTH CARE (UK) LTD,01/02/2022,435.96,6541-Domiciliary Care,THIRD PARTY PAYMENTS,PRIVATE CONTRACTOR,REVENUE
Walsall Council,http://opendatacommunities.org/id/metropolitan-district-council/walsall ,WC135-288,28.02.2022,ADULT SOCIAL CARE,ADVANCE HEALTH CARE (UK) LTD,01/02/2022,653.94,6541-Domiciliary Care,THIRD PARTY PAYMENTS,PRIVATE CONTRACTOR,REVENUE
Walsall Council,http://opendatacommunities.org/id/metropolitan-district-council/walsall ,WC135-289,28.02.2022,ADULT SOCIAL CARE,ADVANCE HEALTH CARE (UK) LTD,01/02/2022,"1,089.90",6541-Domiciliary Care,THIRD PARTY PAYMENTS,PRIVATE CONTRACTOR,REVENUE
Walsall Council,http://opendatacommunities.org/id/metropolitan-district-council/walsall ,WC135-290,28.02.2022,ADULT SOCIAL CARE,ADVANCE HEALTH CARE (UK) LTD,01/02/2022,420.39,6541-Domiciliary Care,THIRD PARTY PAYMENTS,PRIVATE CONTRACTOR,REVENUE
Walsall Council,http://opendatacommunities.org/id/metropolitan-district-council/walsall ,WC135-291,28.02.2022,ADULT SOCIAL CARE,ADVANCE HEALTH CARE (UK) LTD,01/02/2022,452.04,6541-Domiciliary Care,THIRD PARTY PAYMENTS,PRIVATE CONTRACTOR,REVENUE
Walsall Council,http://opendatacommunities.org/id/metropolitan-district-council/walsall ,WC135-292,28.02.2022,ADULT SOCIAL CARE,ADVANCE HEALTH CARE (UK) LTD,01/02/2022,435.96,6541-Domiciliary Care,THIRD PARTY PAYMENTS,PRIVATE CONTRACTOR,REVENUE
Walsall Council,http://opendatacommunities.org/id/metropolitan-district-council/walsall ,WC135-293,28.02.2022,ADULT SOCIAL CARE,ADVANCE HEALTH CARE (UK) LTD,01/02/2022,490.49,6541-Domiciliary Care,THIRD PARTY PAYMENTS,PRIVATE CONTRACTOR,REVENUE
Walsall Council,http://opendatacommunities.org/id/metropolitan-district-council/walsall ,WC135-294,28.02.2022,ADULT SOCIAL CARE,ADVANCE HEALTH CARE (UK) LTD,01/02/2022,399.63,6541-Domiciliary Care,THIRD PARTY PAYMENTS,PRIVATE CONTRACTOR,REVENUE
Walsall Council,http://opendatacommunities.org/id/metropolitan-district-council/walsall ,WC135-295,28.02.2022,ADULT SOCIAL CARE,ADVANCE HEALTH CARE (UK) LTD,01/02/2022,490.49,6541-Domiciliary Care,THIRD PARTY PAYMENTS,PRIVATE CONTRACTOR,REVENUE
Walsall Council,http://opendatacommunities.org/id/metropolitan-district-council/walsall ,WC135-296,28.02.2022,ADULT SOCIAL CARE,ADVANCE HEALTH CARE (UK) LTD,01/02/2022,490.49,6541-Domiciliary Care,THIRD PARTY PAYMENTS,PRIVATE CONTRACTOR,REVENUE
Walsall Council,http://opendatacommunities.org/id/metropolitan-district-council/walsall ,WC135-297,28.02.2022,ADULT SOCIAL CARE,ADVANCE HEALTH CARE (UK) LTD,01/02/2022,490.49,6541-Domiciliary Care,THIRD PARTY PAYMENTS,PRIVATE CONTRACTOR,REVENUE
Walsall Council,http://opendatacommunities.org/id/metropolitan-district-council/walsall ,WC135-298,28.02.2022,ADULT SOCIAL CARE,ADVANCE HEALTH CARE (UK) LTD,01/02/2022,544.95,6541-Domiciliary Care,THIRD PARTY PAYMENTS,PRIVATE CONTRACTOR,REVENUE
Walsall Council,http://opendatacommunities.org/id/metropolitan-district-council/walsall ,WC135-299,28.02.2022,ADULT SOCIAL CARE,ADVANCE HEALTH CARE (UK) LTD,01/02/2022,506.06,6541-Domiciliary Care,THIRD PARTY PAYMENTS,PRIVATE CONTRACTOR,REVENUE
Walsall Council,http://opendatacommunities.org/id/metropolitan-district-council/walsall ,WC135-300,28.02.2022,ADULT SOCIAL CARE,ADVANCE HEALTH CARE (UK) LTD,01/02/2022,490.49,6541-Domiciliary Care,THIRD PARTY PAYMENTS,PRIVATE CONTRACTOR,REVENUE
Walsall Council,http://opendatacommunities.org/id/metropolitan-district-council/walsall ,WC135-301,28.02.2022,ADULT SOCIAL CARE,ADVANCE HEALTH CARE (UK) LTD,01/02/2022,490.49,6541-Domiciliary Care,THIRD PARTY PAYMENTS,PRIVATE CONTRACTOR,REVENUE
Walsall Council,http://opendatacommunities.org/id/metropolitan-district-council/walsall ,WC135-302,28.02.2022,ADULT SOCIAL CARE,ADVANCE HEALTH CARE (UK) LTD,01/02/2022,435.96,6541-Domiciliary Care,THIRD PARTY PAYMENTS,PRIVATE CONTRACTOR,REVENUE
Walsall Council,http://opendatacommunities.org/id/metropolitan-district-council/walsall ,WC135-303,28.02.2022,ADULT SOCIAL CARE,ADVANCE HEALTH CARE (UK) LTD,01/02/2022,435.96,6541-Domiciliary Care,THIRD PARTY PAYMENTS,PRIVATE CONTRACTOR,REVENUE
Walsall Council,http://opendatacommunities.org/id/metropolitan-district-council/walsall ,WC135-304,28.02.2022,ADULT SOCIAL CARE,ADVANCE HEALTH CARE (UK) LTD,01/02/2022,381.50,6541-Domiciliary Care,THIRD PARTY PAYMENTS,PRIVATE CONTRACTOR,REVENUE
Walsall Council,http://opendatacommunities.org/id/metropolitan-district-council/walsall ,WC135-305,28.02.2022,ADULT SOCIAL CARE,ADVANCE HEALTH CARE (UK) LTD,01/02/2022,490.49,6541-Domiciliary Care,THIRD PARTY PAYMENTS,PRIVATE CONTRACTOR,REVENUE
Walsall Council,http://opendatacommunities.org/id/metropolitan-district-council/walsall ,WC135-306,28.02.2022,ADULT SOCIAL CARE,ADVANCE HEALTH CARE (UK) LTD,01/02/2022,454.16,6541-Domiciliary Care,THIRD PARTY PAYMENTS,PRIVATE CONTRACTOR,REVENUE
Walsall Council,http://opendatacommunities.org/id/metropolitan-district-council/walsall ,WC135-307,28.02.2022,ADULT SOCIAL CARE,ADVANCE HEALTH CARE (UK) LTD,10/02/2022,"1,401.40",6541-Domiciliary Care,THIRD PARTY PAYMENTS,PRIVATE CONTRACTOR,REVENUE
Walsall Council,http://opendatacommunities.org/id/metropolitan-district-council/walsall ,WC135-308,28.02.2022,ADULT SOCIAL CARE,ADVANCE HEALTH CARE (UK) LTD,10/02/2022,"1,090.60",6541-Domiciliary Care,THIRD PARTY PAYMENTS,PRIVATE CONTRACTOR,REVENUE
Walsall Council,http://opendatacommunities.org/id/metropolitan-district-council/walsall ,WC135-309,28.02.2022,ADULT SOCIAL CARE,ADVANCE HEALTH CARE (UK) LTD,10/02/2022,981.40,6541-Domiciliary Care,THIRD PARTY PAYMENTS,PRIVATE CONTRACTOR,REVENUE
Walsall Council,http://opendatacommunities.org/id/metropolitan-district-council/walsall ,WC135-310,28.02.2022,ADULT SOCIAL CARE,ADVANCE HEALTH CARE (UK) LTD,10/02/2022,280.28,6541-Domiciliary Care,THIRD PARTY PAYMENTS,PRIVATE CONTRACTOR,REVENUE
Walsall Council,http://opendatacommunities.org/id/metropolitan-district-council/walsall ,WC135-311,28.02.2022,ADULT SOCIAL CARE,ADVANCE HEALTH CARE (UK) LTD,10/02/2022,"1,191.19",6541-Domiciliary Care,THIRD PARTY PAYMENTS,PRIVATE CONTRACTOR,REVENUE
Walsall Council,http://opendatacommunities.org/id/metropolitan-district-council/walsall ,WC135-312,28.02.2022,ADULT SOCIAL CARE,ADVANCE HEALTH CARE (UK) LTD,10/02/2022,544.95,6541-Domiciliary Care,THIRD PARTY PAYMENTS,PRIVATE CONTRACTOR,REVENUE
Walsall Council,http://opendatacommunities.org/id/metropolitan-district-council/walsall ,WC135-313,28.02.2022,ADULT SOCIAL CARE,ADVANCE HEALTH CARE (UK) LTD,10/02/2022,871.92,6541-Domiciliary Care,THIRD PARTY PAYMENTS,PRIVATE CONTRACTOR,REVENUE
Walsall Council,http://opendatacommunities.org/id/metropolitan-district-council/walsall ,WC135-314,28.02.2022,ADULT SOCIAL CARE,ADVANCE HEALTH CARE (UK) LTD,10/02/2022,871.92,6541-Domiciliary Care,THIRD PARTY PAYMENTS,PRIVATE CONTRACTOR,REVENUE
Walsall Council,http://opendatacommunities.org/id/metropolitan-district-council/walsall ,WC135-315,28.02.2022,ADULT SOCIAL CARE,ADVANCE HEALTH CARE (UK) LTD,10/02/2022,"2,802.80",6541-Domiciliary Care,THIRD PARTY PAYMENTS,PRIVATE CONTRACTOR,REVENUE
Walsall Council,http://opendatacommunities.org/id/metropolitan-district-council/walsall ,WC135-316,28.02.2022,ADULT SOCIAL CARE,ADVANCE HEALTH CARE (UK) LTD,15/02/2022,490.49,6541-Domiciliary Care,THIRD PARTY PAYMENTS,PRIVATE CONTRACTOR,REVENUE
Walsall Council,http://opendatacommunities.org/id/metropolitan-district-council/walsall ,WC135-317,28.02.2022,ADULT SOCIAL CARE,ADVANCE HEALTH CARE (UK) LTD,15/02/2022,635.81,6541-Domiciliary Care,THIRD PARTY PAYMENTS,PRIVATE CONTRACTOR,REVENUE
Walsall Council,http://opendatacommunities.org/id/metropolitan-district-council/walsall ,WC135-318,28.02.2022,ADULT SOCIAL CARE,ADVANCE HEALTH CARE (UK) LTD,15/02/2022,537.20,6541-Domiciliary Care,THIRD PARTY PAYMENTS,PRIVATE CONTRACTOR,REVENUE
Walsall Council,http://opendatacommunities.org/id/metropolitan-district-council/walsall ,WC135-319,28.02.2022,ADULT SOCIAL CARE,ADVANCE HEALTH CARE (UK) LTD,15/02/2022,490.49,6541-Domiciliary Care,THIRD PARTY PAYMENTS,PRIVATE CONTRACTOR,REVENUE
Walsall Council,http://opendatacommunities.org/id/metropolitan-district-council/walsall ,WC135-320,28.02.2022,ADULT SOCIAL CARE,ADVANCE HEALTH CARE (UK) LTD,15/02/2022,490.49,6541-Domiciliary Care,THIRD PARTY PAYMENTS,PRIVATE CONTRACTOR,REVENUE
Walsall Council,http://opendatacommunities.org/id/metropolitan-district-council/walsall ,WC135-321,28.02.2022,ADULT SOCIAL CARE,ADVANCE HEALTH CARE (UK) LTD,15/02/2022,490.49,6541-Domiciliary Care,THIRD PARTY PAYMENTS,PRIVATE CONTRACTOR,REVENUE
Walsall Council,http://opendatacommunities.org/id/metropolitan-district-council/walsall ,WC135-322,28.02.2022,ADULT SOCIAL CARE,ADVANCE HEALTH CARE (UK) LTD,15/02/2022,490.49,6541-Domiciliary Care,THIRD PARTY PAYMENTS,PRIVATE CONTRACTOR,REVENUE
Walsall Council,http://opendatacommunities.org/id/metropolitan-district-council/walsall ,WC135-323,28.02.2022,ADULT SOCIAL CARE,ADVANCE HEALTH CARE (UK) LTD,15/02/2022,363.30,6541-Domiciliary Care,THIRD PARTY PAYMENTS,PRIVATE CONTRACTOR,REVENUE
Walsall Council,http://opendatacommunities.org/id/metropolitan-district-council/walsall ,WC135-324,28.02.2022,ADULT SOCIAL CARE,ADVANCE HEALTH CARE (UK) LTD,15/02/2022,490.49,6541-Domiciliary Care,THIRD PARTY PAYMENTS,PRIVATE CONTRACTOR,REVENUE
Walsall Council,http://opendatacommunities.org/id/metropolitan-district-council/walsall ,WC135-325,28.02.2022,ADULT SOCIAL CARE,ADVANCE HEALTH CARE (UK) LTD,15/02/2022,490.49,6541-Domiciliary Care,THIRD PARTY PAYMENTS,PRIVATE CONTRACTOR,REVENUE
Walsall Council,http://opendatacommunities.org/id/metropolitan-district-council/walsall ,WC135-326,28.02.2022,ADULT SOCIAL CARE,ADVANCE HEALTH CARE (UK) LTD,15/02/2022,399.63,6541-Domiciliary Care,THIRD PARTY PAYMENTS,PRIVATE CONTRACTOR,REVENUE
Walsall Council,http://opendatacommunities.org/id/metropolitan-district-council/walsall ,WC135-327,28.02.2022,ADULT SOCIAL CARE,ADVANCE HEALTH CARE (UK) LTD,15/02/2022,363.30,6541-Domiciliary Care,THIRD PARTY PAYMENTS,PRIVATE CONTRACTOR,REVENUE
Walsall Council,http://opendatacommunities.org/id/metropolitan-district-council/walsall ,WC135-328,28.02.2022,ADULT SOCIAL CARE,ADVANCE HEALTH CARE (UK) LTD,15/02/2022,833.03,6541-Domiciliary Care,THIRD PARTY PAYMENTS,PRIVATE CONTRACTOR,REVENUE
Walsall Council,http://opendatacommunities.org/id/metropolitan-district-council/walsall ,WC135-329,28.02.2022,ADULT SOCIAL CARE,ADVANCE HEALTH CARE (UK) LTD,15/02/2022,490.49,6541-Domiciliary Care,THIRD PARTY PAYMENTS,PRIVATE CONTRACTOR,REVENUE
Walsall Council,http://opendatacommunities.org/id/metropolitan-district-council/walsall ,WC135-330,28.02.2022,ADULT SOCIAL CARE,ADVANCE HEALTH CARE (UK) LTD,15/02/2022,490.49,6541-Domiciliary Care,THIRD PARTY PAYMENTS,PRIVATE CONTRACTOR,REVENUE
Walsall Council,http://opendatacommunities.org/id/metropolitan-district-council/walsall ,WC135-331,28.02.2022,ADULT SOCIAL CARE,ADVANCE HEALTH CARE (UK) LTD,15/02/2022,490.49,6541-Domiciliary Care,THIRD PARTY PAYMENTS,PRIVATE CONTRACTOR,REVENUE
Walsall Council,http://opendatacommunities.org/id/metropolitan-district-council/walsall ,WC135-332,28.02.2022,ADULT SOCIAL CARE,ADVANCE HEALTH CARE (UK) LTD,15/02/2022,435.96,6541-Domiciliary Care,THIRD PARTY PAYMENTS,PRIVATE CONTRACTOR,REVENUE
Walsall Council,http://opendatacommunities.org/id/metropolitan-district-council/walsall ,WC135-333,28.02.2022,ADULT SOCIAL CARE,ADVANCE HEALTH CARE (UK) LTD,15/02/2022,490.49,6541-Domiciliary Care,THIRD PARTY PAYMENTS,PRIVATE CONTRACTOR,REVENUE
Walsall Council,http://opendatacommunities.org/id/metropolitan-district-council/walsall ,WC135-334,28.02.2022,ADULT SOCIAL CARE,ADVANCE HEALTH CARE (UK) LTD,15/02/2022,490.49,6541-Domiciliary Care,THIRD PARTY PAYMENTS,PRIVATE CONTRACTOR,REVENUE
Walsall Council,http://opendatacommunities.org/id/metropolitan-district-council/walsall ,WC135-335,28.02.2022,ADULT SOCIAL CARE,ADVANCE HEALTH CARE (UK) LTD,15/02/2022,871.92,6541-Domiciliary Care,THIRD PARTY PAYMENTS,PRIVATE CONTRACTOR,REVENUE
Walsall Council,http://opendatacommunities.org/id/metropolitan-district-council/walsall ,WC135-336,28.02.2022,ADULT SOCIAL CARE,ADVANCE HEALTH CARE (UK) LTD,15/02/2022,-326.97,6541-Domiciliary Care,THIRD PARTY PAYMENTS,PRIVATE CONTRACTOR,REVENUE
Walsall Council,http://opendatacommunities.org/id/metropolitan-district-council/walsall ,WC135-337,28.02.2022,ADULT SOCIAL CARE,ADVANCE HEALTH CARE (UK) LTD,15/02/2022,381.50,6541-Domiciliary Care,THIRD PARTY PAYMENTS,PRIVATE CONTRACTOR,REVENUE
Walsall Council,http://opendatacommunities.org/id/metropolitan-district-council/walsall ,WC135-338,28.02.2022,ADULT SOCIAL CARE,ADVANCE HEALTH CARE (UK) LTD,15/02/2022,490.49,6541-Domiciliary Care,THIRD PARTY PAYMENTS,PRIVATE CONTRACTOR,REVENUE
Walsall Council,http://opendatacommunities.org/id/metropolitan-district-council/walsall ,WC135-339,28.02.2022,ADULT SOCIAL CARE,ADVANCE HEALTH CARE (UK) LTD,15/02/2022,490.49,6541-Domiciliary Care,THIRD PARTY PAYMENTS,PRIVATE CONTRACTOR,REVENUE
Walsall Council,http://opendatacommunities.org/id/metropolitan-district-council/walsall ,WC135-340,28.02.2022,ADULT SOCIAL CARE,ADVANCE HEALTH CARE (UK) LTD,15/02/2022,490.49,6541-Domiciliary Care,THIRD PARTY PAYMENTS,PRIVATE CONTRACTOR,REVENUE
Walsall Council,http://opendatacommunities.org/id/metropolitan-district-council/walsall ,WC135-341,28.02.2022,ADULT SOCIAL CARE,ADVANCE HEALTH CARE (UK) LTD,15/02/2022,544.95,6541-Domiciliary Care,THIRD PARTY PAYMENTS,PRIVATE CONTRACTOR,REVENUE
Walsall Council,http://opendatacommunities.org/id/metropolitan-district-council/walsall ,WC135-342,28.02.2022,ADULT SOCIAL CARE,ADVANCE HEALTH CARE (UK) LTD,15/02/2022,506.06,6541-Domiciliary Care,THIRD PARTY PAYMENTS,PRIVATE CONTRACTOR,REVENUE
Walsall Council,http://opendatacommunities.org/id/metropolitan-district-council/walsall ,WC135-343,28.02.2022,ADULT SOCIAL CARE,ADVANCE HEALTH CARE (UK) LTD,15/02/2022,280.28,6541-Domiciliary Care,THIRD PARTY PAYMENTS,PRIVATE CONTRACTOR,REVENUE
Walsall Council,http://opendatacommunities.org/id/metropolitan-district-council/walsall ,WC135-344,28.02.2022,ADULT SOCIAL CARE,ADVANCE HEALTH CARE (UK) LTD,15/02/2022,490.49,6541-Domiciliary Care,THIRD PARTY PAYMENTS,PRIVATE CONTRACTOR,REVENUE
Walsall Council,http://opendatacommunities.org/id/metropolitan-district-council/walsall ,WC135-345,28.02.2022,ADULT SOCIAL CARE,ADVANCE HEALTH CARE (UK) LTD,15/02/2022,490.49,6541-Domiciliary Care,THIRD PARTY PAYMENTS,PRIVATE CONTRACTOR,REVENUE
Walsall Council,http://opendatacommunities.org/id/metropolitan-district-council/walsall ,WC135-346,28.02.2022,ADULT SOCIAL CARE,ADVANCE HEALTH CARE (UK) LTD,15/02/2022,326.97,6541-Domiciliary Care,THIRD PARTY PAYMENTS,PRIVATE CONTRACTOR,REVENUE
Walsall Council,http://opendatacommunities.org/id/metropolitan-district-council/walsall ,WC135-347,28.02.2022,ADULT SOCIAL CARE,ADVANCE HEALTH CARE (UK) LTD,15/02/2022,544.95,6541-Domiciliary Care,THIRD PARTY PAYMENTS,PRIVATE CONTRACTOR,REVENUE
Walsall Council,http://opendatacommunities.org/id/metropolitan-district-council/walsall ,WC135-348,28.02.2022,ADULT SOCIAL CARE,ADVANCE HEALTH CARE (UK) LTD,15/02/2022,435.96,6541-Domiciliary Care,THIRD PARTY PAYMENTS,PRIVATE CONTRACTOR,REVENUE
Walsall Council,http://opendatacommunities.org/id/metropolitan-district-council/walsall ,WC135-349,28.02.2022,ADULT SOCIAL CARE,ADVANCE HEALTH CARE (UK) LTD,15/02/2022,490.49,6541-Domiciliary Care,THIRD PARTY PAYMENTS,PRIVATE CONTRACTOR,REVENUE
Walsall Council,http://opendatacommunities.org/id/metropolitan-district-council/walsall ,WC135-350,28.02.2022,ADULT SOCIAL CARE,ADVANCE HEALTH CARE (UK) LTD,15/02/2022,435.96,6541-Domiciliary Care,THIRD PARTY PAYMENTS,PRIVATE CONTRACTOR,REVENUE
Walsall Council,http://opendatacommunities.org/id/metropolitan-district-council/walsall ,WC135-351,28.02.2022,ADULT SOCIAL CARE,ADVANCE HEALTH CARE (UK) LTD,15/02/2022,544.95,6541-Domiciliary Care,THIRD PARTY PAYMENTS,PRIVATE CONTRACTOR,REVENUE
Walsall Council,http://opendatacommunities.org/id/metropolitan-district-council/walsall ,WC135-352,28.02.2022,ADULT SOCIAL CARE,ADVANCE HEALTH CARE (UK) LTD,15/02/2022,498.84,6541-Domiciliary Care,THIRD PARTY PAYMENTS,PRIVATE CONTRACTOR,REVENUE
Walsall Council,http://opendatacommunities.org/id/metropolitan-district-council/walsall ,WC135-353,28.02.2022,ADULT SOCIAL CARE,ADVANCE HEALTH CARE (UK) LTD,15/02/2022,326.97,6541-Domiciliary Care,THIRD PARTY PAYMENTS,PRIVATE CONTRACTOR,REVENUE
Walsall Council,http://opendatacommunities.org/id/metropolitan-district-council/walsall ,WC135-354,28.02.2022,ADULT SOCIAL CARE,ADVANCE HEALTH CARE (UK) LTD,15/02/2022,454.16,6541-Domiciliary Care,THIRD PARTY PAYMENTS,PRIVATE CONTRACTOR,REVENUE
Walsall Council,http://opendatacommunities.org/id/metropolitan-district-council/walsall ,WC135-355,28.02.2022,ADULT SOCIAL CARE,ADVANCE HEALTH CARE (UK) LTD,15/02/2022,490.49,6541-Domiciliary Care,THIRD PARTY PAYMENTS,PRIVATE CONTRACTOR,REVENUE
Walsall Council,http://opendatacommunities.org/id/metropolitan-district-council/walsall ,WC135-356,28.02.2022,ADULT SOCIAL CARE,ADVANCE HEALTH CARE (UK) LTD,15/02/2022,490.49,6541-Domiciliary Care,THIRD PARTY PAYMENTS,PRIVATE CONTRACTOR,REVENUE
Walsall Council,http://opendatacommunities.org/id/metropolitan-district-council/walsall ,WC135-357,28.02.2022,ADULT SOCIAL CARE,ADVANCE HEALTH CARE (UK) LTD,15/02/2022,435.96,6541-Domiciliary Care,THIRD PARTY PAYMENTS,PRIVATE CONTRACTOR,REVENUE
Walsall Council,http://opendatacommunities.org/id/metropolitan-district-council/walsall ,WC135-358,28.02.2022,ADULT SOCIAL CARE,ADVANCE HEALTH CARE (UK) LTD,15/02/2022,435.96,6541-Domiciliary Care,THIRD PARTY PAYMENTS,PRIVATE CONTRACTOR,REVENUE
Walsall Council,http://opendatacommunities.org/id/metropolitan-district-council/walsall ,WC135-359,28.02.2022,ADULT SOCIAL CARE,ADVANCE HEALTH CARE (UK) LTD,15/02/2022,435.96,6541-Domiciliary Care,THIRD PARTY PAYMENTS,PRIVATE CONTRACTOR,REVENUE
Walsall Council,http://opendatacommunities.org/id/metropolitan-district-council/walsall ,WC135-360,28.02.2022,ADULT SOCIAL CARE,ADVANCE HEALTH CARE (UK) LTD,15/02/2022,381.50,6541-Domiciliary Care,THIRD PARTY PAYMENTS,PRIVATE CONTRACTOR,REVENUE
Walsall Council,http://opendatacommunities.org/id/metropolitan-district-council/walsall ,WC135-361,28.02.2022,ADULT SOCIAL CARE,ADVANCE HEALTH CARE (UK) LTD,15/02/2022,490.49,6541-Domiciliary Care,THIRD PARTY PAYMENTS,PRIVATE CONTRACTOR,REVENUE
Walsall Council,http://opendatacommunities.org/id/metropolitan-district-council/walsall ,WC135-362,28.02.2022,ADULT SOCIAL CARE,ADVANCE HEALTH CARE (UK) LTD,15/02/2022,454.16,6541-Domiciliary Care,THIRD PARTY PAYMENTS,PRIVATE CONTRACTOR,REVENUE
Walsall Council,http://opendatacommunities.org/id/metropolitan-district-council/walsall ,WC135-363,28.02.2022,ADULT SOCIAL CARE,ADVANCE HEALTH CARE (UK) LTD,15/02/2022,435.96,6541-Domiciliary Care,THIRD PARTY PAYMENTS,PRIVATE CONTRACTOR,REVENUE
Walsall Council,http://opendatacommunities.org/id/metropolitan-district-council/walsall ,WC135-364,28.02.2022,ADULT SOCIAL CARE,ADVANCE HEALTH CARE (UK) LTD,15/02/2022,435.96,6541-Domiciliary Care,THIRD PARTY PAYMENTS,PRIVATE CONTRACTOR,REVENUE
Walsall Council,http://opendatacommunities.org/id/metropolitan-district-council/walsall ,WC135-365,28.02.2022,ADULT SOCIAL CARE,ADVANCE HEALTH CARE (UK) LTD,15/02/2022,490.49,6541-Domiciliary Care,THIRD PARTY PAYMENTS,PRIVATE CONTRACTOR,REVENUE
Walsall Council,http://opendatacommunities.org/id/metropolitan-district-council/walsall ,WC135-366,28.02.2022,ADULT SOCIAL CARE,ADVANCE HEALTH CARE (UK) LTD,15/02/2022,490.49,6541-Domiciliary Care,THIRD PARTY PAYMENTS,PRIVATE CONTRACTOR,REVENUE
Walsall Council,http://opendatacommunities.org/id/metropolitan-district-council/walsall ,WC135-367,28.02.2022,ADULT SOCIAL CARE,ADVANCE HEALTH CARE (UK) LTD,15/02/2022,635.81,6541-Domiciliary Care,THIRD PARTY PAYMENTS,PRIVATE CONTRACTOR,REVENUE
Walsall Council,http://opendatacommunities.org/id/metropolitan-district-council/walsall ,WC135-368,28.02.2022,ADULT SOCIAL CARE,ADVANCE HEALTH CARE (UK) LTD,15/02/2022,537.20,6541-Domiciliary Care,THIRD PARTY PAYMENTS,PRIVATE CONTRACTOR,REVENUE
Walsall Council,http://opendatacommunities.org/id/metropolitan-district-council/walsall ,WC135-369,28.02.2022,ADULT SOCIAL CARE,ADVANCE HEALTH CARE (UK) LTD,15/02/2022,490.49,6541-Domiciliary Care,THIRD PARTY PAYMENTS,PRIVATE CONTRACTOR,REVENUE
Walsall Council,http://opendatacommunities.org/id/metropolitan-district-council/walsall ,WC135-370,28.02.2022,ADULT SOCIAL CARE,ADVANCE HEALTH CARE (UK) LTD,15/02/2022,490.49,6541-Domiciliary Care,THIRD PARTY PAYMENTS,PRIVATE CONTRACTOR,REVENUE
Walsall Council,http://opendatacommunities.org/id/metropolitan-district-council/walsall ,WC135-371,28.02.2022,ADULT SOCIAL CARE,ADVANCE HEALTH CARE (UK) LTD,15/02/2022,490.49,6541-Domiciliary Care,THIRD PARTY PAYMENTS,PRIVATE CONTRACTOR,REVENUE
Walsall Council,http://opendatacommunities.org/id/metropolitan-district-council/walsall ,WC135-372,28.02.2022,ADULT SOCIAL CARE,ADVANCE HEALTH CARE (UK) LTD,15/02/2022,490.49,6541-Domiciliary Care,THIRD PARTY PAYMENTS,PRIVATE CONTRACTOR,REVENUE
Walsall Council,http://opendatacommunities.org/id/metropolitan-district-council/walsall ,WC135-373,28.02.2022,ADULT SOCIAL CARE,ADVANCE HEALTH CARE (UK) LTD,15/02/2022,833.03,6541-Domiciliary Care,THIRD PARTY PAYMENTS,PRIVATE CONTRACTOR,REVENUE
Walsall Council,http://opendatacommunities.org/id/metropolitan-district-council/walsall ,WC135-374,28.02.2022,ADULT SOCIAL CARE,ADVANCE HEALTH CARE (UK) LTD,15/02/2022,490.49,6541-Domiciliary Care,THIRD PARTY PAYMENTS,PRIVATE CONTRACTOR,REVENUE
Walsall Council,http://opendatacommunities.org/id/metropolitan-district-council/walsall ,WC135-375,28.02.2022,ADULT SOCIAL CARE,ADVANCE HEALTH CARE (UK) LTD,15/02/2022,490.49,6541-Domiciliary Care,THIRD PARTY PAYMENTS,PRIVATE CONTRACTOR,REVENUE
Walsall Council,http://opendatacommunities.org/id/metropolitan-district-council/walsall ,WC135-376,28.02.2022,ADULT SOCIAL CARE,ADVANCE HEALTH CARE (UK) LTD,15/02/2022,490.49,6541-Domiciliary Care,THIRD PARTY PAYMENTS,PRIVATE CONTRACTOR,REVENUE
Walsall Council,http://opendatacommunities.org/id/metropolitan-district-council/walsall ,WC135-377,28.02.2022,ADULT SOCIAL CARE,ADVANCE HEALTH CARE (UK) LTD,15/02/2022,524.19,6541-Domiciliary Care,THIRD PARTY PAYMENTS,PRIVATE CONTRACTOR,REVENUE
Walsall Council,http://opendatacommunities.org/id/metropolitan-district-council/walsall ,WC135-378,28.02.2022,ADULT SOCIAL CARE,ADVANCE HEALTH CARE (UK) LTD,15/02/2022,490.49,6541-Domiciliary Care,THIRD PARTY PAYMENTS,PRIVATE CONTRACTOR,REVENUE
Walsall Council,http://opendatacommunities.org/id/metropolitan-district-council/walsall ,WC135-379,28.02.2022,ADULT SOCIAL CARE,ADVANCE HEALTH CARE (UK) LTD,15/02/2022,490.49,6541-Domiciliary Care,THIRD PARTY PAYMENTS,PRIVATE CONTRACTOR,REVENUE
Walsall Council,http://opendatacommunities.org/id/metropolitan-district-council/walsall ,WC135-380,28.02.2022,ADULT SOCIAL CARE,ADVANCE HEALTH CARE (UK) LTD,15/02/2022,363.30,6541-Domiciliary Care,THIRD PARTY PAYMENTS,PRIVATE CONTRACTOR,REVENUE
Walsall Council,http://opendatacommunities.org/id/metropolitan-district-council/walsall ,WC135-381,28.02.2022,ADULT SOCIAL CARE,ADVANCE HEALTH CARE (UK) LTD,15/02/2022,399.63,6541-Domiciliary Care,THIRD PARTY PAYMENTS,PRIVATE CONTRACTOR,REVENUE
Walsall Council,http://opendatacommunities.org/id/metropolitan-district-council/walsall ,WC135-382,28.02.2022,ADULT SOCIAL CARE,ADVANCE HEALTH CARE (UK) LTD,15/02/2022,326.97,6541-Domiciliary Care,THIRD PARTY PAYMENTS,PRIVATE CONTRACTOR,REVENUE
Walsall Council,http://opendatacommunities.org/id/metropolitan-district-council/walsall ,WC135-383,28.02.2022,ADULT SOCIAL CARE,ADVANCE HEALTH CARE (UK) LTD,15/02/2022,454.16,6541-Domiciliary Care,THIRD PARTY PAYMENTS,PRIVATE CONTRACTOR,REVENUE
Walsall Council,http://opendatacommunities.org/id/metropolitan-district-council/walsall ,WC135-384,28.02.2022,ADULT SOCIAL CARE,ADVANCE HEALTH CARE (UK) LTD,15/02/2022,326.97,6541-Domiciliary Care,THIRD PARTY PAYMENTS,PRIVATE CONTRACTOR,REVENUE
Walsall Council,http://opendatacommunities.org/id/metropolitan-district-council/walsall ,WC135-385,28.02.2022,ADULT SOCIAL CARE,ADVANCE HEALTH CARE (UK) LTD,15/02/2022,544.95,6541-Domiciliary Care,THIRD PARTY PAYMENTS,PRIVATE CONTRACTOR,REVENUE
Walsall Council,http://opendatacommunities.org/id/metropolitan-district-council/walsall ,WC135-386,28.02.2022,ADULT SOCIAL CARE,ADVANCE HEALTH CARE (UK) LTD,15/02/2022,490.49,6541-Domiciliary Care,THIRD PARTY PAYMENTS,PRIVATE CONTRACTOR,REVENUE
Walsall Council,http://opendatacommunities.org/id/metropolitan-district-council/walsall ,WC135-387,28.02.2022,ADULT SOCIAL CARE,ADVANCE HEALTH CARE (UK) LTD,15/02/2022,544.95,6541-Domiciliary Care,THIRD PARTY PAYMENTS,PRIVATE CONTRACTOR,REVENUE
Walsall Council,http://opendatacommunities.org/id/metropolitan-district-council/walsall ,WC135-388,28.02.2022,ADULT SOCIAL CARE,ADVANCE HEALTH CARE (UK) LTD,15/02/2022,498.84,6541-Domiciliary Care,THIRD PARTY PAYMENTS,PRIVATE CONTRACTOR,REVENUE
Walsall Council,http://opendatacommunities.org/id/metropolitan-district-council/walsall ,WC135-389,28.02.2022,ADULT SOCIAL CARE,ADVANCE HEALTH CARE (UK) LTD,15/02/2022,490.49,6541-Domiciliary Care,THIRD PARTY PAYMENTS,PRIVATE CONTRACTOR,REVENUE
Walsall Council,http://opendatacommunities.org/id/metropolitan-district-council/walsall ,WC135-390,28.02.2022,ADULT SOCIAL CARE,ADVANCE HEALTH CARE (UK) LTD,15/02/2022,490.49,6541-Domiciliary Care,THIRD PARTY PAYMENTS,PRIVATE CONTRACTOR,REVENUE
Walsall Council,http://opendatacommunities.org/id/metropolitan-district-council/walsall ,WC135-391,28.02.2022,ADULT SOCIAL CARE,ADVANCE HEALTH CARE (UK) LTD,15/02/2022,435.96,6541-Domiciliary Care,THIRD PARTY PAYMENTS,PRIVATE CONTRACTOR,REVENUE
Walsall Council,http://opendatacommunities.org/id/metropolitan-district-council/walsall ,WC135-392,28.02.2022,ADULT SOCIAL CARE,ADVANCE HEALTH CARE (UK) LTD,15/02/2022,490.49,6541-Domiciliary Care,THIRD PARTY PAYMENTS,PRIVATE CONTRACTOR,REVENUE
Walsall Council,http://opendatacommunities.org/id/metropolitan-district-council/walsall ,WC135-393,28.02.2022,ADULT SOCIAL CARE,ADVANCE HEALTH CARE (UK) LTD,15/02/2022,871.92,6541-Domiciliary Care,THIRD PARTY PAYMENTS,PRIVATE CONTRACTOR,REVENUE
Walsall Council,http://opendatacommunities.org/id/metropolitan-district-council/walsall ,WC135-394,28.02.2022,ADULT SOCIAL CARE,ADVANCE HEALTH CARE (UK) LTD,15/02/2022,381.50,6541-Domiciliary Care,THIRD PARTY PAYMENTS,PRIVATE CONTRACTOR,REVENUE
Walsall Council,http://opendatacommunities.org/id/metropolitan-district-council/walsall ,WC135-395,28.02.2022,ADULT SOCIAL CARE,ADVANCE HEALTH CARE (UK) LTD,15/02/2022,490.49,6541-Domiciliary Care,THIRD PARTY PAYMENTS,PRIVATE CONTRACTOR,REVENUE
Walsall Council,http://opendatacommunities.org/id/metropolitan-district-council/walsall ,WC135-396,28.02.2022,ADULT SOCIAL CARE,ADVANCE HEALTH CARE (UK) LTD,15/02/2022,490.49,6541-Domiciliary Care,THIRD PARTY PAYMENTS,PRIVATE CONTRACTOR,REVENUE
Walsall Council,http://opendatacommunities.org/id/metropolitan-district-council/walsall ,WC135-397,28.02.2022,ADULT SOCIAL CARE,ADVANCE HEALTH CARE (UK) LTD,15/02/2022,490.49,6541-Domiciliary Care,THIRD PARTY PAYMENTS,PRIVATE CONTRACTOR,REVENUE
Walsall Council,http://opendatacommunities.org/id/metropolitan-district-council/walsall ,WC135-398,28.02.2022,ADULT SOCIAL CARE,ADVANCE HEALTH CARE (UK) LTD,15/02/2022,490.49,6541-Domiciliary Care,THIRD PARTY PAYMENTS,PRIVATE CONTRACTOR,REVENUE
Walsall Council,http://opendatacommunities.org/id/metropolitan-district-council/walsall ,WC135-399,28.02.2022,ADULT SOCIAL CARE,ADVANCE HEALTH CARE (UK) LTD,15/02/2022,544.95,6541-Domiciliary Care,THIRD PARTY PAYMENTS,PRIVATE CONTRACTOR,REVENUE
Walsall Council,http://opendatacommunities.org/id/metropolitan-district-council/walsall ,WC135-400,28.02.2022,ADULT SOCIAL CARE,ADVANCE HEALTH CARE (UK) LTD,15/02/2022,363.30,6541-Domiciliary Care,THIRD PARTY PAYMENTS,PRIVATE CONTRACTOR,REVENUE
Walsall Council,http://opendatacommunities.org/id/metropolitan-district-council/walsall ,WC135-401,28.02.2022,ADULT SOCIAL CARE,ADVANCE HEALTH CARE (UK) LTD,15/02/2022,490.49,6541-Domiciliary Care,THIRD PARTY PAYMENTS,PRIVATE CONTRACTOR,REVENUE
Walsall Council,http://opendatacommunities.org/id/metropolitan-district-council/walsall ,WC135-402,28.02.2022,ADULT SOCIAL CARE,ADVANCE HEALTH CARE (UK) LTD,15/02/2022,490.49,6541-Domiciliary Care,THIRD PARTY PAYMENTS,PRIVATE CONTRACTOR,REVENUE
Walsall Council,http://opendatacommunities.org/id/metropolitan-district-council/walsall ,WC135-403,28.02.2022,ADULT SOCIAL CARE,ADVANCE HEALTH CARE (UK) LTD,15/02/2022,435.96,6541-Domiciliary Care,THIRD PARTY PAYMENTS,PRIVATE CONTRACTOR,REVENUE
Walsall Council,http://opendatacommunities.org/id/metropolitan-district-council/walsall ,WC135-404,28.02.2022,ADULT SOCIAL CARE,ADVANCE HEALTH CARE (UK) LTD,15/02/2022,435.96,6541-Domiciliary Care,THIRD PARTY PAYMENTS,PRIVATE CONTRACTOR,REVENUE
Walsall Council,http://opendatacommunities.org/id/metropolitan-district-council/walsall ,WC135-405,28.02.2022,ADULT SOCIAL CARE,ADVANCE HEALTH CARE (UK) LTD,15/02/2022,381.50,6541-Domiciliary Care,THIRD PARTY PAYMENTS,PRIVATE CONTRACTOR,REVENUE
Walsall Council,http://opendatacommunities.org/id/metropolitan-district-council/walsall ,WC135-406,28.02.2022,ADULT SOCIAL CARE,ADVANCE HEALTH CARE (UK) LTD,15/02/2022,506.06,6541-Domiciliary Care,THIRD PARTY PAYMENTS,PRIVATE CONTRACTOR,REVENUE
Walsall Council,http://opendatacommunities.org/id/metropolitan-district-council/walsall ,WC135-407,28.02.2022,ADULT SOCIAL CARE,ADVANCE HEALTH CARE (UK) LTD,15/02/2022,490.49,6541-Domiciliary Care,THIRD PARTY PAYMENTS,PRIVATE CONTRACTOR,REVENUE
Walsall Council,http://opendatacommunities.org/id/metropolitan-district-council/walsall ,WC135-408,28.02.2022,ADULT SOCIAL CARE,ADVANCE HEALTH CARE (UK) LTD,15/02/2022,490.49,6541-Domiciliary Care,THIRD PARTY PAYMENTS,PRIVATE CONTRACTOR,REVENUE
Walsall Council,http://opendatacommunities.org/id/metropolitan-district-council/walsall ,WC135-409,28.02.2022,ADULT SOCIAL CARE,ADVANCE HEALTH CARE (UK) LTD,15/02/2022,454.16,6541-Domiciliary Care,THIRD PARTY PAYMENTS,PRIVATE CONTRACTOR,REVENUE
Walsall Council,http://opendatacommunities.org/id/metropolitan-district-council/walsall ,WC135-410,28.02.2022,CHILDRENS,ADVENTURELAND DAY NURSERY,14/02/2022,"2,673.00",1184-Other-Grants to Other Orgs,SUPPLIES & SERVICES,GRANTS (EXP) & SUBSCRIPTIONS,REVENUE
Walsall Council,http://opendatacommunities.org/id/metropolitan-district-council/walsall ,WC135-411,28.02.2022,CHILDRENS,ADVENTURELAND DAY NURSERY,18/02/2022,"1,530.54",1220-Top Up Funding -Grants to Schools,SUPPLIES & SERVICES,GRANTS (EXP) & SUBSCRIPTIONS,REVENUE
Walsall Council,http://opendatacommunities.org/id/metropolitan-district-council/walsall ,WC135-412,28.02.2022,ADULT SOCIAL CARE,ADVINIA CARE HOMES LTD - HAMMERWICH HALL CARE HOME,15/02/2022,"2,064.44",6541-Residential,THIRD PARTY PAYMENTS,PRIVATE CONTRACTOR,REVENUE
Walsall Council,http://opendatacommunities.org/id/metropolitan-district-council/walsall ,WC135-413,28.02.2022,ADULT SOCIAL CARE,ADVINIA CARE HOMES LTD - HAMMERWICH HALL CARE HOME,15/02/2022,"2,331.08",6541-Residential EMI,THIRD PARTY PAYMENTS,PRIVATE CONTRACTOR,REVENUE
Walsall Council,http://opendatacommunities.org/id/metropolitan-district-council/walsall ,WC135-414,28.02.2022,ADULT SOCIAL CARE,AESOP ARTS AND SOCIETY LTD,10/02/2022,"6,192.50",6420-Consultant Fees,SUPPLIES & SERVICES,SERVICES,REVENUE
Walsall Council,http://opendatacommunities.org/id/metropolitan-district-council/walsall ,WC135-415,28.02.2022,CHILDRENS,REDACTED,10/02/2022,408.00,6223-Internal Foster Carers-Carer Fees,TRANSFER PAYMENTS,CHILDREN SOCIAL SERVICES CLIENT,REVENUE
Walsall Council,http://opendatacommunities.org/id/metropolitan-district-council/walsall ,WC135-416,28.02.2022,CHILDRENS,REDACTED,10/02/2022,608.00,6223-Foster Carers Maintenance Allowance,TRANSFER PAYMENTS,CHILDREN SOCIAL SERVICES CLIENT,REVENUE
Walsall Council,http://opendatacommunities.org/id/metropolitan-district-council/walsall ,WC135-417,28.02.2022,CHILDRENS,REDACTED,10/02/2022,546.76,6223-Foster Carers Maintenance Allowance,TRANSFER PAYMENTS,CHILDREN SOCIAL SERVICES CLIENT,REVENUE
Walsall Council,http://opendatacommunities.org/id/metropolitan-district-council/walsall ,WC135-418,28.02.2022,"ECONOMY, ENVIRONMENT & COMMUNITIES",AFRICA ADVOCACY FOUNDATION,02/02/2022,"1,600.00",6430-Grants to Other Orgs,SUPPLIES & SERVICES,GRANTS (EXP) & SUBSCRIPTIONS,REVENUE
Walsall Council,http://opendatacommunities.org/id/metropolitan-district-council/walsall ,WC135-419,28.02.2022,RESOURCES AND TRANSFORMATION,AGILISYS LTD,01/02/2022,"95,000.00",6623-Computer Equipment,SUPPLIES & SERVICES,COMMUNICATIONS & COMPUTING,REVENUE
Walsall Council,http://opendatacommunities.org/id/metropolitan-district-council/walsall ,WC135-420,28.02.2022,RESOURCES AND TRANSFORMATION,AGILISYS LTD,10/02/2022,"35,191.29",6626-Consultant Fees,SUPPLIES & SERVICES,SERVICES,REVENUE
Walsall Council,http://opendatacommunities.org/id/metropolitan-district-council/walsall ,WC135-421,28.02.2022,RESOURCES AND TRANSFORMATION CAPITAL,AGILISYS LTD,02/02/2022,"-1,589.00",7300-Consultants Fees,CAPITAL,"NEW CONSTRUCTION,CONVERSION & RENOVATION",CAPITAL
Walsall Council,http://opendatacommunities.org/id/metropolitan-district-council/walsall ,WC135-422,28.02.2022,RESOURCES AND TRANSFORMATION CAPITAL,AGILISYS LTD,02/02/2022,"-1,589.00",7300-Consultants Fees,CAPITAL,"NEW CONSTRUCTION,CONVERSION & RENOVATION",CAPITAL
Walsall Council,http://opendatacommunities.org/id/metropolitan-district-council/walsall ,WC135-423,28.02.2022,RESOURCES AND TRANSFORMATION CAPITAL,AGILISYS LTD,02/02/2022,"1,589.00",7300-Consultants Fees,CAPITAL,"NEW CONSTRUCTION,CONVERSION & RENOVATION",CAPITAL
Walsall Council,http://opendatacommunities.org/id/metropolitan-district-council/walsall ,WC135-424,28.02.2022,RESOURCES AND TRANSFORMATION CAPITAL,AGILISYS LTD,02/02/2022,"1,589.00",7300-Consultants Fees,CAPITAL,"NEW CONSTRUCTION,CONVERSION & RENOVATION",CAPITAL
Walsall Council,http://opendatacommunities.org/id/metropolitan-district-council/walsall ,WC135-425,28.02.2022,RESOURCES AND TRANSFORMATION,AGILISYS LTD,02/02/2022,"95,000.00",6623-Computer Equipment,SUPPLIES & SERVICES,COMMUNICATIONS & COMPUTING,REVENUE
Walsall Council,http://opendatacommunities.org/id/metropolitan-district-council/walsall ,WC135-426,28.02.2022,RESOURCES AND TRANSFORMATION CAPITAL,AGILISYS LTD,25/02/2022,"22,706.00",7300-Consultants Fees,CAPITAL,"NEW CONSTRUCTION,CONVERSION & RENOVATION",CAPITAL
Walsall Council,http://opendatacommunities.org/id/metropolitan-district-council/walsall ,WC135-427,28.02.2022,RESOURCES AND TRANSFORMATION CAPITAL,AGILISYS LTD,25/02/2022,"129,380.00",7300-Consultants Fees,CAPITAL,"NEW CONSTRUCTION,CONVERSION & RENOVATION",CAPITAL
Walsall Council,http://opendatacommunities.org/id/metropolitan-district-council/walsall ,WC135-428,28.02.2022,RESOURCES AND TRANSFORMATION CAPITAL,AGILISYS LTD,28/02/2022,"15,526.00",7300-Consultants Fees,CAPITAL,"NEW CONSTRUCTION,CONVERSION & RENOVATION",CAPITAL
Walsall Council,http://opendatacommunities.org/id/metropolitan-district-council/walsall ,WC135-429,28.02.2022,RESOURCES AND TRANSFORMATION CAPITAL,AGILISYS LTD,28/02/2022,"103,504.00",7300-Consultants Fees,CAPITAL,"NEW CONSTRUCTION,CONVERSION & RENOVATION",CAPITAL
Walsall Council,http://opendatacommunities.org/id/metropolitan-district-council/walsall ,WC135-430,28.02.2022,RESOURCES AND TRANSFORMATION CAPITAL,AGILISYS LTD,28/02/2022,"14,532.00",7300-Consultants Fees,CAPITAL,"NEW CONSTRUCTION,CONVERSION & RENOVATION",CAPITAL
Walsall Council,http://opendatacommunities.org/id/metropolitan-district-council/walsall ,WC135-431,28.02.2022,RESOURCES AND TRANSFORMATION,AGILISYS LTD,28/02/2022,"58,806.99",6626-Consultant Fees,SUPPLIES & SERVICES,SERVICES,REVENUE
Walsall Council,http://opendatacommunities.org/id/metropolitan-district-council/walsall ,WC135-432,28.02.2022,ADULT SOCIAL CARE,REDACTED,02/02/2022,"2,480.64",6541-Direct Payment,THIRD PARTY PAYMENTS,PRIVATE CONTRACTOR,REVENUE
Walsall Council,http://opendatacommunities.org/id/metropolitan-district-council/walsall ,WC135-433,28.02.2022,CHILDRENS,ALASDAIR CANT & ASSOCIATES LIMITED,22/02/2022,"2,880.50",6220-Professional Fees & Services,SUPPLIES & SERVICES,SERVICES,REVENUE
Walsall Council,http://opendatacommunities.org/id/metropolitan-district-council/walsall ,WC135-434,28.02.2022,RESOURCES AND TRANSFORMATION,ALASDAIR CANT & ASSOCIATES LIMITED,28/02/2022,"2,605.50",6625-Consultant Fees,SUPPLIES & SERVICES,SERVICES,REVENUE
Walsall Council,http://opendatacommunities.org/id/metropolitan-district-council/walsall ,WC135-435,28.02.2022,"ECONOMY, ENVIRONMENT & COMMUNITIES",ALBERT JAGGER LTD,08/02/2022,475.44,6410-Materials,SUPPLIES & SERVICES,EQUIPMENT FURNITURE & MATERIALS,REVENUE
Walsall Council,http://opendatacommunities.org/id/metropolitan-district-council/walsall ,WC135-436,28.02.2022,CHILDRENS,ALDRIDGE & BARONS LIMITED,01/02/2022,965.60,6241-Hire of Vehicle with Driver,TRANSPORT,DIRECT TRANSPORT COSTS,REVENUE
Walsall Council,http://opendatacommunities.org/id/metropolitan-district-council/walsall ,WC135-437,28.02.2022,CHILDRENS,ALDRIDGE & BARONS LIMITED,01/02/2022,290.00,6241-Hire of Vehicle with Driver,TRANSPORT,DIRECT TRANSPORT COSTS,REVENUE
Walsall Council,http://opendatacommunities.org/id/metropolitan-district-council/walsall ,WC135-438,28.02.2022,CHILDRENS,ALDRIDGE & BARONS LIMITED,01/02/2022,892.80,6241-Hire of Vehicle with Driver,TRANSPORT,DIRECT TRANSPORT COSTS,REVENUE
Walsall Council,http://opendatacommunities.org/id/metropolitan-district-council/walsall ,WC135-439,28.02.2022,CHILDRENS,ALDRIDGE & BARONS LIMITED,01/02/2022,810.00,6241-Hire of Vehicle with Driver,TRANSPORT,DIRECT TRANSPORT COSTS,REVENUE
Walsall Council,http://opendatacommunities.org/id/metropolitan-district-council/walsall ,WC135-440,28.02.2022,CHILDRENS,ALDRIDGE & BARONS LIMITED,01/02/2022,990.00,6241-Hire of Vehicle with Driver,TRANSPORT,DIRECT TRANSPORT COSTS,REVENUE
Walsall Council,http://opendatacommunities.org/id/metropolitan-district-council/walsall ,WC135-441,28.02.2022,CHILDRENS,ALDRIDGE & BARONS LIMITED,01/02/2022,738.00,6241-Hire of Vehicle with Driver,TRANSPORT,DIRECT TRANSPORT COSTS,REVENUE
Walsall Council,http://opendatacommunities.org/id/metropolitan-district-council/walsall ,WC135-442,28.02.2022,CHILDRENS,ALDRIDGE & BARONS LIMITED,01/02/2022,720.00,6241-Hire of Vehicle with Driver,TRANSPORT,DIRECT TRANSPORT COSTS,REVENUE
Walsall Council,http://opendatacommunities.org/id/metropolitan-district-council/walsall ,WC135-443,28.02.2022,CHILDRENS,ALDRIDGE & BARONS LIMITED,01/02/2022,772.65,6241-Hire of Vehicle with Driver,TRANSPORT,DIRECT TRANSPORT COSTS,REVENUE
Walsall Council,http://opendatacommunities.org/id/metropolitan-district-council/walsall ,WC135-444,28.02.2022,CHILDRENS,ALDRIDGE & BARONS LIMITED,01/02/2022,796.50,6241-Hire of Vehicle with Driver,TRANSPORT,DIRECT TRANSPORT COSTS,REVENUE
Walsall Council,http://opendatacommunities.org/id/metropolitan-district-council/walsall ,WC135-445,28.02.2022,CHILDRENS,ALDRIDGE & BARONS LIMITED,01/02/2022,911.20,6241-Hire of Vehicle with Driver,TRANSPORT,DIRECT TRANSPORT COSTS,REVENUE
Walsall Council,http://opendatacommunities.org/id/metropolitan-district-council/walsall ,WC135-446,28.02.2022,CHILDRENS,ALDRIDGE & BARONS LIMITED,01/02/2022,810.60,6241-Hire of Vehicle with Driver,TRANSPORT,DIRECT TRANSPORT COSTS,REVENUE
Walsall Council,http://opendatacommunities.org/id/metropolitan-district-council/walsall ,WC135-447,28.02.2022,CHILDRENS,ALDRIDGE & BARONS LIMITED,01/02/2022,832.00,6241-Hire of Vehicle with Driver,TRANSPORT,DIRECT TRANSPORT COSTS,REVENUE
Walsall Council,http://opendatacommunities.org/id/metropolitan-district-council/walsall ,WC135-448,28.02.2022,CHILDRENS,ALDRIDGE & BARONS LIMITED,01/02/2022,919.10,6241-Hire of Vehicle with Driver,TRANSPORT,DIRECT TRANSPORT COSTS,REVENUE
Walsall Council,http://opendatacommunities.org/id/metropolitan-district-council/walsall ,WC135-449,28.02.2022,CHILDRENS,ALDRIDGE & BARONS LIMITED,01/02/2022,958.50,6241-Hire of Vehicle with Driver,TRANSPORT,DIRECT TRANSPORT COSTS,REVENUE
Walsall Council,http://opendatacommunities.org/id/metropolitan-district-council/walsall ,WC135-450,28.02.2022,CHILDRENS,ALDRIDGE & BARONS LIMITED,01/02/2022,577.80,6241-Hire of Vehicle with Driver,TRANSPORT,DIRECT TRANSPORT COSTS,REVENUE
Walsall Council,http://opendatacommunities.org/id/metropolitan-district-council/walsall ,WC135-451,28.02.2022,CHILDRENS,ALDRIDGE & BARONS LIMITED,01/02/2022,"1,040.00",6241-Hire of Vehicle with Driver,TRANSPORT,DIRECT TRANSPORT COSTS,REVENUE
Walsall Council,http://opendatacommunities.org/id/metropolitan-district-council/walsall ,WC135-452,28.02.2022,CHILDRENS,ALDRIDGE & BARONS LIMITED,01/02/2022,772.56,6241-Hire of Vehicle with Driver,TRANSPORT,DIRECT TRANSPORT COSTS,REVENUE
Walsall Council,http://opendatacommunities.org/id/metropolitan-district-council/walsall ,WC135-453,28.02.2022,CHILDRENS,ALDRIDGE & BARONS LIMITED,01/02/2022,870.75,6241-Hire of Vehicle with Driver,TRANSPORT,DIRECT TRANSPORT COSTS,REVENUE
Walsall Council,http://opendatacommunities.org/id/metropolitan-district-council/walsall ,WC135-454,28.02.2022,CHILDRENS,ALDRIDGE & BARONS LIMITED,01/02/2022,990.00,6241-Hire of Vehicle with Driver,TRANSPORT,DIRECT TRANSPORT COSTS,REVENUE
Walsall Council,http://opendatacommunities.org/id/metropolitan-district-council/walsall ,WC135-455,28.02.2022,CHILDRENS,ALDRIDGE & BARONS LIMITED,01/02/2022,288.00,6241-Hire of Vehicle with Driver,TRANSPORT,DIRECT TRANSPORT COSTS,REVENUE
Walsall Council,http://opendatacommunities.org/id/metropolitan-district-council/walsall ,WC135-456,28.02.2022,CHILDRENS,ALDRIDGE & BARONS LIMITED,01/02/2022,709.02,6241-Hire of Vehicle with Driver,TRANSPORT,DIRECT TRANSPORT COSTS,REVENUE
Walsall Council,http://opendatacommunities.org/id/metropolitan-district-council/walsall ,WC135-457,28.02.2022,CHILDRENS,ALDRIDGE & BARONS LIMITED,01/02/2022,860.11,6241-Hire of Vehicle with Driver,TRANSPORT,DIRECT TRANSPORT COSTS,REVENUE
Walsall Council,http://opendatacommunities.org/id/metropolitan-district-council/walsall ,WC135-458,28.02.2022,CHILDRENS,ALDRIDGE & BARONS LIMITED,01/02/2022,810.00,6241-Hire of Vehicle with Driver,TRANSPORT,DIRECT TRANSPORT COSTS,REVENUE
Walsall Council,http://opendatacommunities.org/id/metropolitan-district-council/walsall ,WC135-459,28.02.2022,CHILDRENS,ALDRIDGE & BARONS LIMITED,01/02/2022,765.60,6241-Hire of Vehicle with Driver,TRANSPORT,DIRECT TRANSPORT COSTS,REVENUE
Walsall Council,http://opendatacommunities.org/id/metropolitan-district-council/walsall ,WC135-460,28.02.2022,CHILDRENS,ALDRIDGE & BARONS LIMITED,01/02/2022,882.00,6241-Hire of Vehicle with Driver,TRANSPORT,DIRECT TRANSPORT COSTS,REVENUE
Walsall Council,http://opendatacommunities.org/id/metropolitan-district-council/walsall ,WC135-461,28.02.2022,CHILDRENS,ALDRIDGE & BARONS LIMITED,01/02/2022,794.00,6241-Hire of Vehicle with Driver,TRANSPORT,DIRECT TRANSPORT COSTS,REVENUE
Walsall Council,http://opendatacommunities.org/id/metropolitan-district-council/walsall ,WC135-462,28.02.2022,CHILDRENS,ALDRIDGE & BARONS LIMITED,01/02/2022,620.00,6241-Hire of Vehicle with Driver,TRANSPORT,DIRECT TRANSPORT COSTS,REVENUE
Walsall Council,http://opendatacommunities.org/id/metropolitan-district-council/walsall ,WC135-463,28.02.2022,CHILDRENS,ALDRIDGE & BARONS LIMITED,01/02/2022,985.60,6241-Hire of Vehicle with Driver,TRANSPORT,DIRECT TRANSPORT COSTS,REVENUE
Walsall Council,http://opendatacommunities.org/id/metropolitan-district-council/walsall ,WC135-464,28.02.2022,CHILDRENS,ALDRIDGE & BARONS LIMITED,01/02/2022,859.04,6241-Hire of Vehicle with Driver,TRANSPORT,DIRECT TRANSPORT COSTS,REVENUE
Walsall Council,http://opendatacommunities.org/id/metropolitan-district-council/walsall ,WC135-465,28.02.2022,CHILDRENS,ALDRIDGE & BARONS LIMITED,01/02/2022,875.70,6241-Hire of Vehicle with Driver,TRANSPORT,DIRECT TRANSPORT COSTS,REVENUE
Walsall Council,http://opendatacommunities.org/id/metropolitan-district-council/walsall ,WC135-466,28.02.2022,CHILDRENS,ALDRIDGE & BARONS LIMITED,01/02/2022,880.00,6241-Hire of Vehicle with Driver,TRANSPORT,DIRECT TRANSPORT COSTS,REVENUE
Walsall Council,http://opendatacommunities.org/id/metropolitan-district-council/walsall ,WC135-467,28.02.2022,ADULT SOCIAL CARE,REDACTED,02/02/2022,"1,494.72",6541-Direct Payment,THIRD PARTY PAYMENTS,PRIVATE CONTRACTOR,REVENUE
Walsall Council,http://opendatacommunities.org/id/metropolitan-district-council/walsall ,WC135-468,28.02.2022,ADULT SOCIAL CARE,ALEXANDRA HOUSE CARE SERVICES LTD T/A STONEBRIDGE NURSING HOME,15/02/2022,"7,434.72",6541-Residential,THIRD PARTY PAYMENTS,PRIVATE CONTRACTOR,REVENUE
Walsall Council,http://opendatacommunities.org/id/metropolitan-district-council/walsall ,WC135-469,28.02.2022,ADULT SOCIAL CARE,REDACTED,02/02/2022,957.44,6541-Direct Payment,THIRD PARTY PAYMENTS,PRIVATE CONTRACTOR,REVENUE
Walsall Council,http://opendatacommunities.org/id/metropolitan-district-council/walsall ,WC135-470,28.02.2022,CHILDRENS,REDACTED,10/02/2022,318.68,6223-Special Guardianship Orders,TRANSFER PAYMENTS,CHILDREN SOCIAL SERVICES CLIENT,REVENUE
Walsall Council,http://opendatacommunities.org/id/metropolitan-district-council/walsall ,WC135-471,28.02.2022,CHILDRENS,ALL SAINTS NATIONAL ACADEMY #1,18/02/2022,"1,481.77",1220-Top Up Funding -Grants to Schools,SUPPLIES & SERVICES,GRANTS (EXP) & SUBSCRIPTIONS,REVENUE
Walsall Council,http://opendatacommunities.org/id/metropolitan-district-council/walsall ,WC135-472,28.02.2022,ADULT SOCIAL CARE,ALMA COURT,15/02/2022,"4,764.88",6541-Nursing EMI,THIRD PARTY PAYMENTS,PRIVATE CONTRACTOR,REVENUE
Walsall Council,http://opendatacommunities.org/id/metropolitan-district-council/walsall ,WC135-473,28.02.2022,ADULT SOCIAL CARE,ALMA COURT,15/02/2022,"6,619.12",6541-Residential,THIRD PARTY PAYMENTS,PRIVATE CONTRACTOR,REVENUE
Walsall Council,http://opendatacommunities.org/id/metropolitan-district-council/walsall ,WC135-474,28.02.2022,ADULT SOCIAL CARE,ALMA COURT,15/02/2022,"3,826.96",6541-Nursing EMI,THIRD PARTY PAYMENTS,PRIVATE CONTRACTOR,REVENUE
Walsall Council,http://opendatacommunities.org/id/metropolitan-district-council/walsall ,WC135-475,28.02.2022,ADULT SOCIAL CARE,ALMA COURT,15/02/2022,"4,200.00",6541-Nursing EMI,THIRD PARTY PAYMENTS,PRIVATE CONTRACTOR,REVENUE
Walsall Council,http://opendatacommunities.org/id/metropolitan-district-council/walsall ,WC135-476,28.02.2022,ADULT SOCIAL CARE,ALMA COURT,15/02/2022,"4,200.00",6541-Residential,THIRD PARTY PAYMENTS,PRIVATE CONTRACTOR,REVENUE
Walsall Council,http://opendatacommunities.org/id/metropolitan-district-council/walsall ,WC135-477,28.02.2022,ADULT SOCIAL CARE,ALMA COURT,15/02/2022,"3,626.96",6541-Nursing EMI,THIRD PARTY PAYMENTS,PRIVATE CONTRACTOR,REVENUE
Walsall Council,http://opendatacommunities.org/id/metropolitan-district-council/walsall ,WC135-478,28.02.2022,CHILDRENS,ALMOZENE NURSERY & CHILDRENS CENTRE,14/02/2022,"1,782.00",1184-Other-Grants to Other Orgs,SUPPLIES & SERVICES,GRANTS (EXP) & SUBSCRIPTIONS,REVENUE
Walsall Council,http://opendatacommunities.org/id/metropolitan-district-council/walsall ,WC135-479,28.02.2022,CHILDRENS,ALMOZENE NURSERY & CHILDRENS CENTRE,14/02/2022,"1,898.10",1184-Other-Grants to Other Orgs,SUPPLIES & SERVICES,GRANTS (EXP) & SUBSCRIPTIONS,REVENUE
Walsall Council,http://opendatacommunities.org/id/metropolitan-district-council/walsall ,WC135-480,28.02.2022,"ECONOMY, ENVIRONMENT & COMMUNITIES",ALMOZENE NURSERY & CHILDRENS CENTRE,08/02/2022,372.94,6313-Grants to Other Orgs,SUPPLIES & SERVICES,GRANTS (EXP) & SUBSCRIPTIONS,REVENUE
Walsall Council,http://opendatacommunities.org/id/metropolitan-district-council/walsall ,WC135-481,28.02.2022,"ECONOMY, ENVIRONMENT & COMMUNITIES",ALMOZENE NURSERY & CHILDRENS CENTRE,21/02/2022,642.92,6313-Grants to Other Orgs,SUPPLIES & SERVICES,GRANTS (EXP) & SUBSCRIPTIONS,REVENUE
Walsall Council,http://opendatacommunities.org/id/metropolitan-district-council/walsall ,WC135-482,28.02.2022,"ECONOMY, ENVIRONMENT & COMMUNITIES",ALMOZENE NURSERY & CHILDRENS CENTRE,10/02/2022,645.07,6313-Grants to Other Orgs,SUPPLIES & SERVICES,GRANTS (EXP) & SUBSCRIPTIONS,REVENUE
Walsall Council,http://opendatacommunities.org/id/metropolitan-district-council/walsall ,WC135-483,28.02.2022,"ECONOMY, ENVIRONMENT & COMMUNITIES",ALMOZENE NURSERY & CHILDRENS CENTRE,23/02/2022,492.00,6313-Grants to Other Orgs,SUPPLIES & SERVICES,GRANTS (EXP) & SUBSCRIPTIONS,REVENUE
Walsall Council,http://opendatacommunities.org/id/metropolitan-district-council/walsall ,WC135-484,28.02.2022,"ECONOMY, ENVIRONMENT & COMMUNITIES",ALMOZENE NURSERY & CHILDRENS CENTRE,08/02/2022,500.00,6313-Grants to Other Orgs,SUPPLIES & SERVICES,GRANTS (EXP) & SUBSCRIPTIONS,REVENUE
Walsall Council,http://opendatacommunities.org/id/metropolitan-district-council/walsall ,WC135-485,28.02.2022,ADULT SOCIAL CARE,ALPHA HEALTH CARE LTD,15/02/2022,"3,091.28",6541-Nursing EMI,THIRD PARTY PAYMENTS,PRIVATE CONTRACTOR,REVENUE
Walsall Council,http://opendatacommunities.org/id/metropolitan-district-council/walsall ,WC135-486,28.02.2022,ADULT SOCIAL CARE,ALPHA HEALTH CARE LTD,15/02/2022,"2,331.08",6541-Residential EMI,THIRD PARTY PAYMENTS,PRIVATE CONTRACTOR,REVENUE
Walsall Council,http://opendatacommunities.org/id/metropolitan-district-council/walsall ,WC135-487,28.02.2022,ADULT SOCIAL CARE,ALPHA HEALTH CARE LTD,15/02/2022,"2,722.96",6541-Nursing EMI,THIRD PARTY PAYMENTS,PRIVATE CONTRACTOR,REVENUE
Walsall Council,http://opendatacommunities.org/id/metropolitan-district-council/walsall ,WC135-488,28.02.2022,ADULT SOCIAL CARE,ALPHA HEALTH CARE LTD,15/02/2022,"7,026.96",6541-Nursing EMI,THIRD PARTY PAYMENTS,PRIVATE CONTRACTOR,REVENUE
Walsall Council,http://opendatacommunities.org/id/metropolitan-district-council/walsall ,WC135-489,28.02.2022,ADULT SOCIAL CARE,ALPHA HEALTH CARE LTD,15/02/2022,"7,000.00",6541-Residential,THIRD PARTY PAYMENTS,PRIVATE CONTRACTOR,REVENUE
Walsall Council,http://opendatacommunities.org/id/metropolitan-district-council/walsall ,WC135-490,28.02.2022,ADULT SOCIAL CARE,ALPHA HEALTH CARE LTD,15/02/2022,"3,340.00",6541-Residential EMI,THIRD PARTY PAYMENTS,PRIVATE CONTRACTOR,REVENUE
Walsall Council,http://opendatacommunities.org/id/metropolitan-district-council/walsall ,WC135-491,28.02.2022,ADULT SOCIAL CARE,ALPHA HEALTH CARE LTD,15/02/2022,"2,228.57",6541-Residential & Nursing Care Placements,THIRD PARTY PAYMENTS,PRIVATE CONTRACTOR,REVENUE
Walsall Council,http://opendatacommunities.org/id/metropolitan-district-council/walsall ,WC135-492,28.02.2022,ADULT SOCIAL CARE,ALPHA HEALTH CARE LTD,15/02/2022,"3,091.28",6541-Nursing EMI,THIRD PARTY PAYMENTS,PRIVATE CONTRACTOR,REVENUE
Walsall Council,http://opendatacommunities.org/id/metropolitan-district-council/walsall ,WC135-493,28.02.2022,ADULT SOCIAL CARE,ALPHA HEALTH CARE LTD,15/02/2022,999.03,6541-Residential EMI,THIRD PARTY PAYMENTS,PRIVATE CONTRACTOR,REVENUE
Walsall Council,http://opendatacommunities.org/id/metropolitan-district-council/walsall ,WC135-494,28.02.2022,ADULT SOCIAL CARE,ALPHA HEALTH CARE LTD,15/02/2022,"3,363.08",6541-Residential EMI,THIRD PARTY PAYMENTS,PRIVATE CONTRACTOR,REVENUE
Walsall Council,http://opendatacommunities.org/id/metropolitan-district-council/walsall ,WC135-495,28.02.2022,ADULT SOCIAL CARE,ALPHA HEALTH CARE LTD,15/02/2022,"3,049.60",6541-Nursing EMI,THIRD PARTY PAYMENTS,PRIVATE CONTRACTOR,REVENUE
Walsall Council,http://opendatacommunities.org/id/metropolitan-district-council/walsall ,WC135-496,28.02.2022,ADULT SOCIAL CARE,ALPHA HEALTH CARE LTD,15/02/2022,"2,731.08",6541-Residential EMI,THIRD PARTY PAYMENTS,PRIVATE CONTRACTOR,REVENUE
Walsall Council,http://opendatacommunities.org/id/metropolitan-district-council/walsall ,WC135-497,28.02.2022,ADULT SOCIAL CARE,ALPHA HEALTH CARE LTD,15/02/2022,474.85,6541-Residential & Nursing Care Placements,THIRD PARTY PAYMENTS,PRIVATE CONTRACTOR,REVENUE
Walsall Council,http://opendatacommunities.org/id/metropolitan-district-council/walsall ,WC135-498,28.02.2022,ADULT SOCIAL CARE,ALPHA HEALTH CARE LTD,15/02/2022,"2,700.00",6541-Professional Services-Priv Contractor & Other Agencies,THIRD PARTY PAYMENTS,PRIVATE CONTRACTOR,REVENUE
Walsall Council,http://opendatacommunities.org/id/metropolitan-district-council/walsall ,WC135-499,28.02.2022,ADULT SOCIAL CARE,ALPHA HEALTH CARE LTD,15/02/2022,"3,900.00",6541-Residential,THIRD PARTY PAYMENTS,PRIVATE CONTRACTOR,REVENUE
Walsall Council,http://opendatacommunities.org/id/metropolitan-district-council/walsall ,WC135-500,28.02.2022,ADULT SOCIAL CARE,ALPHA HEALTH CARE LTD,15/02/2022,"3,800.00",6541-Nursing,THIRD PARTY PAYMENTS,PRIVATE CONTRACTOR,REVENUE
Walsall Council,http://opendatacommunities.org/id/metropolitan-district-council/walsall ,WC135-501,28.02.2022,ADULT SOCIAL CARE,ALPHA HEALTH CARE LTD,15/02/2022,"5,656.00",6541-Residential,THIRD PARTY PAYMENTS,PRIVATE CONTRACTOR,REVENUE
Walsall Council,http://opendatacommunities.org/id/metropolitan-district-council/walsall ,WC135-502,28.02.2022,ADULT SOCIAL CARE,ALPHA HEALTH CARE LTD,15/02/2022,"3,064.32",6541-Nursing EMI,THIRD PARTY PAYMENTS,PRIVATE CONTRACTOR,REVENUE
Walsall Council,http://opendatacommunities.org/id/metropolitan-district-council/walsall ,WC135-503,28.02.2022,ADULT SOCIAL CARE,ALPHA HEALTH CARE LTD,15/02/2022,"3,340.00",6541-Residential EMI,THIRD PARTY PAYMENTS,PRIVATE CONTRACTOR,REVENUE
Walsall Council,http://opendatacommunities.org/id/metropolitan-district-council/walsall ,WC135-504,28.02.2022,ADULT SOCIAL CARE,ALPHA HEALTH CARE LTD,15/02/2022,"1,689.29",6541-Residential & Nursing Care Placements,THIRD PARTY PAYMENTS,PRIVATE CONTRACTOR,REVENUE
Walsall Council,http://opendatacommunities.org/id/metropolitan-district-council/walsall ,WC135-505,28.02.2022,ADULT SOCIAL CARE,ALPHA HEALTH CARE LTD,15/02/2022,"2,722.96",6541-Nursing EMI,THIRD PARTY PAYMENTS,PRIVATE CONTRACTOR,REVENUE
Walsall Council,http://opendatacommunities.org/id/metropolitan-district-council/walsall ,WC135-506,28.02.2022,ADULT SOCIAL CARE,ALPHA HEALTH CARE LTD,15/02/2022,"2,961.72",6541-Nursing,THIRD PARTY PAYMENTS,PRIVATE CONTRACTOR,REVENUE
Walsall Council,http://opendatacommunities.org/id/metropolitan-district-council/walsall ,WC135-507,28.02.2022,ADULT SOCIAL CARE,ALPHA HEALTH CARE LTD,15/02/2022,"2,854.56",6541-Residential EMI,THIRD PARTY PAYMENTS,PRIVATE CONTRACTOR,REVENUE
Walsall Council,http://opendatacommunities.org/id/metropolitan-district-council/walsall ,WC135-508,28.02.2022,ADULT SOCIAL CARE,ALPHA HEALTH CARE LTD,15/02/2022,"2,722.96",6541-Nursing EMI,THIRD PARTY PAYMENTS,PRIVATE CONTRACTOR,REVENUE
Walsall Council,http://opendatacommunities.org/id/metropolitan-district-council/walsall ,WC135-509,28.02.2022,ADULT SOCIAL CARE,ALPHA HEALTH CARE LTD,15/02/2022,"2,331.08",6541-Residential EMI,THIRD PARTY PAYMENTS,PRIVATE CONTRACTOR,REVENUE
Walsall Council,http://opendatacommunities.org/id/metropolitan-district-council/walsall ,WC135-510,28.02.2022,ADULT SOCIAL CARE,ALPHA HEALTH CARE LTD,15/02/2022,"6,249.60",6541-Residential,THIRD PARTY PAYMENTS,PRIVATE CONTRACTOR,REVENUE
Walsall Council,http://opendatacommunities.org/id/metropolitan-district-council/walsall ,WC135-511,28.02.2022,ADULT SOCIAL CARE,ALPHA HEALTH CARE LTD,15/02/2022,"3,149.60",6541-Nursing EMI,THIRD PARTY PAYMENTS,PRIVATE CONTRACTOR,REVENUE
Walsall Council,http://opendatacommunities.org/id/metropolitan-district-council/walsall ,WC135-512,28.02.2022,ADULT SOCIAL CARE,ALPHA HEALTH CARE LTD,15/02/2022,"3,626.96",6541-Nursing EMI,THIRD PARTY PAYMENTS,PRIVATE CONTRACTOR,REVENUE
Walsall Council,http://opendatacommunities.org/id/metropolitan-district-council/walsall ,WC135-513,28.02.2022,ADULT SOCIAL CARE,ALPHA HEALTH CARE LTD,15/02/2022,"2,600.00",6541-Residential,THIRD PARTY PAYMENTS,PRIVATE CONTRACTOR,REVENUE
Walsall Council,http://opendatacommunities.org/id/metropolitan-district-council/walsall ,WC135-514,28.02.2022,ADULT SOCIAL CARE,ALPHA HEALTH CARE LTD,15/02/2022,"2,150.00",6541-Residential & Nursing Care Placements,THIRD PARTY PAYMENTS,PRIVATE CONTRACTOR,REVENUE
Walsall Council,http://opendatacommunities.org/id/metropolitan-district-council/walsall ,WC135-515,28.02.2022,CHILDRENS,ALPHABIOLABS,28/02/2022,321.25,6220-School Only Payments - Catering,THIRD PARTY PAYMENTS,INDEPENDENT UNIT WITHIN COUNCIL,REVENUE
Walsall Council,http://opendatacommunities.org/id/metropolitan-district-council/walsall ,WC135-516,28.02.2022,CHILDRENS,ALPHABIOLABS,28/02/2022,554.00,6220-School Only Payments - Catering,THIRD PARTY PAYMENTS,INDEPENDENT UNIT WITHIN COUNCIL,REVENUE
Walsall Council,http://opendatacommunities.org/id/metropolitan-district-council/walsall ,WC135-517,28.02.2022,CHILDRENS,ALPHABIOLABS,16/02/2022,"1,014.00",6220-School Only Payments - Catering,THIRD PARTY PAYMENTS,INDEPENDENT UNIT WITHIN COUNCIL,REVENUE
Walsall Council,http://opendatacommunities.org/id/metropolitan-district-council/walsall ,WC135-518,28.02.2022,CHILDRENS,ALPHABIOLABS,15/02/2022,269.00,6220-School Only Payments - Catering,THIRD PARTY PAYMENTS,INDEPENDENT UNIT WITHIN COUNCIL,REVENUE
Walsall Council,http://opendatacommunities.org/id/metropolitan-district-council/walsall ,WC135-519,28.02.2022,CHILDRENS,ALPHABIOLABS,16/02/2022,741.67,6220-School Only Payments - Catering,THIRD PARTY PAYMENTS,INDEPENDENT UNIT WITHIN COUNCIL,REVENUE
Walsall Council,http://opendatacommunities.org/id/metropolitan-district-council/walsall ,WC135-520,28.02.2022,CHILDRENS,ALPHABIOLABS,22/02/2022,860.00,6222-Professional Fees & Services,SUPPLIES & SERVICES,SERVICES,REVENUE
Walsall Council,http://opendatacommunities.org/id/metropolitan-district-council/walsall ,WC135-521,28.02.2022,CHILDRENS,AMAH NURSERIES LIMITED T/A BANANA MOON WALSALL,14/02/2022,"5,568.75",1184-Other-Grants to Other Orgs,SUPPLIES & SERVICES,GRANTS (EXP) & SUBSCRIPTIONS,REVENUE
Walsall Council,http://opendatacommunities.org/id/metropolitan-district-council/walsall ,WC135-522,28.02.2022,CHILDRENS,AMAH NURSERIES LIMITED T/A BANANA MOON WALSALL,14/02/2022,"22,486.50",1184-Other-Grants to Other Orgs,SUPPLIES & SERVICES,GRANTS (EXP) & SUBSCRIPTIONS,REVENUE
Walsall Council,http://opendatacommunities.org/id/metropolitan-district-council/walsall ,WC135-523,28.02.2022,ADULT SOCIAL CARE,REDACTED,02/02/2022,"1,626.96",6541-Direct Payment,THIRD PARTY PAYMENTS,PRIVATE CONTRACTOR,REVENUE
Walsall Council,http://opendatacommunities.org/id/metropolitan-district-council/walsall ,WC135-524,28.02.2022,"ECONOMY, ENVIRONMENT & COMMUNITIES",AMEY LG LIMITED,09/02/2022,"4,158.00",6414-Materials,SUPPLIES & SERVICES,EQUIPMENT FURNITURE & MATERIALS,REVENUE
Walsall Council,http://opendatacommunities.org/id/metropolitan-district-council/walsall ,WC135-525,28.02.2022,"ECONOMY, ENVIRONMENT & COMMUNITIES",AMEY LG LIMITED,14/02/2022,893.10,6411-Professional Services-Priv Contractor & Other Agencies,THIRD PARTY PAYMENTS,PRIVATE CONTRACTOR,REVENUE
Walsall Council,http://opendatacommunities.org/id/metropolitan-district-council/walsall ,WC135-526,28.02.2022,"ECONOMY, ENVIRONMENT & COMMUNITIES",AMEY LG LIMITED,09/02/2022,"2,374.00",6430-Operational Maintenance,PREMISES,REPAIRS & MAINTENANCE,REVENUE
Walsall Council,http://opendatacommunities.org/id/metropolitan-district-council/walsall ,WC135-527,28.02.2022,"ECONOMY, ENVIRONMENT & COMMUNITIES",AMEY LG LIMITED,11/02/2022,"9,964.33",6411-Materials,SUPPLIES & SERVICES,EQUIPMENT FURNITURE & MATERIALS,REVENUE
Walsall Council,http://opendatacommunities.org/id/metropolitan-district-council/walsall ,WC135-528,28.02.2022,ADULT SOCIAL CARE,AMG NURSING CARE SERVICES,03/02/2022,"3,858.66",6541-Community Supported Living/Supported Accommodation,THIRD PARTY PAYMENTS,PRIVATE CONTRACTOR,REVENUE
Walsall Council,http://opendatacommunities.org/id/metropolitan-district-council/walsall ,WC135-529,28.02.2022,ADULT SOCIAL CARE,AMG NURSING CARE SERVICES,10/02/2022,"15,256.21",6541-Community Supported Living/Supported Accommodation,THIRD PARTY PAYMENTS,PRIVATE CONTRACTOR,REVENUE
Walsall Council,http://opendatacommunities.org/id/metropolitan-district-council/walsall ,WC135-530,28.02.2022,ADULT SOCIAL CARE,AMG NURSING CARE SERVICES,10/02/2022,"2,426.51",6541-Community Supported Living/Supported Accommodation,THIRD PARTY PAYMENTS,PRIVATE CONTRACTOR,REVENUE
Walsall Council,http://opendatacommunities.org/id/metropolitan-district-council/walsall ,WC135-531,28.02.2022,CHILDRENS,AMG NURSING CARE SERVICES,15/02/2022,403.16,6220-Professional Fees & Services,SUPPLIES & SERVICES,SERVICES,REVENUE
Walsall Council,http://opendatacommunities.org/id/metropolitan-district-council/walsall ,WC135-532,28.02.2022,CHILDRENS,AMG NURSING CARE SERVICES,17/02/2022,"1,108.76",6220-Accommodation and Related Costs-Assistance to S/S Clients,TRANSFER PAYMENTS,ADULT SOCIAL SERVICES CLIENT,REVENUE
Walsall Council,http://opendatacommunities.org/id/metropolitan-district-council/walsall ,WC135-533,28.02.2022,CHILDRENS,AMG NURSING CARE SERVICES,03/02/2022,406.60,6220-Professional Fees & Services,SUPPLIES & SERVICES,SERVICES,REVENUE
Walsall Council,http://opendatacommunities.org/id/metropolitan-district-council/walsall ,WC135-534,28.02.2022,CHILDRENS,AMG NURSING CARE SERVICES,03/02/2022,683.52,6220-Accommodation and Related Costs-Assistance to S/S Clients,TRANSFER PAYMENTS,ADULT SOCIAL SERVICES CLIENT,REVENUE
Walsall Council,http://opendatacommunities.org/id/metropolitan-district-council/walsall ,WC135-535,28.02.2022,CHILDRENS,AMG NURSING CARE SERVICES,16/02/2022,406.60,6220-Professional Fees & Services,SUPPLIES & SERVICES,SERVICES,REVENUE
Walsall Council,http://opendatacommunities.org/id/metropolitan-district-council/walsall ,WC135-536,28.02.2022,CHILDRENS,AMG NURSING CARE SERVICES,16/02/2022,"1,137.24",6220-Accommodation and Related Costs-Assistance to S/S Clients,TRANSFER PAYMENTS,ADULT SOCIAL SERVICES CLIENT,REVENUE
Walsall Council,http://opendatacommunities.org/id/metropolitan-district-council/walsall ,WC135-537,28.02.2022,CHILDRENS,AMG NURSING CARE SERVICES,16/02/2022,403.16,6220-Professional Fees & Services,SUPPLIES & SERVICES,SERVICES,REVENUE
Walsall Council,http://opendatacommunities.org/id/metropolitan-district-council/walsall ,WC135-538,28.02.2022,CHILDRENS,AMG NURSING CARE SERVICES,16/02/2022,859.50,6220-Accommodation and Related Costs-Assistance to S/S Clients,TRANSFER PAYMENTS,ADULT SOCIAL SERVICES CLIENT,REVENUE
Walsall Council,http://opendatacommunities.org/id/metropolitan-district-council/walsall ,WC135-539,28.02.2022,CHILDRENS,AMG NURSING CARE SERVICES,24/02/2022,406.60,6220-Professional Fees & Services,SUPPLIES & SERVICES,SERVICES,REVENUE
Walsall Council,http://opendatacommunities.org/id/metropolitan-district-council/walsall ,WC135-540,28.02.2022,CHILDRENS,AMG NURSING CARE SERVICES,24/02/2022,"-1,108.76",6220-Professional Fees & Services,SUPPLIES & SERVICES,SERVICES,REVENUE
Walsall Council,http://opendatacommunities.org/id/metropolitan-district-council/walsall ,WC135-541,28.02.2022,CHILDRENS,AMG NURSING CARE SERVICES,24/02/2022,"1,108.76",6220-Professional Fees & Services,SUPPLIES & SERVICES,SERVICES,REVENUE
Walsall Council,http://opendatacommunities.org/id/metropolitan-district-council/walsall ,WC135-542,28.02.2022,CHILDRENS,AMG NURSING CARE SERVICES,24/02/2022,"1,108.76",6220-Accommodation and Related Costs-Assistance to S/S Clients,TRANSFER PAYMENTS,ADULT SOCIAL SERVICES CLIENT,REVENUE
Walsall Council,http://opendatacommunities.org/id/metropolitan-district-council/walsall ,WC135-543,28.02.2022,ADULT SOCIAL CARE,AMG NURSING CARE SERVICES,10/02/2022,"15,020.87",6541-Community Supported Living/Supported Accommodation,THIRD PARTY PAYMENTS,PRIVATE CONTRACTOR,REVENUE
Walsall Council,http://opendatacommunities.org/id/metropolitan-district-council/walsall ,WC135-544,28.02.2022,ADULT SOCIAL CARE,AMG NURSING CARE SERVICES,10/02/2022,"2,891.47",6541-Community Supported Living/Supported Accommodation,THIRD PARTY PAYMENTS,PRIVATE CONTRACTOR,REVENUE
Walsall Council,http://opendatacommunities.org/id/metropolitan-district-council/walsall ,WC135-545,28.02.2022,ADULT SOCIAL CARE,AMPLELIME HEALTHCARE LIMITED,10/02/2022,"1,572.34",6540-Professional Services-Priv Contractor & Other Agencies,THIRD PARTY PAYMENTS,PRIVATE CONTRACTOR,REVENUE
Walsall Council,http://opendatacommunities.org/id/metropolitan-district-council/walsall ,WC135-546,28.02.2022,CHILDRENS,REDACTED,10/02/2022,340.00,6223-Internal Foster Carers-Carer Fees,TRANSFER PAYMENTS,CHILDREN SOCIAL SERVICES CLIENT,REVENUE
Walsall Council,http://opendatacommunities.org/id/metropolitan-district-council/walsall ,WC135-547,28.02.2022,CHILDRENS,REDACTED,10/02/2022,608.00,6223-Foster Carers Maintenance Allowance,TRANSFER PAYMENTS,CHILDREN SOCIAL SERVICES CLIENT,REVENUE
Walsall Council,http://opendatacommunities.org/id/metropolitan-district-council/walsall ,WC135-548,28.02.2022,ADULT SOCIAL CARE,ANCHOR CARE HOMES LTD,15/02/2022,"2,331.08",6541-Residential EMI,THIRD PARTY PAYMENTS,PRIVATE CONTRACTOR,REVENUE
Walsall Council,http://opendatacommunities.org/id/metropolitan-district-council/walsall ,WC135-549,28.02.2022,ADULT SOCIAL CARE,ANCHOR CAREHOMES LTD - HARDEN HALL,15/02/2022,"2,355.32",6541-Residential EMI,THIRD PARTY PAYMENTS,PRIVATE CONTRACTOR,REVENUE
Walsall Council,http://opendatacommunities.org/id/metropolitan-district-council/walsall ,WC135-550,28.02.2022,ADULT SOCIAL CARE,ANCHOR CAREHOMES LTD - HARDEN HALL,15/02/2022,"2,331.08",6541-Residential EMI,THIRD PARTY PAYMENTS,PRIVATE CONTRACTOR,REVENUE
Walsall Council,http://opendatacommunities.org/id/metropolitan-district-council/walsall ,WC135-551,28.02.2022,ADULT SOCIAL CARE,ANCHOR CAREHOMES LTD - HARDEN HALL,15/02/2022,"2,331.08",6541-Residential EMI,THIRD PARTY PAYMENTS,PRIVATE CONTRACTOR,REVENUE
Walsall Council,http://opendatacommunities.org/id/metropolitan-district-council/walsall ,WC135-552,28.02.2022,ADULT SOCIAL CARE,ANCHOR CAREHOMES LTD - HARDEN HALL,15/02/2022,"2,331.08",6541-Residential EMI,THIRD PARTY PAYMENTS,PRIVATE CONTRACTOR,REVENUE
Walsall Council,http://opendatacommunities.org/id/metropolitan-district-council/walsall ,WC135-553,28.02.2022,ADULT SOCIAL CARE,ANCHOR CAREHOMES LTD - HARDEN HALL,15/02/2022,"2,331.08",6541-Residential EMI,THIRD PARTY PAYMENTS,PRIVATE CONTRACTOR,REVENUE
Walsall Council,http://opendatacommunities.org/id/metropolitan-district-council/walsall ,WC135-554,28.02.2022,ADULT SOCIAL CARE,ANCHOR CAREHOMES LTD - HARDEN HALL,15/02/2022,"2,331.08",6541-Residential EMI,THIRD PARTY PAYMENTS,PRIVATE CONTRACTOR,REVENUE
Walsall Council,http://opendatacommunities.org/id/metropolitan-district-council/walsall ,WC135-555,28.02.2022,ADULT SOCIAL CARE,ANCHOR CAREHOMES LTD - HARDEN HALL,15/02/2022,"2,331.08",6541-Residential EMI,THIRD PARTY PAYMENTS,PRIVATE CONTRACTOR,REVENUE
Walsall Council,http://opendatacommunities.org/id/metropolitan-district-council/walsall ,WC135-556,28.02.2022,ADULT SOCIAL CARE,ANCHOR CAREHOMES LTD - HARDEN HALL,15/02/2022,"2,294.56",6541-Residential EMI,THIRD PARTY PAYMENTS,PRIVATE CONTRACTOR,REVENUE
Walsall Council,http://opendatacommunities.org/id/metropolitan-district-council/walsall ,WC135-557,28.02.2022,ADULT SOCIAL CARE,ANCHOR CAREHOMES LTD - HARDEN HALL,15/02/2022,"2,331.08",6541-Residential EMI,THIRD PARTY PAYMENTS,PRIVATE CONTRACTOR,REVENUE
Walsall Council,http://opendatacommunities.org/id/metropolitan-district-council/walsall ,WC135-558,28.02.2022,ADULT SOCIAL CARE,ANCHOR CAREHOMES LTD - HARDEN HALL,15/02/2022,"2,691.08",6541-Residential EMI,THIRD PARTY PAYMENTS,PRIVATE CONTRACTOR,REVENUE
Walsall Council,http://opendatacommunities.org/id/metropolitan-district-council/walsall ,WC135-559,28.02.2022,ADULT SOCIAL CARE,ANCHOR CAREHOMES LTD - HARDEN HALL,15/02/2022,"2,064.44",6541-Residential,THIRD PARTY PAYMENTS,PRIVATE CONTRACTOR,REVENUE
Walsall Council,http://opendatacommunities.org/id/metropolitan-district-council/walsall ,WC135-560,28.02.2022,ADULT SOCIAL CARE,ANCHOR CAREHOMES LTD - HARDEN HALL,15/02/2022,"2,331.08",6541-Residential EMI,THIRD PARTY PAYMENTS,PRIVATE CONTRACTOR,REVENUE
Walsall Council,http://opendatacommunities.org/id/metropolitan-district-council/walsall ,WC135-561,28.02.2022,ADULT SOCIAL CARE,ANCHOR CAREHOMES LTD - HARDEN HALL,15/02/2022,"2,331.08",6541-Residential EMI,THIRD PARTY PAYMENTS,PRIVATE CONTRACTOR,REVENUE
Walsall Council,http://opendatacommunities.org/id/metropolitan-district-council/walsall ,WC135-562,28.02.2022,ADULT SOCIAL CARE,ANCHOR CAREHOMES LTD - HARDEN HALL,15/02/2022,"2,064.44",6541-Residential,THIRD PARTY PAYMENTS,PRIVATE CONTRACTOR,REVENUE
Walsall Council,http://opendatacommunities.org/id/metropolitan-district-council/walsall ,WC135-563,28.02.2022,ADULT SOCIAL CARE,ANCHOR CAREHOMES LTD - HARDEN HALL,15/02/2022,"2,331.08",6541-Residential EMI,THIRD PARTY PAYMENTS,PRIVATE CONTRACTOR,REVENUE
Walsall Council,http://opendatacommunities.org/id/metropolitan-district-council/walsall ,WC135-564,28.02.2022,ADULT SOCIAL CARE,ANCHOR CAREHOMES LTD - HARDEN HALL,15/02/2022,"2,382.04",6541-Residential EMI,THIRD PARTY PAYMENTS,PRIVATE CONTRACTOR,REVENUE
Walsall Council,http://opendatacommunities.org/id/metropolitan-district-council/walsall ,WC135-565,28.02.2022,ADULT SOCIAL CARE,ANCHOR CAREHOMES LTD - HARDEN HALL,15/02/2022,"2,691.08",6541-Residential EMI,THIRD PARTY PAYMENTS,PRIVATE CONTRACTOR,REVENUE
Walsall Council,http://opendatacommunities.org/id/metropolitan-district-council/walsall ,WC135-566,28.02.2022,ADULT SOCIAL CARE,ANCHOR CAREHOMES LTD - HARDEN HALL,15/02/2022,"2,691.08",6541-Residential EMI,THIRD PARTY PAYMENTS,PRIVATE CONTRACTOR,REVENUE
Walsall Council,http://opendatacommunities.org/id/metropolitan-district-council/walsall ,WC135-567,28.02.2022,ADULT SOCIAL CARE,ANCHOR CAREHOMES LTD - HARDEN HALL,15/02/2022,"2,531.08",6541-Residential EMI,THIRD PARTY PAYMENTS,PRIVATE CONTRACTOR,REVENUE
Walsall Council,http://opendatacommunities.org/id/metropolitan-district-council/walsall ,WC135-568,28.02.2022,ADULT SOCIAL CARE,ANCHOR CAREHOMES LTD - HARDEN HALL,15/02/2022,"2,331.08",6541-Residential EMI,THIRD PARTY PAYMENTS,PRIVATE CONTRACTOR,REVENUE
Walsall Council,http://opendatacommunities.org/id/metropolitan-district-council/walsall ,WC135-569,28.02.2022,ADULT SOCIAL CARE,ANCHOR CAREHOMES LTD - HARDEN HALL,15/02/2022,"2,064.44",6541-Residential,THIRD PARTY PAYMENTS,PRIVATE CONTRACTOR,REVENUE
Walsall Council,http://opendatacommunities.org/id/metropolitan-district-council/walsall ,WC135-570,28.02.2022,ADULT SOCIAL CARE,ANCHOR CAREHOMES LTD - HARDEN HALL,15/02/2022,"1,766.49",6541-Residential EMI,THIRD PARTY PAYMENTS,PRIVATE CONTRACTOR,REVENUE
Walsall Council,http://opendatacommunities.org/id/metropolitan-district-council/walsall ,WC135-571,28.02.2022,ADULT SOCIAL CARE,ANCHOR CAREHOMES LTD - HARDEN HALL,15/02/2022,"2,691.08",6541-Residential EMI,THIRD PARTY PAYMENTS,PRIVATE CONTRACTOR,REVENUE
Walsall Council,http://opendatacommunities.org/id/metropolitan-district-council/walsall ,WC135-572,28.02.2022,ADULT SOCIAL CARE,ANCHOR CAREHOMES LTD - HARDEN HALL,15/02/2022,"16,723.14",6541-Residential EMI,THIRD PARTY PAYMENTS,PRIVATE CONTRACTOR,REVENUE
Walsall Council,http://opendatacommunities.org/id/metropolitan-district-council/walsall ,WC135-573,28.02.2022,CHILDRENS,REDACTED,10/02/2022,314.48,6223-Special Guardianship Orders,TRANSFER PAYMENTS,CHILDREN SOCIAL SERVICES CLIENT,REVENUE
Walsall Council,http://opendatacommunities.org/id/metropolitan-district-council/walsall ,WC135-574,28.02.2022,ADULT SOCIAL CARE,REDACTED,02/02/2022,518.00,6541-Direct Payment,THIRD PARTY PAYMENTS,PRIVATE CONTRACTOR,REVENUE
Walsall Council,http://opendatacommunities.org/id/metropolitan-district-council/walsall ,WC135-575,28.02.2022,ADULT SOCIAL CARE,REDACTED,02/02/2022,"2,710.16",6541-Direct Payment,THIRD PARTY PAYMENTS,PRIVATE CONTRACTOR,REVENUE
Walsall Council,http://opendatacommunities.org/id/metropolitan-district-council/walsall ,WC135-576,28.02.2022,CHILDRENS CAPITAL,ANDREWS ELECTRICAL LTD,25/02/2022,"9,780.00",7150-Site Works Contractors,CAPITAL,"NEW CONSTRUCTION,CONVERSION & RENOVATION",CAPITAL
Walsall Council,http://opendatacommunities.org/id/metropolitan-district-council/walsall ,WC135-577,28.02.2022,CHILDRENS CAPITAL,ANDREWS ELECTRICAL LTD,02/02/2022,"3,369.64",7155-Site Works Contractors,CAPITAL,"NEW CONSTRUCTION,CONVERSION & RENOVATION",CAPITAL
Walsall Council,http://opendatacommunities.org/id/metropolitan-district-council/walsall ,WC135-578,28.02.2022,CHILDRENS CAPITAL,ANDREWS ELECTRICAL LTD,11/02/2022,"24,890.00",7150-Site Works Contractors,CAPITAL,"NEW CONSTRUCTION,CONVERSION & RENOVATION",CAPITAL
Walsall Council,http://opendatacommunities.org/id/metropolitan-district-council/walsall ,WC135-579,28.02.2022,RESOURCES AND TRANSFORMATION,ANDREWS ELECTRICAL LTD,25/02/2022,"5,598.00",6310-Planned Maintenance,PREMISES,REPAIRS & MAINTENANCE,REVENUE
Walsall Council,http://opendatacommunities.org/id/metropolitan-district-council/walsall ,WC135-580,28.02.2022,CHILDRENS CAPITAL,ANDREWS ELECTRICAL LTD,25/02/2022,250.00,7150-Site Works Contractors,CAPITAL,"NEW CONSTRUCTION,CONVERSION & RENOVATION",CAPITAL
Walsall Council,http://opendatacommunities.org/id/metropolitan-district-council/walsall ,WC135-581,28.02.2022,CHILDRENS,REDACTED,10/02/2022,496.04,6223-Special Guardianship Orders,TRANSFER PAYMENTS,CHILDREN SOCIAL SERVICES CLIENT,REVENUE
Walsall Council,http://opendatacommunities.org/id/metropolitan-district-council/walsall ,WC135-582,28.02.2022,CHILDRENS,REDACTED,10/02/2022,363.24,6223-Special Guardianship Orders,TRANSFER PAYMENTS,CHILDREN SOCIAL SERVICES CLIENT,REVENUE
Walsall Council,http://opendatacommunities.org/id/metropolitan-district-council/walsall ,WC135-583,28.02.2022,CHILDRENS,REDACTED,10/02/2022,318.36,6223-Special Guardianship Orders,TRANSFER PAYMENTS,CHILDREN SOCIAL SERVICES CLIENT,REVENUE
Walsall Council,http://opendatacommunities.org/id/metropolitan-district-council/walsall ,WC135-584,28.02.2022,CHILDRENS,ANGELS AND BUTTERFLIES CHILDMINDING,14/02/2022,"1,113.75",1184-Other-Grants to Other Orgs,SUPPLIES & SERVICES,GRANTS (EXP) & SUBSCRIPTIONS,REVENUE
Walsall Council,http://opendatacommunities.org/id/metropolitan-district-council/walsall ,WC135-585,28.02.2022,CHILDRENS,ANGELS AND BUTTERFLIES CHILDMINDING,14/02/2022,"2,069.10",1184-Other-Grants to Other Orgs,SUPPLIES & SERVICES,GRANTS (EXP) & SUBSCRIPTIONS,REVENUE
Walsall Council,http://opendatacommunities.org/id/metropolitan-district-council/walsall ,WC135-586,28.02.2022,ADULT SOCIAL CARE,REDACTED,09/02/2022,352.80,6541-Shared Lives,THIRD PARTY PAYMENTS,PRIVATE CONTRACTOR,REVENUE
Walsall Council,http://opendatacommunities.org/id/metropolitan-district-council/walsall ,WC135-587,28.02.2022,ADULT SOCIAL CARE,REDACTED,23/02/2022,352.80,6541-Shared Lives,THIRD PARTY PAYMENTS,PRIVATE CONTRACTOR,REVENUE
Walsall Council,http://opendatacommunities.org/id/metropolitan-district-council/walsall ,WC135-588,28.02.2022,CHILDRENS,REDACTED,10/02/2022,829.00,6223-Foster Carers Maintenance Allowance,TRANSFER PAYMENTS,CHILDREN SOCIAL SERVICES CLIENT,REVENUE
Walsall Council,http://opendatacommunities.org/id/metropolitan-district-council/walsall ,WC135-589,28.02.2022,CHILDRENS,REDACTED,10/02/2022,300.00,6223-Purchase of Furniture & Equipment,SUPPLIES & SERVICES,EQUIPMENT FURNITURE & MATERIALS,REVENUE
Walsall Council,http://opendatacommunities.org/id/metropolitan-district-council/walsall ,WC135-590,28.02.2022,CHILDRENS,REDACTED,10/02/2022,448.84,6223-Special Guardianship Orders,TRANSFER PAYMENTS,CHILDREN SOCIAL SERVICES CLIENT,REVENUE
Walsall Council,http://opendatacommunities.org/id/metropolitan-district-council/walsall ,WC135-591,28.02.2022,ADULT SOCIAL CARE,ANSON COURT RESIDENTIAL HOME,15/02/2022,"2,331.08",6541-Residential EMI,THIRD PARTY PAYMENTS,PRIVATE CONTRACTOR,REVENUE
Walsall Council,http://opendatacommunities.org/id/metropolitan-district-council/walsall ,WC135-592,28.02.2022,ADULT SOCIAL CARE,ANSON COURT RESIDENTIAL HOME,15/02/2022,"2,331.08",6541-Residential EMI,THIRD PARTY PAYMENTS,PRIVATE CONTRACTOR,REVENUE
Walsall Council,http://opendatacommunities.org/id/metropolitan-district-council/walsall ,WC135-593,28.02.2022,ADULT SOCIAL CARE,ANSON COURT RESIDENTIAL HOME,15/02/2022,"2,331.08",6541-Residential EMI,THIRD PARTY PAYMENTS,PRIVATE CONTRACTOR,REVENUE
Walsall Council,http://opendatacommunities.org/id/metropolitan-district-council/walsall ,WC135-594,28.02.2022,ADULT SOCIAL CARE,ANSON COURT RESIDENTIAL HOME,15/02/2022,"2,331.08",6541-Residential EMI,THIRD PARTY PAYMENTS,PRIVATE CONTRACTOR,REVENUE
Walsall Council,http://opendatacommunities.org/id/metropolitan-district-council/walsall ,WC135-595,28.02.2022,ADULT SOCIAL CARE,ANSON COURT RESIDENTIAL HOME,15/02/2022,"2,331.08",6541-Residential EMI,THIRD PARTY PAYMENTS,PRIVATE CONTRACTOR,REVENUE
Walsall Council,http://opendatacommunities.org/id/metropolitan-district-council/walsall ,WC135-596,28.02.2022,ADULT SOCIAL CARE,ANSON COURT RESIDENTIAL HOME,15/02/2022,"2,331.08",6541-Residential EMI,THIRD PARTY PAYMENTS,PRIVATE CONTRACTOR,REVENUE
Walsall Council,http://opendatacommunities.org/id/metropolitan-district-council/walsall ,WC135-597,28.02.2022,ADULT SOCIAL CARE,ANSON COURT RESIDENTIAL HOME,15/02/2022,"2,331.08",6541-Residential EMI,THIRD PARTY PAYMENTS,PRIVATE CONTRACTOR,REVENUE
Walsall Council,http://opendatacommunities.org/id/metropolitan-district-council/walsall ,WC135-598,28.02.2022,ADULT SOCIAL CARE,ANSON COURT RESIDENTIAL HOME,15/02/2022,"2,331.08",6541-Residential EMI,THIRD PARTY PAYMENTS,PRIVATE CONTRACTOR,REVENUE
Walsall Council,http://opendatacommunities.org/id/metropolitan-district-council/walsall ,WC135-599,28.02.2022,ADULT SOCIAL CARE,ANSON COURT RESIDENTIAL HOME,15/02/2022,"2,064.44",6541-Residential,THIRD PARTY PAYMENTS,PRIVATE CONTRACTOR,REVENUE
Walsall Council,http://opendatacommunities.org/id/metropolitan-district-council/walsall ,WC135-600,28.02.2022,ADULT SOCIAL CARE,ANSON COURT RESIDENTIAL HOME,15/02/2022,"2,331.08",6541-Residential EMI,THIRD PARTY PAYMENTS,PRIVATE CONTRACTOR,REVENUE
Walsall Council,http://opendatacommunities.org/id/metropolitan-district-council/walsall ,WC135-601,28.02.2022,ADULT SOCIAL CARE,ANSON COURT RESIDENTIAL HOME,15/02/2022,"2,331.08",6541-Residential EMI,THIRD PARTY PAYMENTS,PRIVATE CONTRACTOR,REVENUE
Walsall Council,http://opendatacommunities.org/id/metropolitan-district-council/walsall ,WC135-602,28.02.2022,ADULT SOCIAL CARE,ANSON COURT RESIDENTIAL HOME,15/02/2022,"2,331.08",6541-Residential EMI,THIRD PARTY PAYMENTS,PRIVATE CONTRACTOR,REVENUE
Walsall Council,http://opendatacommunities.org/id/metropolitan-district-council/walsall ,WC135-603,28.02.2022,ADULT SOCIAL CARE,ANSON COURT RESIDENTIAL HOME,15/02/2022,"2,331.08",6541-Residential EMI,THIRD PARTY PAYMENTS,PRIVATE CONTRACTOR,REVENUE
Walsall Council,http://opendatacommunities.org/id/metropolitan-district-council/walsall ,WC135-604,28.02.2022,ADULT SOCIAL CARE,ANSON COURT RESIDENTIAL HOME,15/02/2022,"2,064.44",6541-Residential,THIRD PARTY PAYMENTS,PRIVATE CONTRACTOR,REVENUE
Walsall Council,http://opendatacommunities.org/id/metropolitan-district-council/walsall ,WC135-605,28.02.2022,ADULT SOCIAL CARE,ANSON COURT RESIDENTIAL HOME,15/02/2022,"2,184.44",6541-Residential,THIRD PARTY PAYMENTS,PRIVATE CONTRACTOR,REVENUE
Walsall Council,http://opendatacommunities.org/id/metropolitan-district-council/walsall ,WC135-606,28.02.2022,ADULT SOCIAL CARE,ANSON COURT RESIDENTIAL HOME,15/02/2022,"3,612.77",6541-Residential,THIRD PARTY PAYMENTS,PRIVATE CONTRACTOR,REVENUE
Walsall Council,http://opendatacommunities.org/id/metropolitan-district-council/walsall ,WC135-607,28.02.2022,ADULT SOCIAL CARE,ANSON COURT RESIDENTIAL HOME,15/02/2022,"2,331.08",6541-Residential EMI,THIRD PARTY PAYMENTS,PRIVATE CONTRACTOR,REVENUE
Walsall Council,http://opendatacommunities.org/id/metropolitan-district-council/walsall ,WC135-608,28.02.2022,ADULT SOCIAL CARE,ANSON COURT RESIDENTIAL HOME,15/02/2022,"2,331.08",6541-Residential EMI,THIRD PARTY PAYMENTS,PRIVATE CONTRACTOR,REVENUE
Walsall Council,http://opendatacommunities.org/id/metropolitan-district-council/walsall ,WC135-609,28.02.2022,ADULT SOCIAL CARE,ANSON COURT RESIDENTIAL HOME,15/02/2022,"2,064.44",6541-Residential,THIRD PARTY PAYMENTS,PRIVATE CONTRACTOR,REVENUE
Walsall Council,http://opendatacommunities.org/id/metropolitan-district-council/walsall ,WC135-610,28.02.2022,ADULT SOCIAL CARE,ANSON COURT RESIDENTIAL HOME,15/02/2022,"1,032.22",6541-Short Stay Residential,THIRD PARTY PAYMENTS,PRIVATE CONTRACTOR,REVENUE
Walsall Council,http://opendatacommunities.org/id/metropolitan-district-council/walsall ,WC135-611,28.02.2022,ADULT SOCIAL CARE,ANSON COURT RESIDENTIAL HOME,15/02/2022,"2,331.08",6541-Residential EMI,THIRD PARTY PAYMENTS,PRIVATE CONTRACTOR,REVENUE
Walsall Council,http://opendatacommunities.org/id/metropolitan-district-council/walsall ,WC135-612,28.02.2022,ADULT SOCIAL CARE,ANSON COURT RESIDENTIAL HOME,15/02/2022,737.30,6541-Short Stay Residential,THIRD PARTY PAYMENTS,PRIVATE CONTRACTOR,REVENUE
Walsall Council,http://opendatacommunities.org/id/metropolitan-district-council/walsall ,WC135-613,28.02.2022,CHILDRENS,ANTI-PEST PEST CONTROL SERVICES,01/02/2022,-310.00,6211-Professional Services-Priv Contractor & Other Agencies,THIRD PARTY PAYMENTS,PRIVATE CONTRACTOR,REVENUE
Walsall Council,http://opendatacommunities.org/id/metropolitan-district-council/walsall ,WC135-614,28.02.2022,CHILDRENS,ANTI-PEST PEST CONTROL SERVICES,01/02/2022,310.00,6211-Professional Services-Priv Contractor & Other Agencies,THIRD PARTY PAYMENTS,PRIVATE CONTRACTOR,REVENUE
Walsall Council,http://opendatacommunities.org/id/metropolitan-district-council/walsall ,WC135-615,28.02.2022,CHILDRENS,REDACTED,10/02/2022,334.64,6223-Special Guardianship Orders,TRANSFER PAYMENTS,CHILDREN SOCIAL SERVICES CLIENT,REVENUE
Walsall Council,http://opendatacommunities.org/id/metropolitan-district-council/walsall ,WC135-616,28.02.2022,"ECONOMY, ENVIRONMENT & COMMUNITIES",APCOA PARKING SERVICES (UK) LTD,02/02/2022,"55,574.89",6411-Professional Services-Priv Contractor & Other Agencies,THIRD PARTY PAYMENTS,PRIVATE CONTRACTOR,REVENUE
Walsall Council,http://opendatacommunities.org/id/metropolitan-district-council/walsall ,WC135-617,28.02.2022,RESOURCES AND TRANSFORMATION,APCOA PARKING SERVICES (UK) LTD,03/02/2022,-778.05,6634-Oxygen Finance Rebates ,SUPPLIES & SERVICES,SERVICES,REVENUE
Walsall Council,http://opendatacommunities.org/id/metropolitan-district-council/walsall ,WC135-618,28.02.2022,CHILDRENS,APP CARZ,15/02/2022,613.00,6314-Hire of Vehicle with Driver,TRANSPORT,DIRECT TRANSPORT COSTS,REVENUE
Walsall Council,http://opendatacommunities.org/id/metropolitan-district-council/walsall ,WC135-619,28.02.2022,CHILDRENS,APP CARZ,01/02/2022,288.00,6241-Hire of Vehicle with Driver,TRANSPORT,DIRECT TRANSPORT COSTS,REVENUE
Walsall Council,http://opendatacommunities.org/id/metropolitan-district-council/walsall ,WC135-620,28.02.2022,CHILDRENS,APP CARZ,01/02/2022,765.00,6241-Hire of Vehicle with Driver,TRANSPORT,DIRECT TRANSPORT COSTS,REVENUE
Walsall Council,http://opendatacommunities.org/id/metropolitan-district-council/walsall ,WC135-621,28.02.2022,CHILDRENS,APP CARZ,01/02/2022,711.00,6241-Hire of Vehicle with Driver,TRANSPORT,DIRECT TRANSPORT COSTS,REVENUE
Walsall Council,http://opendatacommunities.org/id/metropolitan-district-council/walsall ,WC135-622,28.02.2022,CHILDRENS,APP CARZ,01/02/2022,540.00,6241-Hire of Vehicle with Driver,TRANSPORT,DIRECT TRANSPORT COSTS,REVENUE
Walsall Council,http://opendatacommunities.org/id/metropolitan-district-council/walsall ,WC135-623,28.02.2022,CHILDRENS,APP CARZ,01/02/2022,396.00,6241-Hire of Vehicle with Driver,TRANSPORT,DIRECT TRANSPORT COSTS,REVENUE
Walsall Council,http://opendatacommunities.org/id/metropolitan-district-council/walsall ,WC135-624,28.02.2022,CHILDRENS,APP CARZ,01/02/2022,252.00,6241-Hire of Vehicle with Driver,TRANSPORT,DIRECT TRANSPORT COSTS,REVENUE
Walsall Council,http://opendatacommunities.org/id/metropolitan-district-council/walsall ,WC135-625,28.02.2022,CHILDRENS,APP CARZ,01/02/2022,810.00,6241-Hire of Vehicle with Driver,TRANSPORT,DIRECT TRANSPORT COSTS,REVENUE
Walsall Council,http://opendatacommunities.org/id/metropolitan-district-council/walsall ,WC135-626,28.02.2022,CHILDRENS,APP CARZ,01/02/2022,880.00,6241-Hire of Vehicle with Driver,TRANSPORT,DIRECT TRANSPORT COSTS,REVENUE
Walsall Council,http://opendatacommunities.org/id/metropolitan-district-council/walsall ,WC135-627,28.02.2022,CHILDRENS,APP CARZ,01/02/2022,320.00,6241-Hire of Vehicle with Driver,TRANSPORT,DIRECT TRANSPORT COSTS,REVENUE
Walsall Council,http://opendatacommunities.org/id/metropolitan-district-council/walsall ,WC135-628,28.02.2022,CHILDRENS,APP CARZ,01/02/2022,450.00,6241-Hire of Vehicle with Driver,TRANSPORT,DIRECT TRANSPORT COSTS,REVENUE
Walsall Council,http://opendatacommunities.org/id/metropolitan-district-council/walsall ,WC135-629,28.02.2022,CHILDRENS,APP CARZ,01/02/2022,540.00,6241-Hire of Vehicle with Driver,TRANSPORT,DIRECT TRANSPORT COSTS,REVENUE
Walsall Council,http://opendatacommunities.org/id/metropolitan-district-council/walsall ,WC135-630,28.02.2022,CHILDRENS,APP CARZ,01/02/2022,264.00,6241-Hire of Vehicle with Driver,TRANSPORT,DIRECT TRANSPORT COSTS,REVENUE
Walsall Council,http://opendatacommunities.org/id/metropolitan-district-council/walsall ,WC135-631,28.02.2022,CHILDRENS,APP CARZ,01/02/2022,530.00,6241-Hire of Vehicle with Driver,TRANSPORT,DIRECT TRANSPORT COSTS,REVENUE
Walsall Council,http://opendatacommunities.org/id/metropolitan-district-council/walsall ,WC135-632,28.02.2022,CHILDRENS,APPLE TRANSCRIPTION LIMITED,16/02/2022,360.36,6220-School Only Payments - Catering,THIRD PARTY PAYMENTS,INDEPENDENT UNIT WITHIN COUNCIL,REVENUE
Walsall Council,http://opendatacommunities.org/id/metropolitan-district-council/walsall ,WC135-633,28.02.2022,"ECONOMY, ENVIRONMENT & COMMUNITIES",APSE 001,15/02/2022,716.00,6410-External Training,INDIRECT EMPLOYEES,EXTERNAL TRAINING,REVENUE
Walsall Council,http://opendatacommunities.org/id/metropolitan-district-council/walsall ,WC135-634,28.02.2022,CHILDRENS,AQUAID (BIRMINGHAM CENTRAL),03/02/2022,266.00,1206-Food & Drink Supplies,SUPPLIES & SERVICES,CATERING,REVENUE
Walsall Council,http://opendatacommunities.org/id/metropolitan-district-council/walsall ,WC135-635,28.02.2022,"ECONOMY, ENVIRONMENT & COMMUNITIES",AQUILA TRUCK CENTRES LTD,22/02/2022,645.75,6410-Materials,SUPPLIES & SERVICES,EQUIPMENT FURNITURE & MATERIALS,REVENUE
Walsall Council,http://opendatacommunities.org/id/metropolitan-district-council/walsall ,WC135-636,28.02.2022,"ECONOMY, ENVIRONMENT & COMMUNITIES",AQUILA TRUCK CENTRES LTD,22/02/2022,-530.00,6410-Materials,SUPPLIES & SERVICES,EQUIPMENT FURNITURE & MATERIALS,REVENUE
Walsall Council,http://opendatacommunities.org/id/metropolitan-district-council/walsall ,WC135-637,28.02.2022,ADULT SOCIAL CARE,ARBORETUM NURSING HOME.,21/02/2022,"11,920.00",6554-Agency Staff,DIRECT EMPLOYEES,AGENCY,REVENUE
Walsall Council,http://opendatacommunities.org/id/metropolitan-district-council/walsall ,WC135-638,28.02.2022,ADULT SOCIAL CARE,ARBORETUM NURSING HOME.,15/02/2022,"1,642.12",6541-Nursing,THIRD PARTY PAYMENTS,PRIVATE CONTRACTOR,REVENUE
Walsall Council,http://opendatacommunities.org/id/metropolitan-district-council/walsall ,WC135-639,28.02.2022,ADULT SOCIAL CARE,ARBORETUM NURSING HOME.,15/02/2022,"2,419.96",6541-Nursing,THIRD PARTY PAYMENTS,PRIVATE CONTRACTOR,REVENUE
Walsall Council,http://opendatacommunities.org/id/metropolitan-district-council/walsall ,WC135-640,28.02.2022,ADULT SOCIAL CARE,ARBORETUM NURSING HOME.,15/02/2022,"2,419.96",6541-Nursing,THIRD PARTY PAYMENTS,PRIVATE CONTRACTOR,REVENUE
Walsall Council,http://opendatacommunities.org/id/metropolitan-district-council/walsall ,WC135-641,28.02.2022,ADULT SOCIAL CARE,ARBORETUM NURSING HOME.,15/02/2022,"2,419.96",6541-Nursing,THIRD PARTY PAYMENTS,PRIVATE CONTRACTOR,REVENUE
Walsall Council,http://opendatacommunities.org/id/metropolitan-district-council/walsall ,WC135-642,28.02.2022,ADULT SOCIAL CARE,ARBORETUM NURSING HOME.,15/02/2022,"2,419.96",6541-Nursing,THIRD PARTY PAYMENTS,PRIVATE CONTRACTOR,REVENUE
Walsall Council,http://opendatacommunities.org/id/metropolitan-district-council/walsall ,WC135-643,28.02.2022,ADULT SOCIAL CARE,ARBORETUM NURSING HOME.,15/02/2022,"2,419.96",6541-Nursing,THIRD PARTY PAYMENTS,PRIVATE CONTRACTOR,REVENUE
Walsall Council,http://opendatacommunities.org/id/metropolitan-district-council/walsall ,WC135-644,28.02.2022,ADULT SOCIAL CARE,ARBORETUM NURSING HOME.,15/02/2022,"2,419.96",6541-Nursing,THIRD PARTY PAYMENTS,PRIVATE CONTRACTOR,REVENUE
Walsall Council,http://opendatacommunities.org/id/metropolitan-district-council/walsall ,WC135-645,28.02.2022,ADULT SOCIAL CARE,ARBORETUM NURSING HOME.,15/02/2022,"2,980.00",6541-Residential & Nursing Care Placements,THIRD PARTY PAYMENTS,PRIVATE CONTRACTOR,REVENUE
Walsall Council,http://opendatacommunities.org/id/metropolitan-district-council/walsall ,WC135-646,28.02.2022,ADULT SOCIAL CARE,ARBORETUM NURSING HOME.,15/02/2022,"2,599.96",6541-Nursing,THIRD PARTY PAYMENTS,PRIVATE CONTRACTOR,REVENUE
Walsall Council,http://opendatacommunities.org/id/metropolitan-district-council/walsall ,WC135-647,28.02.2022,ADULT SOCIAL CARE,ARBORETUM NURSING HOME.,15/02/2022,"2,599.96",6541-Nursing,THIRD PARTY PAYMENTS,PRIVATE CONTRACTOR,REVENUE
Walsall Council,http://opendatacommunities.org/id/metropolitan-district-council/walsall ,WC135-648,28.02.2022,ADULT SOCIAL CARE,ARBORETUM NURSING HOME.,15/02/2022,"2,599.96",6541-Nursing,THIRD PARTY PAYMENTS,PRIVATE CONTRACTOR,REVENUE
Walsall Council,http://opendatacommunities.org/id/metropolitan-district-council/walsall ,WC135-649,28.02.2022,ADULT SOCIAL CARE,ARBORETUM NURSING HOME.,15/02/2022,"2,599.96",6541-Nursing,THIRD PARTY PAYMENTS,PRIVATE CONTRACTOR,REVENUE
Walsall Council,http://opendatacommunities.org/id/metropolitan-district-council/walsall ,WC135-650,28.02.2022,ADULT SOCIAL CARE,ARBORETUM NURSING HOME.,15/02/2022,"2,800.00",6541-Nursing,THIRD PARTY PAYMENTS,PRIVATE CONTRACTOR,REVENUE
Walsall Council,http://opendatacommunities.org/id/metropolitan-district-council/walsall ,WC135-651,28.02.2022,ADULT SOCIAL CARE,ARBORETUM NURSING HOME.,15/02/2022,"2,599.96",6541-Nursing,THIRD PARTY PAYMENTS,PRIVATE CONTRACTOR,REVENUE
Walsall Council,http://opendatacommunities.org/id/metropolitan-district-council/walsall ,WC135-652,28.02.2022,ADULT SOCIAL CARE,ARBORETUM NURSING HOME.,15/02/2022,"2,599.96",6541-Nursing,THIRD PARTY PAYMENTS,PRIVATE CONTRACTOR,REVENUE
Walsall Council,http://opendatacommunities.org/id/metropolitan-district-council/walsall ,WC135-653,28.02.2022,ADULT SOCIAL CARE,ARBORETUM NURSING HOME.,15/02/2022,"2,599.96",6541-Nursing,THIRD PARTY PAYMENTS,PRIVATE CONTRACTOR,REVENUE
Walsall Council,http://opendatacommunities.org/id/metropolitan-district-council/walsall ,WC135-654,28.02.2022,ADULT SOCIAL CARE,ARBORETUM NURSING HOME.,15/02/2022,"1,915.71",6541-Residential & Nursing Care Placements,THIRD PARTY PAYMENTS,PRIVATE CONTRACTOR,REVENUE
Walsall Council,http://opendatacommunities.org/id/metropolitan-district-council/walsall ,WC135-655,28.02.2022,ADULT SOCIAL CARE,ARBORETUM NURSING HOME.,15/02/2022,"2,419.96",6541-Nursing,THIRD PARTY PAYMENTS,PRIVATE CONTRACTOR,REVENUE
Walsall Council,http://opendatacommunities.org/id/metropolitan-district-council/walsall ,WC135-656,28.02.2022,ADULT SOCIAL CARE,ARBORETUM NURSING HOME.,15/02/2022,"2,419.96",6541-Nursing,THIRD PARTY PAYMENTS,PRIVATE CONTRACTOR,REVENUE
Walsall Council,http://opendatacommunities.org/id/metropolitan-district-council/walsall ,WC135-657,28.02.2022,ADULT SOCIAL CARE,ARBORETUM NURSING HOME.,15/02/2022,"2,599.96",6541-Nursing,THIRD PARTY PAYMENTS,PRIVATE CONTRACTOR,REVENUE
Walsall Council,http://opendatacommunities.org/id/metropolitan-district-council/walsall ,WC135-658,28.02.2022,ADULT SOCIAL CARE,ARBORETUM NURSING HOME.,15/02/2022,638.57,6541-Residential & Nursing Care Placements,THIRD PARTY PAYMENTS,PRIVATE CONTRACTOR,REVENUE
Walsall Council,http://opendatacommunities.org/id/metropolitan-district-council/walsall ,WC135-659,28.02.2022,ADULT SOCIAL CARE,ARBORETUM NURSING HOME.,15/02/2022,"2,235.00",6541-Residential & Nursing Care Placements,THIRD PARTY PAYMENTS,PRIVATE CONTRACTOR,REVENUE
Walsall Council,http://opendatacommunities.org/id/metropolitan-district-council/walsall ,WC135-660,28.02.2022,"ECONOMY, ENVIRONMENT & COMMUNITIES",ARBURY WALSALL,17/02/2022,371.87,6410-Materials,SUPPLIES & SERVICES,EQUIPMENT FURNITURE & MATERIALS,REVENUE
Walsall Council,http://opendatacommunities.org/id/metropolitan-district-council/walsall ,WC135-661,28.02.2022,"ECONOMY, ENVIRONMENT & COMMUNITIES",ARCHWAY TCS LTD,01/02/2022,767.50,6410-Vehicle Wash Plant Materials,SUPPLIES & SERVICES,EQUIPMENT FURNITURE & MATERIALS,REVENUE
Walsall Council,http://opendatacommunities.org/id/metropolitan-district-council/walsall ,WC135-662,28.02.2022,ADULT SOCIAL CARE,ASH GRANGE CARE HOME,15/02/2022,"2,722.96",6541-Nursing EMI,THIRD PARTY PAYMENTS,PRIVATE CONTRACTOR,REVENUE
Walsall Council,http://opendatacommunities.org/id/metropolitan-district-council/walsall ,WC135-663,28.02.2022,ADULT SOCIAL CARE,ASH GRANGE CARE HOME,15/02/2022,"2,064.44",6541-Residential,THIRD PARTY PAYMENTS,PRIVATE CONTRACTOR,REVENUE
Walsall Council,http://opendatacommunities.org/id/metropolitan-district-council/walsall ,WC135-664,28.02.2022,ADULT SOCIAL CARE,ASH GRANGE CARE HOME,15/02/2022,"2,419.96",6541-Nursing,THIRD PARTY PAYMENTS,PRIVATE CONTRACTOR,REVENUE
Walsall Council,http://opendatacommunities.org/id/metropolitan-district-council/walsall ,WC135-665,28.02.2022,ADULT SOCIAL CARE,ASH GRANGE CARE HOME,15/02/2022,"2,419.96",6541-Nursing,THIRD PARTY PAYMENTS,PRIVATE CONTRACTOR,REVENUE
Walsall Council,http://opendatacommunities.org/id/metropolitan-district-council/walsall ,WC135-666,28.02.2022,ADULT SOCIAL CARE,ASH GRANGE CARE HOME,15/02/2022,935.70,6541-Nursing,THIRD PARTY PAYMENTS,PRIVATE CONTRACTOR,REVENUE
Walsall Council,http://opendatacommunities.org/id/metropolitan-district-council/walsall ,WC135-667,28.02.2022,ADULT SOCIAL CARE,ASH GRANGE CARE HOME,15/02/2022,750.00,6541-Residential & Nursing Care Placements,THIRD PARTY PAYMENTS,PRIVATE CONTRACTOR,REVENUE
Walsall Council,http://opendatacommunities.org/id/metropolitan-district-council/walsall ,WC135-668,28.02.2022,ADULT SOCIAL CARE,ASH GRANGE CARE HOME,15/02/2022,"1,714.29",6541-Residential & Nursing Care Placements,THIRD PARTY PAYMENTS,PRIVATE CONTRACTOR,REVENUE
Walsall Council,http://opendatacommunities.org/id/metropolitan-district-council/walsall ,WC135-669,28.02.2022,ADULT SOCIAL CARE,ASH GRANGE CARE HOME,15/02/2022,857.14,6541-Residential & Nursing Care Placements,THIRD PARTY PAYMENTS,PRIVATE CONTRACTOR,REVENUE
Walsall Council,http://opendatacommunities.org/id/metropolitan-district-council/walsall ,WC135-670,28.02.2022,ADULT SOCIAL CARE,ASH GRANGE CARE HOME,15/02/2022,"2,819.96",6541-Nursing,THIRD PARTY PAYMENTS,PRIVATE CONTRACTOR,REVENUE
Walsall Council,http://opendatacommunities.org/id/metropolitan-district-council/walsall ,WC135-671,28.02.2022,ADULT SOCIAL CARE,ASH GRANGE CARE HOME,15/02/2022,"2,400.00",6541-Residential,THIRD PARTY PAYMENTS,PRIVATE CONTRACTOR,REVENUE
Walsall Council,http://opendatacommunities.org/id/metropolitan-district-council/walsall ,WC135-672,28.02.2022,ADULT SOCIAL CARE,ASH GRANGE CARE HOME,15/02/2022,428.57,6541-Residential & Nursing Care Placements,THIRD PARTY PAYMENTS,PRIVATE CONTRACTOR,REVENUE
Walsall Council,http://opendatacommunities.org/id/metropolitan-district-council/walsall ,WC135-673,28.02.2022,ADULT SOCIAL CARE,ASH GRANGE CARE HOME,15/02/2022,"2,606.96",6541-Residential,THIRD PARTY PAYMENTS,PRIVATE CONTRACTOR,REVENUE
Walsall Council,http://opendatacommunities.org/id/metropolitan-district-council/walsall ,WC135-674,28.02.2022,ADULT SOCIAL CARE,ASH GRANGE CARE HOME,15/02/2022,"2,719.96",6541-Nursing,THIRD PARTY PAYMENTS,PRIVATE CONTRACTOR,REVENUE
Walsall Council,http://opendatacommunities.org/id/metropolitan-district-council/walsall ,WC135-675,28.02.2022,ADULT SOCIAL CARE,ASH GRANGE CARE HOME,15/02/2022,"3,000.00",6541-Residential & Nursing Care Placements,THIRD PARTY PAYMENTS,PRIVATE CONTRACTOR,REVENUE
Walsall Council,http://opendatacommunities.org/id/metropolitan-district-council/walsall ,WC135-676,28.02.2022,ADULT SOCIAL CARE,ASH GRANGE CARE HOME,15/02/2022,"2,722.96",6541-Nursing EMI,THIRD PARTY PAYMENTS,PRIVATE CONTRACTOR,REVENUE
Walsall Council,http://opendatacommunities.org/id/metropolitan-district-council/walsall ,WC135-677,28.02.2022,ADULT SOCIAL CARE,ASH GRANGE CARE HOME,15/02/2022,"2,798.92",6541-Nursing,THIRD PARTY PAYMENTS,PRIVATE CONTRACTOR,REVENUE
Walsall Council,http://opendatacommunities.org/id/metropolitan-district-council/walsall ,WC135-678,28.02.2022,ADULT SOCIAL CARE,ASH GRANGE CARE HOME,15/02/2022,"1,607.14",6541-Residential & Nursing Care Placements,THIRD PARTY PAYMENTS,PRIVATE CONTRACTOR,REVENUE
Walsall Council,http://opendatacommunities.org/id/metropolitan-district-council/walsall ,WC135-679,28.02.2022,ADULT SOCIAL CARE,ASH GRANGE CARE HOME,15/02/2022,"2,619.96",6541-Nursing,THIRD PARTY PAYMENTS,PRIVATE CONTRACTOR,REVENUE
Walsall Council,http://opendatacommunities.org/id/metropolitan-district-council/walsall ,WC135-680,28.02.2022,ADULT SOCIAL CARE,ASH GRANGE CARE HOME,15/02/2022,"5,892.86",6541-Residential,THIRD PARTY PAYMENTS,PRIVATE CONTRACTOR,REVENUE
Walsall Council,http://opendatacommunities.org/id/metropolitan-district-council/walsall ,WC135-681,28.02.2022,ADULT SOCIAL CARE,ASH GRANGE CARE HOME,15/02/2022,"2,722.96",6541-Nursing EMI,THIRD PARTY PAYMENTS,PRIVATE CONTRACTOR,REVENUE
Walsall Council,http://opendatacommunities.org/id/metropolitan-district-council/walsall ,WC135-682,28.02.2022,ADULT SOCIAL CARE,ASH GRANGE CARE HOME,15/02/2022,"2,419.96",6541-Nursing,THIRD PARTY PAYMENTS,PRIVATE CONTRACTOR,REVENUE
Walsall Council,http://opendatacommunities.org/id/metropolitan-district-council/walsall ,WC135-683,28.02.2022,ADULT SOCIAL CARE,ASH GRANGE CARE HOME,15/02/2022,"1,178.57",6541-Residential & Nursing Care Placements,THIRD PARTY PAYMENTS,PRIVATE CONTRACTOR,REVENUE
Walsall Council,http://opendatacommunities.org/id/metropolitan-district-council/walsall ,WC135-684,28.02.2022,ADULT SOCIAL CARE,ASH GRANGE CARE HOME,15/02/2022,"1,285.71",6541-Residential & Nursing Care Placements,THIRD PARTY PAYMENTS,PRIVATE CONTRACTOR,REVENUE
Walsall Council,http://opendatacommunities.org/id/metropolitan-district-council/walsall ,WC135-685,28.02.2022,ADULT SOCIAL CARE,ASH GRANGE CARE HOME,03/02/2022,"2,196.86",6541-Nursing,THIRD PARTY PAYMENTS,PRIVATE CONTRACTOR,REVENUE
Walsall Council,http://opendatacommunities.org/id/metropolitan-district-council/walsall ,WC135-686,28.02.2022,ADULT SOCIAL CARE,ASH LODGE CARE HOME-CARE FIRST (SMETHWICK) LTD,10/02/2022,516.00,6541-Residential,THIRD PARTY PAYMENTS,PRIVATE CONTRACTOR,REVENUE
Walsall Council,http://opendatacommunities.org/id/metropolitan-district-council/walsall ,WC135-687,28.02.2022,ADULT SOCIAL CARE,REDACTED,02/02/2022,"1,426.04",6541-Direct Payment,THIRD PARTY PAYMENTS,PRIVATE CONTRACTOR,REVENUE
Walsall Council,http://opendatacommunities.org/id/metropolitan-district-council/walsall ,WC135-688,28.02.2022,"ECONOMY, ENVIRONMENT & COMMUNITIES",ASHTON ENGINEERING CO LTD,07/02/2022,370.00,6410-Materials,SUPPLIES & SERVICES,EQUIPMENT FURNITURE & MATERIALS,REVENUE
Walsall Council,http://opendatacommunities.org/id/metropolitan-district-council/walsall ,WC135-689,28.02.2022,"ECONOMY, ENVIRONMENT & COMMUNITIES",ASKEWS AND HOLTS LIBRARY SERVICES LTD,02/02/2022,"2,667.33",6414-Library Books,SUPPLIES & SERVICES,EQUIPMENT FURNITURE & MATERIALS,REVENUE
Walsall Council,http://opendatacommunities.org/id/metropolitan-district-council/walsall ,WC135-690,28.02.2022,"ECONOMY, ENVIRONMENT & COMMUNITIES",ASKEWS AND HOLTS LIBRARY SERVICES LTD,25/02/2022,"1,983.18",6414-Library Books,SUPPLIES & SERVICES,EQUIPMENT FURNITURE & MATERIALS,REVENUE
Walsall Council,http://opendatacommunities.org/id/metropolitan-district-council/walsall ,WC135-691,28.02.2022,"ECONOMY, ENVIRONMENT & COMMUNITIES",ASKEWS AND HOLTS LIBRARY SERVICES LTD,15/02/2022,468.68,6414-Library Books,SUPPLIES & SERVICES,EQUIPMENT FURNITURE & MATERIALS,REVENUE
Walsall Council,http://opendatacommunities.org/id/metropolitan-district-council/walsall ,WC135-692,28.02.2022,ADULT SOCIAL CARE,REDACTED,02/02/2022,750.72,6541-Direct Payment,THIRD PARTY PAYMENTS,PRIVATE CONTRACTOR,REVENUE
Walsall Council,http://opendatacommunities.org/id/metropolitan-district-council/walsall ,WC135-693,28.02.2022,ADULT SOCIAL CARE,ASPECTS CARE LTD,10/02/2022,464.96,6541-Community Supported Living/Supported Accommodation,THIRD PARTY PAYMENTS,PRIVATE CONTRACTOR,REVENUE
Walsall Council,http://opendatacommunities.org/id/metropolitan-district-council/walsall ,WC135-694,28.02.2022,ADULT SOCIAL CARE,ASPECTS CARE LTD,10/02/2022,523.12,6541-Community Supported Living/Supported Accommodation,THIRD PARTY PAYMENTS,PRIVATE CONTRACTOR,REVENUE
Walsall Council,http://opendatacommunities.org/id/metropolitan-district-council/walsall ,WC135-695,28.02.2022,ADULT SOCIAL CARE,ASPECTS CARE LTD,10/02/2022,566.68,6541-Community Supported Living/Supported Accommodation,THIRD PARTY PAYMENTS,PRIVATE CONTRACTOR,REVENUE
Walsall Council,http://opendatacommunities.org/id/metropolitan-district-council/walsall ,WC135-696,28.02.2022,ADULT SOCIAL CARE,ASPECTS CARE LTD,10/02/2022,421.44,6541-Community Supported Living/Supported Accommodation,THIRD PARTY PAYMENTS,PRIVATE CONTRACTOR,REVENUE
Walsall Council,http://opendatacommunities.org/id/metropolitan-district-council/walsall ,WC135-697,28.02.2022,ADULT SOCIAL CARE,ASPECTS CARE LTD,10/02/2022,799.24,6541-Community Supported Living/Supported Accommodation,THIRD PARTY PAYMENTS,PRIVATE CONTRACTOR,REVENUE
Walsall Council,http://opendatacommunities.org/id/metropolitan-district-council/walsall ,WC135-698,28.02.2022,ADULT SOCIAL CARE,ASPECTS CARE LTD,10/02/2022,-617.44,6541-Community Supported Living/Supported Accommodation,THIRD PARTY PAYMENTS,PRIVATE CONTRACTOR,REVENUE
Walsall Council,http://opendatacommunities.org/id/metropolitan-district-council/walsall ,WC135-699,28.02.2022,ADULT SOCIAL CARE,ASPECTS CARE LTD,10/02/2022,"1,089.76",6541-Community Supported Living/Supported Accommodation,THIRD PARTY PAYMENTS,PRIVATE CONTRACTOR,REVENUE
Walsall Council,http://opendatacommunities.org/id/metropolitan-district-council/walsall ,WC135-700,28.02.2022,ADULT SOCIAL CARE,ASPECTS CARE LTD,10/02/2022,"1,125.92",6541-Community Supported Living/Supported Accommodation,THIRD PARTY PAYMENTS,PRIVATE CONTRACTOR,REVENUE
Walsall Council,http://opendatacommunities.org/id/metropolitan-district-council/walsall ,WC135-701,28.02.2022,ADULT SOCIAL CARE,ASPECTS CARE LTD,10/02/2022,523.16,6541-Community Supported Living/Supported Accommodation,THIRD PARTY PAYMENTS,PRIVATE CONTRACTOR,REVENUE
Walsall Council,http://opendatacommunities.org/id/metropolitan-district-council/walsall ,WC135-702,28.02.2022,ADULT SOCIAL CARE,ASPECTS CARE LTD,10/02/2022,799.12,6541-Community Supported Living/Supported Accommodation,THIRD PARTY PAYMENTS,PRIVATE CONTRACTOR,REVENUE
Walsall Council,http://opendatacommunities.org/id/metropolitan-district-council/walsall ,WC135-703,28.02.2022,ADULT SOCIAL CARE,ASPECTS CARE LTD,10/02/2022,348.64,6541-Community Supported Living/Supported Accommodation,THIRD PARTY PAYMENTS,PRIVATE CONTRACTOR,REVENUE
Walsall Council,http://opendatacommunities.org/id/metropolitan-district-council/walsall ,WC135-704,28.02.2022,RESOURCES AND TRANSFORMATION,ASSOCIATION OF ELECTORAL ADMINISTRATORS,17/02/2022,386.00,6610-External Training,INDIRECT EMPLOYEES,EXTERNAL TRAINING,REVENUE
Walsall Council,http://opendatacommunities.org/id/metropolitan-district-council/walsall ,WC135-705,28.02.2022,RESOURCES AND TRANSFORMATION,ASSOCIATION OF ELECTORAL ADMINISTRATORS,02/02/2022,825.00,6610-Advertising Staff Vacancies,INDIRECT EMPLOYEES,ADVERTISING STAFF VACANCIES,REVENUE
Walsall Council,http://opendatacommunities.org/id/metropolitan-district-council/walsall ,WC135-706,28.02.2022,CHILDRENS,REDACTED,10/02/2022,281.68,6223-Residents Orders,TRANSFER PAYMENTS,CHILDREN SOCIAL SERVICES CLIENT,REVENUE
Walsall Council,http://opendatacommunities.org/id/metropolitan-district-council/walsall ,WC135-707,28.02.2022,CHILDRENS,REDACTED,10/02/2022,281.68,6223-Residents Orders,TRANSFER PAYMENTS,CHILDREN SOCIAL SERVICES CLIENT,REVENUE
Walsall Council,http://opendatacommunities.org/id/metropolitan-district-council/walsall ,WC135-708,28.02.2022,CHILDRENS,ATKINSON LEWIS LIMITED,04/02/2022,"1,840.00",6222-Professional Fees & Services,SUPPLIES & SERVICES,SERVICES,REVENUE
Walsall Council,http://opendatacommunities.org/id/metropolitan-district-council/walsall ,WC135-709,28.02.2022,CHILDRENS,ATKINSON LEWIS LIMITED,18/02/2022,492.20,6220-School Only Payments - Catering,THIRD PARTY PAYMENTS,INDEPENDENT UNIT WITHIN COUNCIL,REVENUE
Walsall Council,http://opendatacommunities.org/id/metropolitan-district-council/walsall ,WC135-710,28.02.2022,ADULT SOCIAL CARE,AUTISM WEST MIDLANDS,15/02/2022,"7,418.04",6541-Residential,THIRD PARTY PAYMENTS,PRIVATE CONTRACTOR,REVENUE
Walsall Council,http://opendatacommunities.org/id/metropolitan-district-council/walsall ,WC135-711,28.02.2022,ADULT SOCIAL CARE,AUTISM WEST MIDLANDS,15/02/2022,"5,732.64",6541-Residential,THIRD PARTY PAYMENTS,PRIVATE CONTRACTOR,REVENUE
Walsall Council,http://opendatacommunities.org/id/metropolitan-district-council/walsall ,WC135-712,28.02.2022,ADULT SOCIAL CARE,AUTISM WEST MIDLANDS,15/02/2022,"20,117.08",6541-Residential,THIRD PARTY PAYMENTS,PRIVATE CONTRACTOR,REVENUE
Walsall Council,http://opendatacommunities.org/id/metropolitan-district-council/walsall ,WC135-713,28.02.2022,ADULT SOCIAL CARE,AVE MARIA CARE SERVICES LTD,23/02/2022,"30,002.00",6554-Recruitment Expenses,INDIRECT EMPLOYEES,RECRUITMENT EXPENSES,REVENUE
Walsall Council,http://opendatacommunities.org/id/metropolitan-district-council/walsall ,WC135-714,28.02.2022,ADULT SOCIAL CARE,AVE MARIA CARE SERVICES LTD,23/02/2022,"17,144.00",6554-Professional Services-Priv Contractor & Other Agencies,THIRD PARTY PAYMENTS,PRIVATE CONTRACTOR,REVENUE
Walsall Council,http://opendatacommunities.org/id/metropolitan-district-council/walsall ,WC135-715,28.02.2022,ADULT SOCIAL CARE,AVE MARIA CARE SERVICES LTD,17/02/2022,"4,286.00",6554-Professional Services-Priv Contractor & Other Agencies,THIRD PARTY PAYMENTS,PRIVATE CONTRACTOR,REVENUE
Walsall Council,http://opendatacommunities.org/id/metropolitan-district-council/walsall ,WC135-716,28.02.2022,ADULT SOCIAL CARE,AVERY HOMES NELSON LIMITED,15/02/2022,"3,400.00",6541-Residential,THIRD PARTY PAYMENTS,PRIVATE CONTRACTOR,REVENUE
Walsall Council,http://opendatacommunities.org/id/metropolitan-district-council/walsall ,WC135-717,28.02.2022,ADULT SOCIAL CARE,AVERY HOMES NELSON LIMITED,15/02/2022,"2,064.44",6541-Residential,THIRD PARTY PAYMENTS,PRIVATE CONTRACTOR,REVENUE
Walsall Council,http://opendatacommunities.org/id/metropolitan-district-council/walsall ,WC135-718,28.02.2022,ADULT SOCIAL CARE,AVERY HOMES NELSON LIMITED,15/02/2022,"2,064.44",6541-Residential,THIRD PARTY PAYMENTS,PRIVATE CONTRACTOR,REVENUE
Walsall Council,http://opendatacommunities.org/id/metropolitan-district-council/walsall ,WC135-719,28.02.2022,ADULT SOCIAL CARE,AVERY HOMES NELSON LIMITED,15/02/2022,"3,000.00",6541-Residential,THIRD PARTY PAYMENTS,PRIVATE CONTRACTOR,REVENUE
Walsall Council,http://opendatacommunities.org/id/metropolitan-district-council/walsall ,WC135-720,28.02.2022,HOLDING ACCOUNTS,AWS SOLICITORS,15/02/2022,360.00,2877-Insurance Payment Claims,SUPPLIES & SERVICES,INSURANCE,REVENUE
Walsall Council,http://opendatacommunities.org/id/metropolitan-district-council/walsall ,WC135-721,28.02.2022,ADULT SOCIAL CARE,REDACTED,02/02/2022,"3,394.56",6541-Direct Payment,THIRD PARTY PAYMENTS,PRIVATE CONTRACTOR,REVENUE
Walsall Council,http://opendatacommunities.org/id/metropolitan-district-council/walsall ,WC135-722,28.02.2022,CHILDRENS CAPITAL,AZTEC CONSTRUCTION (MIDLANDS) LTD,09/02/2022,"9,103.33",7100-Private Grants,CAPITAL,CAPITAL GRANTS,CAPITAL GRANTS
Walsall Council,http://opendatacommunities.org/id/metropolitan-district-council/walsall ,WC135-723,28.02.2022,RESOURCES AND TRANSFORMATION,BAART HARRIES NEWALL,14/02/2022,"1,080.00",6310-Planned Maintenance,PREMISES,REPAIRS & MAINTENANCE,REVENUE
Walsall Council,http://opendatacommunities.org/id/metropolitan-district-council/walsall ,WC135-724,28.02.2022,RESOURCES AND TRANSFORMATION,BAART HARRIES NEWALL,16/02/2022,"-1,339.33",6310-Planned Maintenance,PREMISES,REPAIRS & MAINTENANCE,REVENUE
Walsall Council,http://opendatacommunities.org/id/metropolitan-district-council/walsall ,WC135-725,28.02.2022,RESOURCES AND TRANSFORMATION,BAART HARRIES NEWALL,16/02/2022,"1,223.33",6310-Planned Maintenance,PREMISES,REPAIRS & MAINTENANCE,REVENUE
Walsall Council,http://opendatacommunities.org/id/metropolitan-district-council/walsall ,WC135-726,28.02.2022,RESOURCES AND TRANSFORMATION,BAART HARRIES NEWALL,16/02/2022,"1,339.33",6310-Planned Maintenance,PREMISES,REPAIRS & MAINTENANCE,REVENUE
Walsall Council,http://opendatacommunities.org/id/metropolitan-district-council/walsall ,WC135-727,28.02.2022,RESOURCES AND TRANSFORMATION,BAILY GARNER LLP,28/02/2022,"10,912.50",6310-Planned Maintenance,PREMISES,REPAIRS & MAINTENANCE,REVENUE
Walsall Council,http://opendatacommunities.org/id/metropolitan-district-council/walsall ,WC135-728,28.02.2022,"ECONOMY, ENVIRONMENT & COMMUNITIES",BAKER HALL PARTNERSHIP,14/02/2022,967.50,6413-Professional Fees & Services,SUPPLIES & SERVICES,SERVICES,REVENUE
Walsall Council,http://opendatacommunities.org/id/metropolitan-district-council/walsall ,WC135-729,28.02.2022,ADULT SOCIAL CARE,REDACTED,02/02/2022,"3,799.92",6541-Direct Payment,THIRD PARTY PAYMENTS,PRIVATE CONTRACTOR,REVENUE
Walsall Council,http://opendatacommunities.org/id/metropolitan-district-council/walsall ,WC135-730,28.02.2022,CHILDRENS,BANYA FAMILY PLACEMENT AGENCY LTD,22/02/2022,"4,588.60",6223-Independent Foster Care-Oth Agency Provision,THIRD PARTY PAYMENTS,PRIVATE CONTRACTOR,REVENUE
Walsall Council,http://opendatacommunities.org/id/metropolitan-district-council/walsall ,WC135-731,28.02.2022,CHILDRENS,REDACTED,10/02/2022,340.00,6223-Internal Foster Carers-Carer Fees,TRANSFER PAYMENTS,CHILDREN SOCIAL SERVICES CLIENT,REVENUE
Walsall Council,http://opendatacommunities.org/id/metropolitan-district-council/walsall ,WC135-732,28.02.2022,"ECONOMY, ENVIRONMENT & COMMUNITIES",BARHALE CONSTRUCTION SERVICES LTD,10/02/2022,576.38,6313-Grants to Other Orgs,SUPPLIES & SERVICES,GRANTS (EXP) & SUBSCRIPTIONS,REVENUE
Walsall Council,http://opendatacommunities.org/id/metropolitan-district-council/walsall ,WC135-733,28.02.2022,CHILDRENS,BARNARDOS SERVICES LTD,24/02/2022,"3,000.00",6220-Professional Fees & Services,SUPPLIES & SERVICES,SERVICES,REVENUE
Walsall Council,http://opendatacommunities.org/id/metropolitan-district-council/walsall ,WC135-734,28.02.2022,CHILDRENS,BARNARDOS SERVICES LTD,24/02/2022,"17,100.00",6220-Professional Fees & Services,SUPPLIES & SERVICES,SERVICES,REVENUE
Walsall Council,http://opendatacommunities.org/id/metropolitan-district-council/walsall ,WC135-735,28.02.2022,CHILDRENS,BARR BEACON SCHOOL TRUST,18/02/2022,"15,413.52",1220-Top Up Funding -Grants to Schools,SUPPLIES & SERVICES,GRANTS (EXP) & SUBSCRIPTIONS,REVENUE
Walsall Council,http://opendatacommunities.org/id/metropolitan-district-council/walsall ,WC135-736,28.02.2022,"ECONOMY, ENVIRONMENT & COMMUNITIES",BAT FABRICATIONS LTD,16/02/2022,500.00,6410-Grounds Maintenance,PREMISES,GROUNDS MAINTENANCE,REVENUE
Walsall Council,http://opendatacommunities.org/id/metropolitan-district-council/walsall ,WC135-737,28.02.2022,"ECONOMY, ENVIRONMENT & COMMUNITIES",BAT FABRICATIONS LTD,16/02/2022,"3,250.00",6410-Grounds Maintenance,PREMISES,GROUNDS MAINTENANCE,REVENUE
Walsall Council,http://opendatacommunities.org/id/metropolitan-district-council/walsall ,WC135-738,28.02.2022,"ECONOMY, ENVIRONMENT & COMMUNITIES",BAT FABRICATIONS LTD,16/02/2022,"-3,361.00",6410-Grounds Maintenance,PREMISES,GROUNDS MAINTENANCE,REVENUE
Walsall Council,http://opendatacommunities.org/id/metropolitan-district-council/walsall ,WC135-739,28.02.2022,"ECONOMY, ENVIRONMENT & COMMUNITIES",BAT FABRICATIONS LTD,16/02/2022,"3,361.00",6410-Grounds Maintenance,PREMISES,GROUNDS MAINTENANCE,REVENUE
Walsall Council,http://opendatacommunities.org/id/metropolitan-district-council/walsall ,WC135-740,28.02.2022,"ECONOMY, ENVIRONMENT & COMMUNITIES",BAT FABRICATIONS LTD,16/02/2022,"4,430.00",6410-Grounds Maintenance,PREMISES,GROUNDS MAINTENANCE,REVENUE
Walsall Council,http://opendatacommunities.org/id/metropolitan-district-council/walsall ,WC135-741,28.02.2022,"ECONOMY, ENVIRONMENT & COMMUNITIES",BAT FABRICATIONS LTD,16/02/2022,"4,150.00",6410-Professional Services-Priv Contractor & Other Agencies,THIRD PARTY PAYMENTS,PRIVATE CONTRACTOR,REVENUE
Walsall Council,http://opendatacommunities.org/id/metropolitan-district-council/walsall ,WC135-742,28.02.2022,"ECONOMY, ENVIRONMENT & COMMUNITIES",BAT FABRICATIONS LTD,15/02/2022,"-1,185.00",6410-Operational Maintenance,PREMISES,REPAIRS & MAINTENANCE,REVENUE
Walsall Council,http://opendatacommunities.org/id/metropolitan-district-council/walsall ,WC135-743,28.02.2022,"ECONOMY, ENVIRONMENT & COMMUNITIES",BAT FABRICATIONS LTD,15/02/2022,-885.00,6410-Operational Maintenance,PREMISES,REPAIRS & MAINTENANCE,REVENUE
Walsall Council,http://opendatacommunities.org/id/metropolitan-district-council/walsall ,WC135-744,28.02.2022,"ECONOMY, ENVIRONMENT & COMMUNITIES",BAT FABRICATIONS LTD,15/02/2022,-300.00,6410-Operational Maintenance,PREMISES,REPAIRS & MAINTENANCE,REVENUE
Walsall Council,http://opendatacommunities.org/id/metropolitan-district-council/walsall ,WC135-745,28.02.2022,"ECONOMY, ENVIRONMENT & COMMUNITIES",BAT FABRICATIONS LTD,15/02/2022,300.00,6410-Operational Maintenance,PREMISES,REPAIRS & MAINTENANCE,REVENUE
Walsall Council,http://opendatacommunities.org/id/metropolitan-district-council/walsall ,WC135-746,28.02.2022,"ECONOMY, ENVIRONMENT & COMMUNITIES",BAT FABRICATIONS LTD,15/02/2022,885.00,6410-Operational Maintenance,PREMISES,REPAIRS & MAINTENANCE,REVENUE
Walsall Council,http://opendatacommunities.org/id/metropolitan-district-council/walsall ,WC135-747,28.02.2022,"ECONOMY, ENVIRONMENT & COMMUNITIES",BAT FABRICATIONS LTD,15/02/2022,"1,185.00",6410-Operational Maintenance,PREMISES,REPAIRS & MAINTENANCE,REVENUE
Walsall Council,http://opendatacommunities.org/id/metropolitan-district-council/walsall ,WC135-748,28.02.2022,"ECONOMY, ENVIRONMENT & COMMUNITIES",BAT FABRICATIONS LTD,03/02/2022,420.00,6410-Operational Maintenance,PREMISES,REPAIRS & MAINTENANCE,REVENUE
Walsall Council,http://opendatacommunities.org/id/metropolitan-district-council/walsall ,WC135-749,28.02.2022,"ECONOMY, ENVIRONMENT & COMMUNITIES",BAT FABRICATIONS LTD,25/02/2022,875.00,6410-Professional Services-Priv Contractor & Other Agencies,THIRD PARTY PAYMENTS,PRIVATE CONTRACTOR,REVENUE
Walsall Council,http://opendatacommunities.org/id/metropolitan-district-council/walsall ,WC135-750,28.02.2022,"ECONOMY, ENVIRONMENT & COMMUNITIES",BAT FABRICATIONS LTD,25/02/2022,"3,000.00",6410-Professional Services-Priv Contractor & Other Agencies,THIRD PARTY PAYMENTS,PRIVATE CONTRACTOR,REVENUE
Walsall Council,http://opendatacommunities.org/id/metropolitan-district-council/walsall ,WC135-751,28.02.2022,"ECONOMY, ENVIRONMENT & COMMUNITIES",BATLEYS,15/02/2022,-827.57,6414-Catering & Refreshments,SUPPLIES & SERVICES,CATERING,REVENUE
Walsall Council,http://opendatacommunities.org/id/metropolitan-district-council/walsall ,WC135-752,28.02.2022,"ECONOMY, ENVIRONMENT & COMMUNITIES",BATLEYS,15/02/2022,805.67,6414-Catering & Refreshments,SUPPLIES & SERVICES,CATERING,REVENUE
Walsall Council,http://opendatacommunities.org/id/metropolitan-district-council/walsall ,WC135-753,28.02.2022,"ECONOMY, ENVIRONMENT & COMMUNITIES",BATLEYS,15/02/2022,827.57,6414-Catering & Refreshments,SUPPLIES & SERVICES,CATERING,REVENUE
Walsall Council,http://opendatacommunities.org/id/metropolitan-district-council/walsall ,WC135-754,28.02.2022,RESOURCES AND TRANSFORMATION,BAUER CORPORATE SERVICES - BAUER RADIO LTD,18/02/2022,"1,915.40",6312-Publicity & Advertising (non staff),SUPPLIES & SERVICES,SERVICES,REVENUE
Walsall Council,http://opendatacommunities.org/id/metropolitan-district-council/walsall ,WC135-755,28.02.2022,RESOURCES AND TRANSFORMATION,BAUER CORPORATE SERVICES - BAUER RADIO LTD,18/02/2022,"1,915.40",6312-Publicity & Advertising (non staff),SUPPLIES & SERVICES,SERVICES,REVENUE
Walsall Council,http://opendatacommunities.org/id/metropolitan-district-council/walsall ,WC135-756,28.02.2022,ECONOMY & ENVIRONMENT CAPITAL,BDO LLP,14/02/2022,"4,903.81",7200-Consultants Fees,CAPITAL,"NEW CONSTRUCTION,CONVERSION & RENOVATION",CAPITAL
Walsall Council,http://opendatacommunities.org/id/metropolitan-district-council/walsall ,WC135-757,28.02.2022,CHILDRENS,BEACON CHILDCARE LTD,22/02/2022,"12,200.00",6223-External Residential Care-Oth Agency Provision,THIRD PARTY PAYMENTS,PRIVATE CONTRACTOR,REVENUE
Walsall Council,http://opendatacommunities.org/id/metropolitan-district-council/walsall ,WC135-758,28.02.2022,"ECONOMY, ENVIRONMENT & COMMUNITIES",BEADEN POWERLEC LIMITED,23/02/2022,881.14,6413-Repair & Maintenance of Furniture & Equipment,SUPPLIES & SERVICES,EQUIPMENT FURNITURE & MATERIALS,REVENUE
Walsall Council,http://opendatacommunities.org/id/metropolitan-district-council/walsall ,WC135-759,28.02.2022,CHILDRENS CAPITAL,BEADEN POWERLEC LIMITED,01/02/2022,385.00,7150-Site Works Contractors,CAPITAL,"NEW CONSTRUCTION,CONVERSION & RENOVATION",CAPITAL
Walsall Council,http://opendatacommunities.org/id/metropolitan-district-council/walsall ,WC135-760,28.02.2022,CHILDRENS CAPITAL,BEADEN POWERLEC LIMITED,01/02/2022,480.00,7150-Site Works Contractors,CAPITAL,"NEW CONSTRUCTION,CONVERSION & RENOVATION",CAPITAL
Walsall Council,http://opendatacommunities.org/id/metropolitan-district-council/walsall ,WC135-761,28.02.2022,ADULT SOCIAL CARE,BEATFREEKS CONSULTING LTD,18/02/2022,"7,625.00",6420-Consultant Fees,SUPPLIES & SERVICES,SERVICES,REVENUE
Walsall Council,http://opendatacommunities.org/id/metropolitan-district-council/walsall ,WC135-762,28.02.2022,CHILDRENS,BECKYS CHILDMINDING SERVICE,14/02/2022,"3,564.00",1184-Other-Grants to Other Orgs,SUPPLIES & SERVICES,GRANTS (EXP) & SUBSCRIPTIONS,REVENUE
Walsall Council,http://opendatacommunities.org/id/metropolitan-district-council/walsall ,WC135-763,28.02.2022,CHILDRENS,BECKYS CHILDMINDING SERVICE,14/02/2022,"1,504.80",1184-Other-Grants to Other Orgs,SUPPLIES & SERVICES,GRANTS (EXP) & SUBSCRIPTIONS,REVENUE
Walsall Council,http://opendatacommunities.org/id/metropolitan-district-council/walsall ,WC135-764,28.02.2022,ADULT SOCIAL CARE,BEECHWOODCOURT LTD  T/A BEECHWOOD COLLEGE,10/02/2022,"15,022.43",6541-Residential,THIRD PARTY PAYMENTS,PRIVATE CONTRACTOR,REVENUE
Walsall Council,http://opendatacommunities.org/id/metropolitan-district-council/walsall ,WC135-765,28.02.2022,ADULT SOCIAL CARE,BELVIDERE COURT,15/02/2022,"2,419.96",6541-Nursing,THIRD PARTY PAYMENTS,PRIVATE CONTRACTOR,REVENUE
Walsall Council,http://opendatacommunities.org/id/metropolitan-district-council/walsall ,WC135-766,28.02.2022,ADULT SOCIAL CARE,BELVIDERE COURT,15/02/2022,"2,895.88",6541-Residential,THIRD PARTY PAYMENTS,PRIVATE CONTRACTOR,REVENUE
Walsall Council,http://opendatacommunities.org/id/metropolitan-district-council/walsall ,WC135-767,28.02.2022,ADULT SOCIAL CARE,BENEDON HEALTHCARE LTD,10/02/2022,"5,903.24",6541-Community Supported Living/Supported Accommodation,THIRD PARTY PAYMENTS,PRIVATE CONTRACTOR,REVENUE
Walsall Council,http://opendatacommunities.org/id/metropolitan-district-council/walsall ,WC135-768,28.02.2022,ADULT SOCIAL CARE,BENEDON HEALTHCARE LTD,10/02/2022,"1,395.84",6541-Community Supported Living/Supported Accommodation,THIRD PARTY PAYMENTS,PRIVATE CONTRACTOR,REVENUE
Walsall Council,http://opendatacommunities.org/id/metropolitan-district-council/walsall ,WC135-769,28.02.2022,ADULT SOCIAL CARE,REDACTED,02/02/2022,"2,864.72",6541-Direct Payment,THIRD PARTY PAYMENTS,PRIVATE CONTRACTOR,REVENUE
Walsall Council,http://opendatacommunities.org/id/metropolitan-district-council/walsall ,WC135-770,28.02.2022,"ECONOMY, ENVIRONMENT & COMMUNITIES",REDACTED,15/02/2022,810.00,6414-Professional Fees & Services,SUPPLIES & SERVICES,SERVICES,REVENUE
Walsall Council,http://opendatacommunities.org/id/metropolitan-district-council/walsall ,WC135-771,28.02.2022,HOLDING ACCOUNTS,BERRYMANS LACE MAWER LLP,01/02/2022,"2,145.00",2877-Insurance Payment Claims,SUPPLIES & SERVICES,INSURANCE,REVENUE
Walsall Council,http://opendatacommunities.org/id/metropolitan-district-council/walsall ,WC135-772,28.02.2022,ADULT SOCIAL CARE,REDACTED,02/02/2022,"1,931.68",6541-Direct Payment,THIRD PARTY PAYMENTS,PRIVATE CONTRACTOR,REVENUE
Walsall Council,http://opendatacommunities.org/id/metropolitan-district-council/walsall ,WC135-773,28.02.2022,"ECONOMY, ENVIRONMENT & COMMUNITIES",BESCOT STADIUM SUNDAY MARKET LTD,25/02/2022,"2,600.00",6410-Professional Services-Priv Contractor & Other Agencies,THIRD PARTY PAYMENTS,PRIVATE CONTRACTOR,REVENUE
Walsall Council,http://opendatacommunities.org/id/metropolitan-district-council/walsall ,WC135-774,28.02.2022,CHILDRENS,BESPOKE TRAINING AND EDUCATION LTD,03/02/2022,"6,608.44",1187-Materials,SUPPLIES & SERVICES,EQUIPMENT FURNITURE & MATERIALS,REVENUE
Walsall Council,http://opendatacommunities.org/id/metropolitan-district-council/walsall ,WC135-775,28.02.2022,ADULT SOCIAL CARE,BESS CARE LIMITED,03/02/2022,436.18,6541-Domiciliary Care,THIRD PARTY PAYMENTS,PRIVATE CONTRACTOR,REVENUE
Walsall Council,http://opendatacommunities.org/id/metropolitan-district-council/walsall ,WC135-776,28.02.2022,ADULT SOCIAL CARE,BESS CARE LIMITED,03/02/2022,257.02,6541-Domiciliary Care,THIRD PARTY PAYMENTS,PRIVATE CONTRACTOR,REVENUE
Walsall Council,http://opendatacommunities.org/id/metropolitan-district-council/walsall ,WC135-777,28.02.2022,ADULT SOCIAL CARE,BESS CARE LIMITED,03/02/2022,354.29,6541-Domiciliary Care,THIRD PARTY PAYMENTS,PRIVATE CONTRACTOR,REVENUE
Walsall Council,http://opendatacommunities.org/id/metropolitan-district-council/walsall ,WC135-778,28.02.2022,ADULT SOCIAL CARE,BESS CARE LIMITED,03/02/2022,537.40,6541-Domiciliary Care,THIRD PARTY PAYMENTS,PRIVATE CONTRACTOR,REVENUE
Walsall Council,http://opendatacommunities.org/id/metropolitan-district-council/walsall ,WC135-779,28.02.2022,ADULT SOCIAL CARE,BESS CARE LIMITED,03/02/2022,272.58,6541-Domiciliary Care,THIRD PARTY PAYMENTS,PRIVATE CONTRACTOR,REVENUE
Walsall Council,http://opendatacommunities.org/id/metropolitan-district-council/walsall ,WC135-780,28.02.2022,ADULT SOCIAL CARE,BESS CARE LIMITED,03/02/2022,377.66,6541-Domiciliary Care,THIRD PARTY PAYMENTS,PRIVATE CONTRACTOR,REVENUE
Walsall Council,http://opendatacommunities.org/id/metropolitan-district-council/walsall ,WC135-781,28.02.2022,ADULT SOCIAL CARE,BESS CARE LIMITED,03/02/2022,"1,588.14",6541-Domiciliary Care,THIRD PARTY PAYMENTS,PRIVATE CONTRACTOR,REVENUE
Walsall Council,http://opendatacommunities.org/id/metropolitan-district-council/walsall ,WC135-782,28.02.2022,ADULT SOCIAL CARE,BESS CARE LIMITED,03/02/2022,475.10,6541-Domiciliary Care,THIRD PARTY PAYMENTS,PRIVATE CONTRACTOR,REVENUE
Walsall Council,http://opendatacommunities.org/id/metropolitan-district-council/walsall ,WC135-783,28.02.2022,ADULT SOCIAL CARE,BESS CARE LIMITED,03/02/2022,599.62,6541-Domiciliary Care,THIRD PARTY PAYMENTS,PRIVATE CONTRACTOR,REVENUE
Walsall Council,http://opendatacommunities.org/id/metropolitan-district-council/walsall ,WC135-784,28.02.2022,ADULT SOCIAL CARE,BESS CARE LIMITED,03/02/2022,381.65,6541-Domiciliary Care,THIRD PARTY PAYMENTS,PRIVATE CONTRACTOR,REVENUE
Walsall Council,http://opendatacommunities.org/id/metropolitan-district-council/walsall ,WC135-785,28.02.2022,ADULT SOCIAL CARE,BESS CARE LIMITED,03/02/2022,377.66,6541-Domiciliary Care,THIRD PARTY PAYMENTS,PRIVATE CONTRACTOR,REVENUE
Walsall Council,http://opendatacommunities.org/id/metropolitan-district-council/walsall ,WC135-786,28.02.2022,ADULT SOCIAL CARE,BESS CARE LIMITED,03/02/2022,260.91,6541-Domiciliary Care,THIRD PARTY PAYMENTS,PRIVATE CONTRACTOR,REVENUE
Walsall Council,http://opendatacommunities.org/id/metropolitan-district-council/walsall ,WC135-787,28.02.2022,ADULT SOCIAL CARE,BESS CARE LIMITED,03/02/2022,354.29,6541-Domiciliary Care,THIRD PARTY PAYMENTS,PRIVATE CONTRACTOR,REVENUE
Walsall Council,http://opendatacommunities.org/id/metropolitan-district-council/walsall ,WC135-788,28.02.2022,ADULT SOCIAL CARE,BESS CARE LIMITED,03/02/2022,514.04,6541-Domiciliary Care,THIRD PARTY PAYMENTS,PRIVATE CONTRACTOR,REVENUE
Walsall Council,http://opendatacommunities.org/id/metropolitan-district-council/walsall ,WC135-789,28.02.2022,ADULT SOCIAL CARE,BESS CARE LIMITED,03/02/2022,272.58,6541-Domiciliary Care,THIRD PARTY PAYMENTS,PRIVATE CONTRACTOR,REVENUE
Walsall Council,http://opendatacommunities.org/id/metropolitan-district-council/walsall ,WC135-790,28.02.2022,ADULT SOCIAL CARE,BESS CARE LIMITED,03/02/2022,"1,868.40",6541-Domiciliary Care,THIRD PARTY PAYMENTS,PRIVATE CONTRACTOR,REVENUE
Walsall Council,http://opendatacommunities.org/id/metropolitan-district-council/walsall ,WC135-791,28.02.2022,ADULT SOCIAL CARE,BESS CARE LIMITED,03/02/2022,498.46,6541-Domiciliary Care,THIRD PARTY PAYMENTS,PRIVATE CONTRACTOR,REVENUE
Walsall Council,http://opendatacommunities.org/id/metropolitan-district-council/walsall ,WC135-792,28.02.2022,ADULT SOCIAL CARE,BESS CARE LIMITED,03/02/2022,506.18,6541-Domiciliary Care,THIRD PARTY PAYMENTS,PRIVATE CONTRACTOR,REVENUE
Walsall Council,http://opendatacommunities.org/id/metropolitan-district-council/walsall ,WC135-793,28.02.2022,ADULT SOCIAL CARE,BESS CARE LIMITED,03/02/2022,443.96,6541-Domiciliary Care,THIRD PARTY PAYMENTS,PRIVATE CONTRACTOR,REVENUE
Walsall Council,http://opendatacommunities.org/id/metropolitan-district-council/walsall ,WC135-794,28.02.2022,ADULT SOCIAL CARE,BESS CARE LIMITED,03/02/2022,257.02,6541-Domiciliary Care,THIRD PARTY PAYMENTS,PRIVATE CONTRACTOR,REVENUE
Walsall Council,http://opendatacommunities.org/id/metropolitan-district-council/walsall ,WC135-795,28.02.2022,ADULT SOCIAL CARE,BESS CARE LIMITED,03/02/2022,354.29,6541-Domiciliary Care,THIRD PARTY PAYMENTS,PRIVATE CONTRACTOR,REVENUE
